Workbook

Sheet SkillLogicConfig
B1: Id | C1: Target | D1: Effect | E1: EffectValue | F1: CD | G1: SkillDisplay | H1: NoUse1 | I1: NoUse2 | J1: NoUse3 | K1: NoUse6 | L1: NoUse4 | M1: NoUse5
B2: int | C2: mut,float#float,2 | D2: mut,int#int,2 | E2: mut,float#float,2 | F2: float | G2: int | H2: string | I2: string | J2: string | K2: string | L2: string | M2: string
B3: 2 | C3: 2 | D3: 2 | E3: 2 | F3: 2 | G3: 2 | H3: 0 | I3: 0 | J3: 0 | K3: 0 | L3: 0 | M3: 0
B4: 技能id | C4: 目标选择 | D4: 技能效果组合 | E4: 技能效果参数 | F4: 上滑技施法时间 | G4: 技能特效引用 | H4: 备注 | I4: 备注 | J4: 备注 | K4: 空值校验 | L4: 目标校验 | M4: 效果校验
A5: 默认值 | B5: 0 | C5: null | D5: null | E5: null | F5: 0 | G5: 0
A6: 正确性校对
A7: 校对值
B8: 1 | C8: 400001#0.4 | D8: 1#3 | E8: 0.1#1|1#2#5 | H8: 沉默 | K8: =IF(AND(ISBLANK(C8)=ISBLANK(D8),ISBLANK(D8)=ISBLANK(E8),ISBLANK(E8)=ISBLANK(C8)),"",FALSE) ->  | L8: =IF((LEN(C8)-LEN(SUBSTITUTE(C8,"|","")))=(LEN(D8)-LEN(SUBSTITUTE(D8,"|",""))),"",FALSE) ->  | M8: =IF((LEN(D8)-LEN(SUBSTITUTE(SUBSTITUTE(D8,"|",""),"#","")))=(LEN(E8)-LEN(SUBSTITUTE(E8,"|",""))),"",FALSE) -> 
B9: 2 | C9: 400001#0.4 | D9: 1#3 | E9: 0.1#2|1#1#2 | H9: 晕
B10: 3 | C10: 100000#0.4 | D10: 5 | E10: 1#1#4 | H10: 持续治疗
B11: 4 | C11: 300001#0.4 | D11: 13 | E11: 1#0.1#1#10 | H11: 自己燃烧
B12: 5 | C12: 300001#0.4 | D12: 13 | E12: 2#0.1#1#10 | H12: 自己中毒
B13: 6 | C13: 300001#0.4 | D13: 13 | E13: 3#0.1#1#10 | H13: 自己流血
B14: 7 | C14: 400001#0.4 | D14: 13 | E14: 1#0.1#1#10 | H14: 敌人燃烧
B15: 8 | C15: 400001#0.4 | D15: 13 | E15: 2#0.1#1#10 | H15: 敌人中毒
B16: 9 | C16: 400001#0.4 | D16: 13 | E16: 3#0.1#1#10 | H16: 敌人流血
B17: 10 | C17: 300001#0.4 | D17: 9 | E17: 12#0.1#10#0 | H17: 盾
B18: 11 | C18: 200000#0.4 | D18: 4 | E18: 1#0.5#10#4 | H18: 减攻
B19: 12 | C19: 100000#0.4 | D19: 4 | E19: 2#0.3#10#2 | H19: 加防
B20: 13 | C20: 400001#0.4 | D20: 1 | E20: 0.1#1 | K20: =IF(AND(ISBLANK(C20)=ISBLANK(D20),ISBLANK(D20)=ISBLANK(E20),ISBLANK(E20)=ISBLANK(C20)),"",FALSE) ->  | M20: =IF((LEN(D20)-LEN(SUBSTITUTE(SUBSTITUTE(D20,"|",""),"#","")))=(LEN(E20)-LEN(SUBSTITUTE(E20,"|",""))),"",FALSE) -> 
B21: 1000001 | C21: 400001#0.4 | D21: 1#13 | E21: 2.6#1|3#0.2#1#5 | H21: 巨魔
B22: 1000002 | C22: 200000#0.4 | D22: 2#3 | E22: 1.44#2|0.3#1#4 | F22: 75000 | H22: 巨魔
B23: 100714 | C23: 200001#0.4 | D23: 6#4#4 | E23: 3#3#0.693#1|2#0.3#10#4|3#0.3#10#4 | H23: 外敌技能
B24: 100724 | C24: 200001#0.4|100721#0.4 | D24: 1|8 | E24: 2.08#1|0#1#1 | H24: 外敌技能
B25: 101614 | C25: 200001#0.4 | D25: 30 | E25: 2.08#2#0#0.38 | H25: 外敌技能
B26: 101624 | C26: 200003#0.4|300001#0.4 | D26: 23|4#4 | E26: 1.11#2#0#0.3|3#0.2#6#4|1#0.3#6#2 | H26: 外敌技能
B27: 102214 | C27: 200001#0.4|300001#0.4|300001#0.4 | D27: 1|4|4 | E27: 2.08#2|9#0.2#9#1|10#0.2#9#1 | H27: 外敌技能
B28: 102224 | C28: 200221#0.4 | D28: 15 | E28: 2.08#2#0.3 | H28: 外敌技能
B29: 102514 | C29: 200001#0.4 | D29: 6 | E29: 2#2#1.04#2 | H29: 外敌技能
B30: 102524 | C30: 200001#0.4 | D30: 1#3 | E30: 2.08#2|0.5#1#8 | H30: 外敌技能
B31: 103014 | C31: 200001#0.4 | D31: 6 | E31: 2#2#1.04#2 | H31: 外敌技能
B32: 103024 | C32: 200001#0.4 | D32: 1#4 | E32: 2.08#2|2#0.3#12#4 | H32: 外敌技能
B33: 103114 | C33: 200001#0.4 | D33: 1 | E33: 2.08#1 | H33: 外敌技能
B34: 103124 | C34: 200001#0.4 | D34: 29 | E34: 2#2#1.456#1#3#0.2 | H34: 外敌技能
B35: 103214 | C35: 200001#0.4 | D35: 6 | E35: 2#2#1.04#2 | H35: 外敌技能
B36: 103224 | C36: 200001#0.4 | D36: 1#13 | E36: 1.328#1|1#0.2#1#10 | H36: 外敌技能
B37: 103314 | C37: 200001#0.4 | D37: 6 | E37: 2#2#1.04#1 | H37: 外敌技能
B38: 103324 | C38: 200001#0.4 | D38: 29 | E38: 2#2#1.664#1#2#0.2 | H38: 外敌技能
B39: 103514 | C39: 200001#0.4 | D39: 29 | E39: 3#3#0.693#1#1#0.2 | H39: 外敌技能
B40: 103524 | C40: 200111#0.4 | D40: 1 | E40: 2.912#1 | H40: 外敌技能
B41: 103614 | C41: 200001#0.4 | D41: 1 | E41: 2.08#2 | H41: 外敌技能
B42: 103624 | C42: 200001#0.4 | D42: 29 | E42: 2#2#1.456#2#4#0.2 | H42: 外敌技能
B43: 103714 | C43: 200001#0.4 | D43: 6 | E43: 2#2#1.04#1 | H43: 外敌技能
B44: 103724 | C44: 200001#0.4|3004001#0.4|300501#0.4 | D44: 1|4|4 | E44: 2.08#1|2#0.3#9#1|3#0.3#9#1 | H44: 外敌技能
B45: 103914 | C45: 200001#0.4 | D45: 6 | E45: 2#2#1.04#1 | H45: 外敌技能
B46: 103924 | C46: 200001#0.4 | D46: 1#4 | E46: 2.5#1|3#0.4#9#4 | H46: 外敌技能
B47: 104014 | C47: 200001#0.4 | D47: 1 | E47: 2.08#1 | H47: 外敌技能
B48: 104024 | C48: 200001#0.4 | D48: 29 | E48: 2#2#1.456#1#5#0.2 | H48: 外敌技能
B49: 104214 | C49: 200001#0.4 | D49: 6 | E49: 2#2#1.04#1 | H49: 外敌技能
B50: 104224 | C50: 200001#0.4|300001#0.4 | D50: 1|4 | E50: 2.08#1|1#0.3#9#2 | H50: 外敌技能
B51: 100001 | C51: 400001#0.4 | D51: 1#91 | E51: 1.4#1|1#3#0.2#2#10#5 | H51: 公会boss技能
B52: 100002 | C52: 200003#0.4 | D52: 1 | E52: 2.88#2 | F52: 50000 | H52: 公会boss技能
B53: 1000111 | C53: 400001#0.4|200000#0.4 | D53: 1|3 | E53: 2.2#1|0.8#3#10 | G53: 1 | J53: =IF(H53=I53,"","错") ->  | K53: =IF(AND(ISBLANK(C53)=ISBLANK(D53),ISBLANK(D53)=ISBLANK(E53),ISBLANK(E53)=ISBLANK(C53)),"",FALSE) ->  | L53: =IF((LEN(C53)-LEN(SUBSTITUTE(C53,"|","")))=(LEN(D53)-LEN(SUBSTITUTE(D53,"|",""))),"",FALSE) ->  | M53: =IF((LEN(D53)-LEN(SUBSTITUTE(SUBSTITUTE(D53,"|",""),"#","")))=(LEN(E53)-LEN(SUBSTITUTE(E53,"|",""))),"",FALSE) -> 
B54: 1000112 | C54: 400001#0.4|200000#0.4 | D54: 1|3 | E54: 2.5#1|0.8#3#10 | G54: 1
B55: 1000113 | C55: 400001#0.4|200000#0.4 | D55: 1|3 | E55: 3.6#1|0.8#3#10 | G55: 1
B56: 1000114 | C56: 400001#0.4|200000#0.4 | D56: 1|3 | E56: 4.3#1|0.8#3#10 | G56: 1
B57: 1000115 | C57: 400001#0.4|200000#0.4 | D57: 1|3 | E57: 5.4#1|0.8#3#10 | G57: 1
B58: 1000121
B59: 1000122
B60: 1000123
B61: 1000124
B62: 1000125
B63: 1000211 | C63: 220003#0.4|220003#0.4 | D63: 81|3 | E63: 2.2#1#1#1.4#5|0.6#3#10 | G63: 3
B64: 1000212 | C64: 220003#0.4|220003#0.4 | D64: 81|3 | E64: 2.5#1#1#1.6#5|0.6#3#10 | G64: 3
B65: 1000213 | C65: 220003#0.4|220003#0.4 | D65: 81|3 | E65: 3.6#1#1#2.3#5|0.6#3#10 | G65: 3
B66: 1000214 | C66: 220003#0.4|220003#0.4 | D66: 81|3 | E66: 4.3#1#1#2.7#5|0.6#3#10 | G66: 3
B67: 1000215 | C67: 220003#0.4|220003#0.4 | D67: 81|3 | E67: 5.4#1#1#3.4#5|0.6#3#10 | G67: 3
B68: 1000221 | C68: 400001#0.4|300001#0.4 | D68: 1|82#4 | E68: 3.4#1|0.4#6|6#0.4#6#1 | F68: 45000 | G68: 4
B69: 1000222 | C69: 400001#0.4|300001#0.4 | D69: 1|82#4 | E69: 3.8#1|0.4#6|6#0.4#6#1 | F69: 45000 | G69: 4
B70: 1000223 | C70: 400001#0.4|300001#0.4 | D70: 1|82#4 | E70: 4.3#1|0.5#6|6#0.4#6#1 | F70: 45000 | G70: 4
B71: 1000224 | C71: 400001#0.4|300001#0.4 | D71: 1|82#4 | E71: 5.8#1|0.5#6|6#0.4#6#1 | F71: 45000 | G71: 4
B72: 1000225 | C72: 400001#0.4|300001#0.4 | D72: 1|82#4 | E72: 7.2#1|0.5#6|6#0.6#6#1 | F72: 45000 | G72: 4
B73: 1000311 | C73: 400001#0.4|200000#0.4 | D73: 1|3 | E73: 2.2#1|0.6#3#10 | G73: 3
B74: 1000312 | C74: 400001#0.4|200000#0.4 | D74: 1|3 | E74: 2.5#1|0.6#3#10 | G74: 3
B75: 1000313 | C75: 400001#0.4|200000#0.4 | D75: 1|3 | E75: 3.6#1|0.6#3#10 | G75: 3
B76: 1000314 | C76: 400001#0.4|200000#0.4 | D76: 1|3 | E76: 4.3#1|0.6#3#10 | G76: 3
B77: 1000315 | C77: 400001#0.4|200000#0.4 | D77: 1|3 | E77: 5.4#1|0.6#3#10 | G77: 3
B78: 1000321
B79: 1000322
B80: 1000323
B81: 1000324
B82: 1000325
B83: 1000411 | C83: 400001#0.4|100211#0.4 | D83: 1|89#83 | E83: 2.3#2|1#1#1.8#6#2|1#1#4 | G83: 3
B84: 1000412 | C84: 400001#0.4|100211#0.4 | D84: 1|89#83 | E84: 2.6#2|1#1#2.1#6#2|1#1#4 | G84: 3
B85: 1000413 | C85: 400001#0.4|100211#0.4 | D85: 1|89#83 | E85: 3.8#2|1#1#3#6#2|1#1#4 | G85: 3 | J85: =IF(H85=I85,"","错") -> 
B86: 1000414 | C86: 400001#0.4|100211#0.4 | D86: 1|89#83 | E86: 4.8#2|1#1#3.6#6#2|1#1#4 | G86: 3
B87: 1000415 | C87: 400001#0.4|100211#0.4 | D87: 1|89#83 | E87: 5.6#2|1#1#4.5#6#2|1#2#4 | G87: 3
B88: 1000421 | C88: 200000#0.4|100000#0.4 | D88: 2#4|24 | E88: 3.5#2|8#0.2#12#3|1#2.8 | F88: 45000 | G88: 3
B89: 1000422 | C89: 200000#0.4|100000#0.4 | D89: 2#4|24 | E89: 4#2|8#0.2#12#3|1#3.2 | F89: 45000 | G89: 3
B90: 1000423 | C90: 200000#0.4|100000#0.4 | D90: 2#4|24 | E90: 4.5#2|8#0.2#12#3|1#3.6 | F90: 45000 | G90: 3
B91: 1000424 | C91: 200000#0.4|100000#0.4 | D91: 2#4|24 | E91: 6#2|8#0.3#12#3|1#4.8 | F91: 45000 | G91: 3
B92: 1000425 | C92: 200000#0.4|100000#0.4 | D92: 2#4|24 | E92: 7.5#2|8#0.4#12#3|1#6 | F92: 45000 | G92: 3
B93: 1000511 | C93: 220003#0.4 | D93: 20 | E93: 1.2#2#1#2 | G93: 3
B94: 1000512 | C94: 220003#0.4 | D94: 20 | E94: 1.4#2#1#2 | G94: 3
B95: 1000513 | C95: 220003#0.4 | D95: 20 | E95: 2#2#1#2 | G95: 3
B96: 1000514 | C96: 220003#0.4 | D96: 20 | E96: 2.4#2#1#2 | G96: 3
B97: 1000515 | C97: 220003#0.4 | D97: 20 | E97: 3#2#1#2 | G97: 3
B98: 1000521 | C98: 200000#0.4 | D98: 20 | E98: 2.1#2#1#2 | F98: 45000 | G98: 3
B99: 1000522 | C99: 200000#0.4 | D99: 20 | E99: 2.4#2#1#2 | F99: 45000 | G99: 3
B100: 1000523 | C100: 200000#0.4 | D100: 20 | E100: 2.7#2#1#2 | F100: 45000 | G100: 3
B101: 1000524 | C101: 200000#0.4 | D101: 20 | E101: 3.6#2#1#2 | F101: 45000 | G101: 3
B102: 1000525 | C102: 200000#0.4 | D102: 20 | E102: 4.5#2#1#2 | F102: 45000 | G102: 3
B103: 1000611 | C103: 400001#0.4 | D103: 91#1#25 | E103: 1#1#0.2#2#10#5|1.2#2|1#0.1#10 | G103: 3
B104: 1000612 | C104: 400001#0.4 | D104: 91#1#25 | E104: 1#1#0.2#2#10#5|1.4#2|1#0.1#10 | G104: 3
B105: 1000613 | C105: 400001#0.4 | D105: 91#1#25 | E105: 1#1#0.2#2#10#5|2#2|1#0.1#10 | G105: 3
B106: 1000614 | C106: 400001#0.4 | D106: 91#1#25 | E106: 1#1#0.2#2#10#5|2.4#2|1#0.1#10 | G106: 3
B107: 1000615 | C107: 400001#0.4 | D107: 91#1#25 | E107: 1#1#0.2#2#10#5|3#2|1#0.1#10 | G107: 3
B108: 1000621 | C108: 200003#0.4 | D108: 91#1#25 | E108: 1#1#0.3#2#10#5|2.3#2|1#0.25#10 | F108: 45000 | G108: 3
B109: 1000622 | C109: 200003#0.4 | D109: 91#1#25 | E109: 1#1#0.3#2#10#5|2.6#2|1#0.25#10 | F109: 45000 | G109: 3
B110: 1000623 | C110: 200003#0.4 | D110: 91#1#25 | E110: 1#1#0.3#2#10#5|3#2|1#0.25#10 | F110: 45000 | G110: 3
B111: 1000624 | C111: 200003#0.4 | D111: 91#1#25 | E111: 1#1#0.3#2#10#5|4#2|1#0.25#10 | F111: 45000 | G111: 3
B112: 1000625 | C112: 200003#0.4 | D112: 91#1#25 | E112: 1#1#0.3#2#10#5|5#2|1#0.25#10 | F112: 45000 | G112: 3
B113: 1000711 | C113: 400001#0.4|300001#0.4 | D113: 1|9 | E113: 2.2#2|1#1.5#10#0 | G113: 3
B114: 1000712 | C114: 400001#0.4|300001#0.4 | D114: 1|9 | E114: 2.5#2|1#1.8#10#0 | G114: 3
B115: 1000713 | C115: 400001#0.4|300001#0.4 | D115: 1|9 | E115: 3.6#2|1#2.5#10#0 | G115: 3
B116: 1000714 | C116: 400001#0.4|300001#0.4 | D116: 1|9 | E116: 4.3#2|1#3#10#0 | G116: 3
B117: 1000715 | C117: 400001#0.4|300001#0.4 | D117: 1|9 | E117: 5.4#2|1#3.8#10#0 | G117: 3 | J117: =IF(H117=I117,"","错") ->  | K117: =IF(AND(ISBLANK(C117)=ISBLANK(D117),ISBLANK(D117)=ISBLANK(E117),ISBLANK(E117)=ISBLANK(C117)),"",FALSE) ->  | L117: =IF((LEN(C117)-LEN(SUBSTITUTE(C117,"|","")))=(LEN(D117)-LEN(SUBSTITUTE(D117,"|",""))),"",FALSE) ->  | M117: =IF((LEN(D117)-LEN(SUBSTITUTE(SUBSTITUTE(D117,"|",""),"#","")))=(LEN(E117)-LEN(SUBSTITUTE(E117,"|",""))),"",FALSE) -> 
B118: 1000721 | J118: =IF(H118=I118,"","错") -> 
B119: 1000722
B120: 1000723
B121: 1000724
B122: 1000725
B123: 1000811 | C123: 400001#0.4 | D123: 1 | E123: 2.2#1 | G123: 3
B124: 1000812 | C124: 400001#0.4 | D124: 1 | E124: 2.5#1 | G124: 3
B125: 1000813 | C125: 400001#0.4 | D125: 1 | E125: 3.6#1 | G125: 3
B126: 1000814 | C126: 400001#0.4 | D126: 1 | E126: 4.3#1 | G126: 3
B127: 1000815 | C127: 400001#0.4 | D127: 1 | E127: 5.4#1 | G127: 3
B128: 1000821
B129: 1000822
B130: 1000823
B131: 1000824
B132: 1000825
B133: 1000911 | C133: 220003#0.4 | D133: 65 | E133: 1.4#2#0#0#10 | G133: 3
B134: 1000912 | C134: 220003#0.5 | D134: 65 | E134: 1.7#2#0#0#10 | G134: 3
B135: 1000913 | C135: 220003#0.6 | D135: 65 | E135: 2.4#2#0#0#10 | G135: 3
B136: 1000914 | C136: 220003#0.7 | D136: 65 | E136: 2.9#2#0#0#10 | G136: 3
B137: 1000915 | C137: 220003#0.8 | D137: 65 | E137: 3.6#2#0#0#10 | G137: 3
B138: 1000921 | C138: 220003#0.4 | D138: 66 | E138: 2.8#2#0#10#0.2 | F138: 45000 | G138: 3
B139: 1000922 | C139: 220003#0.4 | D139: 66 | E139: 3.2#2#0#10#0.2 | F139: 45000 | G139: 3
B140: 1000923 | C140: 220003#0.4 | D140: 66 | E140: 3.6#2#0#10#0.2 | F140: 45000 | G140: 3
B141: 1000924 | C141: 220003#0.4 | D141: 66 | E141: 4.8#2#0#10#0.2 | F141: 45000 | G141: 3
B142: 1000925 | C142: 220003#0.4 | D142: 66 | E142: 6#2#0#10#0.2 | F142: 45000 | G142: 3
B143: 1001011 | C143: 400001#0.4 | D143: 71 | E143: 2#2#1.1#1#0.15#1#3#1 | G143: 3
B144: 1001012 | C144: 400001#0.4 | D144: 71 | E144: 2#2#1.3#1#0.15#1#3#1 | G144: 3
B145: 1001013 | C145: 400001#0.4 | D145: 71 | E145: 2#2#1.9#1#0.20#1#3#1 | G145: 3
B146: 1001014 | C146: 400001#0.4 | D146: 71 | E146: 2#2#2.3#1#0.20#1#3#1 | G146: 3
B147: 1001015 | C147: 400001#0.4 | D147: 71 | E147: 2#2#2.9#1#0.25#1#3#1 | G147: 3
B148: 1001021 | C148: 400001#0.8 | D148: 98 | E148: 4#4#1.3#1#0.2#1#3#1 | F148: 45000 | G148: 3
B149: 1001022 | C149: 400001#0.8 | D149: 98 | E149: 4#4#1.5#1#0.2#1#3#1 | F149: 45000 | G149: 3
B150: 1001023 | C150: 400001#0.8 | D150: 98 | E150: 4#4#1.7#1#0.2#1#3#1 | F150: 45000 | G150: 3
B151: 1001024 | C151: 400001#0.8 | D151: 98 | E151: 4#4#2.3#1#0.25#1#3#1 | F151: 45000 | G151: 3
B152: 1001025 | C152: 400001#0.8 | D152: 98 | E152: 4#4#2.9#1#0.3#1#3#1 | F152: 45000 | G152: 3
B153: 1001111 | C153: 200211#0.4 | D153: 90 | E153: 2.9#2#1 | G153: 3
B154: 1001112 | C154: 200211#0.4 | D154: 90 | E154: 3.4#2#1 | G154: 3
B155: 1001113 | C155: 200211#0.4 | D155: 90 | E155: 4.9#2#1 | G155: 3
B156: 1001114 | C156: 200211#0.4 | D156: 90 | E156: 5.9#2#1 | G156: 3
B157: 1001115 | C157: 200211#0.4 | D157: 90 | E157: 7.4#2#1 | G157: 3
B158: 1001121
B159: 1001122
B160: 1001123
B161: 1001124
B162: 1001125
B163: 1001211 | C163: 220003#0.4 | D163: 18 | E163: 2.3#1#1.5 | G163: 3
B164: 1001212 | C164: 220003#0.4 | D164: 18 | E164: 2.6#1#1.5 | G164: 3
B165: 1001213 | C165: 220003#0.4 | D165: 18 | E165: 3.8#1#1.5 | G165: 3
B166: 1001214 | C166: 220003#0.4 | D166: 18 | E166: 4.5#1#1.5 | G166: 3
B167: 1001215 | C167: 220003#0.4 | D167: 18 | E167: 5.6#1#1.5 | G167: 3
B168: 1001221 | C168: 400001#0.4 | D168: 50 | E168: 4.2#1#0.1 | F168: 45000 | G168: 3
B169: 1001222 | C169: 400001#0.4 | D169: 50 | E169: 4.8#1#0.1 | F169: 45000 | G169: 3
B170: 1001223 | C170: 400001#0.4 | D170: 50 | E170: 5.4#1#0.1 | F170: 45000 | G170: 3
B171: 1001224 | C171: 400001#0.4 | D171: 50 | E171: 7.2#1#0.1 | F171: 45000 | G171: 3
B172: 1001225 | C172: 400001#0.4 | D172: 50 | E172: 9#1#0.1 | F172: 45000 | G172: 3
B173: 1001311 | C173: 400001#0.4 | D173: 94 | E173: 2.2#1#5 | G173: 3
B174: 1001312 | C174: 400001#0.4 | D174: 94 | E174: 2.5#1#5 | G174: 3
B175: 1001313 | C175: 400001#0.4 | D175: 94 | E175: 3.6#1#5 | G175: 3
B176: 1001314 | C176: 400001#0.4 | D176: 94 | E176: 4.3#1#5 | G176: 3
B177: 1001315 | C177: 400001#0.4 | D177: 94 | E177: 5.3#1#5 | G177: 3
B178: 1001321 | C178: 400001#0.4 | D178: 95 | E178: 3.5#1#0.1 | F178: 45000 | G178: 3
B179: 1001322 | C179: 400001#0.4 | D179: 95 | E179: 4#1#0.1 | F179: 45000 | G179: 3
B180: 1001323 | C180: 400001#0.4 | D180: 95 | E180: 4.5#1#0.1 | F180: 45000 | G180: 3
B181: 1001324 | C181: 400001#0.4 | D181: 95 | E181: 6#1#0.1 | F181: 45000 | G181: 3 | K181: =IF(AND(ISBLANK(C181)=ISBLANK(D181),ISBLANK(D181)=ISBLANK(E181),ISBLANK(E181)=ISBLANK(C181)),"",FALSE) ->  | L181: =IF((LEN(C181)-LEN(SUBSTITUTE(C181,"|","")))=(LEN(D181)-LEN(SUBSTITUTE(D181,"|",""))),"",FALSE) ->  | M181: =IF((LEN(D181)-LEN(SUBSTITUTE(SUBSTITUTE(D181,"|",""),"#","")))=(LEN(E181)-LEN(SUBSTITUTE(E181,"|",""))),"",FALSE) -> 
B182: 1001325 | C182: 400001#0.4 | D182: 95 | E182: 7.5#1#0.1 | F182: 45000 | G182: 3 | J182: =IF(H182=I182,"","错") -> 
B183: 1001411 | C183: 400001#0.4|300001#0.4 | D183: 63|4#4#42 | E183: 2.3#2#1|1#0.05#0#2|9#0.05#0#1|0.7#0.25#10 | G183: 3
B184: 1001412 | C184: 400001#0.4|300001#0.4 | D184: 63|4#4#42 | E184: 2.6#2#1|1#0.05#0#2|9#0.05#0#1|0.7#0.25#10 | G184: 3
B185: 1001413 | C185: 400001#0.4|300001#0.4 | D185: 63|4#4#42 | E185: 3.8#2#1|1#0.1#0#2|9#0.05#0#1|0.7#0.25#10 | G185: 3
B186: 1001414 | C186: 400001#0.4|300001#0.4 | D186: 63|4#4#42 | E186: 4.5#2#1|1#0.1#0#2|9#0.05#0#1|0.7#0.25#10 | G186: 3
B187: 1001415 | C187: 400001#0.4|300001#0.4 | D187: 63|4#4#42 | E187: 5.6#2#1|1#0.1#0#2|9#0.05#0#1|0.7#0.15#10 | G187: 3
B188: 1001421 | C188: 200000#0.4 | D188: 64 | E188: 2.2#2#0.1 | F188: 45000 | G188: 3
B189: 1001422 | C189: 200000#0.4 | D189: 64 | E189: 2.6#2#0.1 | F189: 45000 | G189: 3
B190: 1001423 | C190: 200000#0.4 | D190: 64 | E190: 2.9#2#0.1 | F190: 45000 | G190: 3
B191: 1001424 | C191: 200000#0.4 | D191: 64 | E191: 3.8#2#0.1 | F191: 45000 | G191: 3
B192: 1001425 | C192: 200000#0.4 | D192: 64 | E192: 4.8#2#0.1 | F192: 45000 | G192: 3
B193: 1001511 | C193: 400001#1.1 | D193: 62 | E193: 5#5#0.45#1 | G193: 3
B194: 1001512 | C194: 400001#1.1 | D194: 62 | E194: 5#5#0.54#1 | G194: 3
B195: 1001513 | C195: 400001#1.1 | D195: 62 | E195: 5#5#0.63#1 | G195: 3
B196: 1001514 | C196: 400001#1.1 | D196: 62 | E196: 5#5#0.72#1 | G196: 3
B197: 1001515 | C197: 400001#1.1 | D197: 62 | E197: 5#5#1.4#1 | G197: 3
B198: 1001521
B199: 1001522
B200: 1001523
... 1607 more rows

Sheet 技能效果附表
B4: 描述 | C4: 参数类型 | D4: 备注修改时间
A5: 1 | B5: 造成[a]%的[b]伤害 | C5: a[float],b[伤害类型]
A6: 2 | B6: 造成[a]%的[b]伤害【AOE】 | C6: a[float],b[伤害类型]
A7: 3 | B7: [a]%概率[b]，持续[c]回合 | C7: a[float],b[控制状态],c[int] | D7: 2020-03-26
A8: 4 | B8: [d]改变[a]属性[b]%,持续[c]回合 | C8: a[属性],b[float],c[int],d[改变类型] | D8: 2020-03-26
A9: 5 | B9: 持续恢复[a]*[b]%生命，持续[c]秒 | C9: a[属性],b[float],c[int]
A10: 6 | B10: 造成[a]到[b]次[c]%的[d]伤害 | C10: a[int],b[int],c[float],d[伤害类型] | J10: 清除正在使用中的技能CD最长的技能的CD
A11: 7 | B11: 造成[a]到[b]次[c]%的[d]伤害【AOE】 | C11: a[int],b[int],c[float],d[伤害类型]
A12: 8 | B12: [b]%改变[c]下次重击技能CD[a]秒 （0代表清除所有） | C12: a[float],b[float],c[改变类型] | AL12: 叛军士兵3_1
A13: 9 | B13: 添加[a]的[b]%护盾,持续[c]回合,盾消失的时候反射吸收伤害的[d]% | C13: a[属性],b[float],c[int],d[float] | D13: 2020-03-31
A14: 10 | B14: 造成[a]%的[b]伤害，自身恢复造成伤害[c]%的生命 | C14: a[float],b[伤害类型],c[float]
A15: 11 | B15: 造成[a]%的[b]伤害，对[c]造成额外[d]%伤害 | C15: a[float],b[伤害类型,]c[职业],d[float]
A16: 12 | B16: 每秒造成[a]的[b]的伤害，持续[c]秒 | C16: a[float]b[伤害类型]c[int] | D16: 2020-03-31
A17: 13 | B17: 造成[a]，每秒造成[b]的[c]的伤害，持续[d]秒 | C17: a[持续伤害类型]b[float]c[伤害类型],d[int] | D17: 2020-03-31
A18: 14(废) | B18: 造成[a]%的[b]伤害,[c]%概率[d]专属伤害加深印记(如果有印记，无印记伤害*（1+印记数量*[e]）（减益印记，不可驱散） | C18: a[float],b[伤害类型],c[float],d[角色id],e[float]
A19: 14 | B19: 造成[a]%的[b]伤害,[c]%概率[d]专属伤害加深印记(如果有印记，无印记伤害*（1+印记数量*[e]）,印记最多叠加[f]层。（减益印记，不可驱散） | C19: a[float],b[伤害类型],c[float],d[角色id],e[float],f[float] | D19: 2019-04-16
A20: 15 | B20: 造成[a]%的[b]伤害，如果击杀，则其他人再受到此次伤害的[c]%的伤害 | C20: a[float],b[伤害类型],c[float]
A21: 16(废) | B21: 吸取[a]%的[b],持续[c]秒 | C21: a[float],b[属性],c[float]
A22: 16 | B22: 吸取[a]%的[b],持续[c]秒，累积不高于自身该属性的[d]% | C22: a[float],b[属性],c[float],d[float] | D22: 2019-06-04
A23: 17 | B23: 造成[a]%的[b]伤害，如果是[c]，有[d]%必定暴击 | C23: a[float],b[伤害类型],c[职业],d[float]
A24: 18 | B24: 造成[a]%的[b]伤害，若暴击，则减少下次发动技能CD[c]秒。 | C24: a[float],b[伤害类型],c[float]
A25: 19 | B25: 造成[a]%的[b]伤害，有[c]%的概率追加伤害，最多可追加[d]次。(0无限追加) | C25: a[float],b[伤害类型],c[float],d[int]
A26: 20 | B26: 造成[a]%的[b]伤害，对[c]造成额外[d]%伤害 | C26: a[float],b[伤害类型,]c[控制状态],d[float]
A27: 21 | B27: 造成[a]%的[b]伤害，对[c]有[d]%造成[e]，持续[f]回合【AOE】 | C27: a[float],b[伤害类型],c[持续伤害状态],d[float],e[控制状态],f[int] | D27: 2020-03-31
A28: 22 | B28: 造成[a]%的[b]伤害，对[c]造成额外[d]%伤害【AOE】 | C28: a[float],b[伤害类型,]c[持续伤害状态],d[float]
A29: 23 | B29: 造成[a]%的[b]伤害，对[c]造成额外[d]%伤害 | C29: a[float],b[伤害类型,]c[持续回复状态],d[float]
A30: 24 | B30: 瞬间恢复[a]*[b]%生命 | C30: a[属性],b[float] | D30: 2019-03-12
A31: 25 | B31: 使拥有[a]的敌人受到增加[b]%，持续[c]秒 | C31: a[持续伤害状态],b[float],c[int] | D31: 2019-03-20
A32: 26 | B32: 造成[a]的伤害【AOE】(真实伤害） | C32: a[int] | D32: 2019-03-20
A33: 27 | B33: 每秒造成[d]的伤害，持续[f]秒【AOE】（真实伤害） | C33: d[float],f[int] | D33: 2019-03-20
A34: 28 | B34: 造成[a]%的[b]伤害，对[c]造成额外[d]%伤害 | C34: a[float],b[伤害类型,]c[持续伤害状态],d[float] | D34: 2019-03-21
A35: 29 | B35: 造成[a]到[b]次[c]%的[d]伤害，对[e]造成额外[f]%伤害 | C35: a[int],b[int],c[float],d[伤害类型],e[职业],f[float] | D35: 2019-03-25
A36: 30 | B36: 造成[a]%的[b]伤害，若为[c]，则无视敌人[d]%的防御 | C36: a[float],b[伤害类型,]c[控制状态],d[float] | D36: 2019-03-26
A37: 31 | B37: [a]%概率[b]，持续[c]秒 | C37: a[float],b[免疫buff],c[int] | D37: 2019-03-26
A38: 32 | B38: [b]%改变[d]重击技能CD[a]秒 ，持续[c]秒 （0代表清除所有） | C38: a[float],b[float],c[float]，d[改变类型] | D38: 2019-04-15
A39: 33 | B39: 造成[a]%的[b]伤害,[c]%概率添加[d]的印记，该角色在攻击拥有印记的目标时，额外获得(印记层数*[e])的暴击伤害，印记最多叠加[f]层。（减益印记，不可驱散） | C39: a[folat],b[伤害类型],c[float],d[角色id],e[float],f[float] | D39: 2019-05-23
A40: 34 | B40: 对[a]职业，[e]改变目标的[b]属性[c]%，持续[d]秒 | C40: a[职业],b[属性],c[float],d[int],e[改变类型] | D40: 2019-05-23
A41: 35 | B41: 使拥有[a]的敌人受到增加[b]%，持续[c]秒 | C41: a[控制状态],b[float],c[int] | D41: 2019-05-28
A42: 36 | B42: [d]改变[a]属性[b]%，最大叠加[c]层 | C42: a[属性],b[float],c[int],d[改变类型] | D42: 2019-05-28
A43: 37 | B43: 清除[a]状态 | C43: a[控制状态] | D43: 2019-05-28
A44: 38 | B44: 造成[a]的伤害（真实伤害） | C44: a[int] | D44: 2019-05-29
A45: 39 | B45: 每秒造成[d]的伤害，持续[f]秒（真实伤害） | C45: d[float],f[int] | D45: 2019-05-29
A46: 40 | B46: 添加[a]的伤害吸收护盾,持续[b]秒,盾消失的时候反射吸收伤害的[c]% | C46: a[int],b[int],c[float] | D46: 2019-06-04
A47: 41 | B47: 造成[a]%的[b]伤害,同时有[c]%的概率对该敌人造成[d]%的伤害，若该技能造成击杀，则有[e]%的概率清除自身CD | C47: a[folat],b[伤害类型],c[float],d[float],e[float] | D47: 2019-06-04
A48: 42 | B48: 进入虚弱状态，有[a]%的概率受到额外[b]%的伤害，状态持续[c]秒 | C48: a[folat],b[float],c[int] | D48: 2019-06-04
A49: 43 | B49: 瞬间恢复[a]的生命 | C49: a[int] | D49: 2019-06-19
A50: 44 | B50: 造成[a]%的[b]伤害，计算伤害时额外计算[c]%的[d][e]和[f]%的[g][h] | C50: a[float],b[伤害类型],c[float],d[属性],e[改变类型],f[float],g[属性],h[改变类型] | D50: 2019-08-26
A51: 45 | B51: [e][a]%概率改变[b]属性[c]%,持续[d]秒 | C51: a[float],b[属性],c[float],d[int],e[改变类型] | D51: 2019-08-26
A52: 46 | B52: 造成[a]%的[b]伤害，如果击杀，则永久增加[c]%的[d],最大[e]层（0为无限） | C52: a[float],b[伤害类型],c[float],d[属性]e[int] | D52: 2020-03-31
A53: 47 | B53: 造成[a]%的[b]伤害，若为[c]，则无视[d]%的防御，并造成额外[e]%伤害 | C53: a[float],b[伤害类型,]c[职业],d[float],e[float] | D53: 2019-08-26
A54: 48 | B54: 造成[a]*[b]%的伤害（真实伤害）（目标最大生命值伤害总上限为施法者2.5倍攻击） | C54: a[属性],b[float] | D54: 2019-08-26
A55: 49 | B55: 造成[a]%的[b]伤害，自身发动下一个技能时增加[c]%的伤害 | C55: a[float],b[伤害类型],c[float] | D55: 2019-08-26
A56: 50 | B56: 造成[a]%的[b]伤害，如果目标受到此次伤害前，生命低于最大生命[c]%，则直接击杀。（斩杀上限是攻击者10倍攻击）【aoe】 | C56: a[float],b[伤害类型],c[float] | D56: 2019-08-26 | E56: 2020/1/14修改特效
A57: 51 | B57: 增加[c]层缚灵印记，每层使受到的伤害增加[d]，减少[e]%的受治疗效果，最大[f]层（0为无限）（减益印记，不可驱散） | C57: c[int],d[float],e[float],f[int] | D57: 2019-08-27
A58: 52 | B58: 造成[a]%的[b]伤害,引爆目标身上所有缚灵印记，每层造成攻击*[c]的真实伤害。 | C58: a[float],b[伤害类型],c[float] | D58: 2019-08-26
A59: 53 | B59: 若目标生命低于最大生命的[a]%,则有[b]%概率[c]，持续[d]秒 | C59: a[float],b[float],c[控制状态],d[int] | D59: 2019-08-26
A60: 54 | B60: [e]改变[a]*[b]%的[c],持续[d]秒 | C60: a[属性],b[float],c[属性],d[int],e[改变类型] | D60: 2019-08-26
A61: 55 | B61: 清除[a]状态 | C61: a[清除状态] | D61: 2019-08-26
A62: 56 | B62: 造成目标当前生命[a]%的真实伤害，为我方角色回复此技能所有由此效果带来的伤害，平均分配给我方生命最低的[b]个角色。 | C62: a[float],b[int] | D62: 2019-08-28
A63: 57 | B63: 造成[a]%的[b]伤害，若目标血量低于最大生命值的[c]%，则必定暴击。 | C63: a[float],b[伤害类型],c[float] | D63: 2019-10-14
A64: 58 | B64: 造成[a]%的[b]伤害，计算伤害时无视目标[c]%的[d]。 | C64: a[float],b[伤害类型],c[float],d[属性] | D64: 2019-10-14
A65: 59 | B65: 造成[a]次[b]%的[c]伤害，每段攻击随机选择敌方目标。 | C65: a[int],b[float],c[伤害类型] | D65: 2019-10-14
A66: 60 | B66: 施加印记，拥有印记的角色受到暴击攻击后会[b]改变[a]秒技能cd，印记持续[c]秒。（增益印记，可以驱散） | C66: a[int],b[float]c[int] | D66: 2019-10-14
A67: 61 | B67: 消耗自身[a]%的当前生命值，为我方生命百分比最低的角色造成[b]%最大生命值的治疗。若目标为施法者，则不消耗生命。 | C67: a[float],b[float] | D67: 2019-10-14
A68: 62 | B68: 造成[a]到[b]段[c]%的[d]伤害，若任意一段攻击前目标已死亡，则目标变为敌方生命最低的角色，继续造成后续伤害。 | C68: a[int],b[int],c[float],d[伤害类型] | D68: 2019-10-14
A69: 63 | B69: 造成[a]%的[b]伤害，若造成击杀，[c]的概率立即发动一次上滑技。 | C69: a[float],b[伤害类型],c[float] | D69: 2019-10-14
A70: 64 | B70: 造成[a]%的[b]伤害，自身每种增益的每一层会提高此技能[c]%的伤害。【aoe】 | C70: a[float],b[伤害类型],c[float] | D70: 2019-10-14 | E70: 2019/10/31修改特效
A71: 65 | B71: 造成[a]%的[b]伤害，[c]的概率造成眩晕，持续[d]秒。若未造成眩晕，则为目标施加增伤印记，最大[e]层。（减益印记，不可驱散） | C71: a[float],b[伤害类型],c[float],d[int],e[int] | D71: 2019-10-14 | E71: 2020/1/14修改效果
A72: 66 | B72: 造成[a]%的[b]伤害，[c]的概率附加一层增伤印记，最大[d]层。目标身上每层印记增加此技能[e]%的伤害。（减益印记，不可驱散） | C72: a[float],b[伤害类型],c[float],d[int],e[float] | D72: 2019-10-14 | E72: 2019/10/31修改特效
A73: 67 | B73: 造成[a]到[b]段[c]%的[d]伤害，每段伤害有[e]的概率改变[g]目标[f]秒技能cd。 | C73: a[int],b[int],c[float],d[伤害类型],e[float],f[float],g[改变类型] | D73: 2019-10-14
A74: 68 | B74: 造成[a]%的[b]伤害，附带持续伤害，每秒造成自身最大生命值[c]%的真实伤害，持续[d]秒。【aoe】 | C74: a[float],b[伤害类型],c[float],d[int] | D74: 2019-10-31 | E74: 2019/10/31修改特效
A75: 69 | B75: 损失自身[c]%的[d]的生命。 | C75: c[float],d[属性] | D75: 2019-10-14
A76: 70 | B76: 造成[a]%的[b]伤害，基于损失生命额外增加[c]%的技能伤害。【aoe】 | C76: a[float],b[伤害类型],c[float] | D76: 2019-10-14 | E76: 2019/10/31修改特效
A77: 71 | B77: 造成[a]到[b]段[c]%的[d]伤害，每段伤害有[e]的概率造成[f]，持续[g]秒。若目标处于[h]状态，则必定暴击。 | C77: a[int],b[int],c[float],d[伤害类型],e[float],f[控制状态],g[int],h[控制状态] | D77: 2019-10-14
A78: 72 | B78: [b]概率造成[c]，每秒造成[d]的[e]的伤害，持续[f]秒（属于减益）（13） | C78: b[float],c[持续伤害状态].d[float],e[伤害类型],f[int] | D78: 2019-10-14
A79: 73 | B79: 造成[a]%的[b]伤害，立即结算目标身上所有dot的剩余伤害。【aoe】 | C79: a[float],b[伤害类型] | D79: 2019-10-14 | E79: 2019/10/31修改特效
A80: 74 | B80: [a]概率瞬间恢复[b]*[c]%生命（24） | C80: a[float],b[属性],c[float] | D80: 2019-10-14
A81: 75 | B81: 造成[a]%的[b]伤害，计算伤害时额外计算[c]%的[d][e]，若该技能造成击杀，则有[f]%的概率清除自身CD | C81: a[float],b[伤害类型],c[float],d[属性],e[改变类型],f[float] | D81: 2019-10-14
A82: 76 | B82: 造成[a]%的[b]伤害，对拥有护盾的敌人额外造成[c]%伤害。 | C82: a[float],b[伤害类型],c[float] | D82: 2019-10-14
A83: 77 | B83: [a]%概率对敌方全体造成[b]，持续[c]秒，对技能目标概率上升[d]。（3） | C83: a[float],b[控制状态],c[int],d[float] | D83: 2019-10-14
A84: 78 | B84: 造成[a]%的[b]伤害，挂控制印记，最大[c]层。若暴击，[d]概率为敌方随机其他1人挂控制印记。（减益印记，可以驱散） | C84: a[float],b[伤害类型],c[int],d[float] | D84: 2019-10-14
A85: 79 | B85: [a]%概率[b]，持续[c]秒，每层控制印记提高[d]%概率。 | C85: a[float],b[控制状态],c[int],d[float] | D85: 2019-10-14
A86: 80 | B86: 添加[a]的[b]%护盾,持续[c]秒。为自身挂护盾印记，每层额外增加护盾值[d]%，印记最多[e]层。印记不显示。（增益印记，不可驱散） | C86: a[属性],b[float],c[int],d[float],e[int] | D86: 2019-10-14
A87: 81 | B87: 造成[a]%的[b]伤害，自身附加受控印记，受到控制时自身回复[c]*[d]%生命，印记持续[e]秒。（增益印记，不可驱散） | C87: a[float],b[伤害类型],c[属性],d[float],e[int] | D87: 2019-10-14
A88: 82 | B88: 代替相邻友军承受[a]%受到的伤害，持续[b]秒。自身死亡时该效果消失。 | C88: a[float],b[int] | D88: 2019-10-14
A89: 83 | B89: [a]概率驱散[b]个（0表示所有）[c]状态。 | C89: a[float],b[int],c[状态类型] | D89: 2019-10-14
A90: 84 | B90: 施加[a]的[b]%护盾，持续[c]秒。护盾被击破时，对击破者造成自身最大生命值[d]%的伤害。 | C90: a[属性],b[float],c[int],d[float] | D90: 2019-10-14 | E90: 2019/12/28修改特效
A91: 85 | B91: 施加[a]的[b]%护盾，持续[c]秒。拥有该护盾的角色，[f]改变[d]属性[e]%，[i]改变[g]属性[h]%。护盾消失时增益消失。 | C91: a[属性],b[float],c[int],d[属性],e[float],f[改变类型],g[属性],h[float],i[改变类型] | D91: 2019-10-14
A92: 86 | B92: [a]概率吸取[b]%的[c],持续[d]秒（属于增益），累积不高于自身该属性的[e]%（16） | C92: a[float],b[float],c[属性],d[int],e[float] | D92: 2019-10-14
A93: 87 | B93: 造成[a]%的[b]伤害，对没有增益的目标[c]概率造成[d]，持续[e]秒。 | C93: a[float],b[伤害类型],c[float],d[控制状态],e[int] | D93: 2019-10-14
A94: 88 | B94: 造成[a]%的[b]伤害，对拥有减益的目标[c]概率造成[d]，持续[e]秒。 | C94: a[float],b[伤害类型],c[float],d[控制状态],e[int] | D94: 2019-10-14
A95: 89 | B95: [a]概率在[d]秒里总共回复[e]次生命，每次恢复[b]*[c]%生命，。 | C95: a[float],b[属性],c[float],d[int],e[int] | D95: 2019-10-17
A96: 90 | B96: 造成[a]%的[b]伤害，如果击杀，则其他人受到[c]%的溢出伤害 | C96: a[float],b[伤害类型],c[float] | D96: 2019-10-17
A97: 91 | B97: [b]概率造成[c]，每次造成[d]的[e]的伤害，在[f]秒内造成[g]次伤害。 | C97: b[float],c[持续伤害状态].d[float],e[伤害类型],f[int],g[int] | D97: 2019-10-17
A98: 92 | B98: 造成[a]%的[b]伤害，若暴击，[g][c]%概率改变我方随机1人[d]属性[e]%,持续[f]秒。 | C98: a[float],b[伤害类型],c[float],d[属性],e[float],f[int],g[改变类型] | D98: 2019-10-21
A99: 93 | B99: 造成[a]%的[b]伤害，若暴击，[c]概率驱散[d]个（0表示所有）[e]状态。【aoe】 | C99: a[float],b[伤害类型],c[float],d[int],e[状态类型] | D99: 2019-10-21 | E99: 2019/10/31修改特效
A100: 94 | B100: 造成[a]%的[b]伤害，为自己施加一层印记，最大[c]层。（增益印记，不可驱散）（与95使用同一个印记） | C100: a[float],b[伤害类型],c[int] | D100: 2019-12-28
A101: 95 | B101: 造成[a]%的[b]伤害，自身每层印记增加此技能[c]%的伤害。（增益印记，不可驱散）（与94使用同一个印记） | C101: a[float],b[伤害类型],c[float] | D101: 2019-12-28
A102: 96 | B102: [b]概率造成[c]，每次造成[d]的真实伤害，在[e]秒内造成[f]次伤害。（91，异妖用）（属于减益，不可驱散） | C102: b[float],c[持续伤害状态].d[float],e[int],f[int] | D102: 2019-12-28
A103: 97 | B103: [a]概率在[c]秒里总共回复[d]次生命，每次恢复[b]生命。（89，异妖用）（属于增益，不可驱散） | C103: a[float],b[float],c[int],d[int] | D103: 2019-12-28
A104: 98 | B104: 造成[a]到[b]段[c]%的[d]伤害，每段伤害有[e]的概率造成[f]，持续[g]秒。若目标处于[h]状态，则必定暴击。【aoe】（71） | C104: a[int],b[int],c[float],d[伤害类型],e[float],f[控制状态],g[int],h[控制状态] | D104: 2020-01-14
A105: 99 | B105: 造成[a]%的[b]伤害，目标每减少[c]个伤害提升[d]% | C105: a{float]b[伤害类型]c[int]d[float] | D105: 2020-03-26
A106: 100 | B106: [a]改变[b]点怒气 | C106: a[改变类型]b[int] | D106: 2020-03-26
A107: 101 | B107: 对仇恨目标追加[a]次1技能（追加的1技能不回怒气） | C107: a[int] | D107: 2020-04-15
A108: 102 | B108: 造成[a]%的[b]伤害，如果目标数量大于[c]个，增加自身[d]点怒气（白字效果由被动效果167实现，参数c对应167中参数a，参数d对应167中参数b） | C108: a[float]b[伤害类型]c[int]d[int] | D108: 2020-03-26
A109: 103 | B109: 造成[a]%的[b]伤害，造成伤害的[c]%用于医疗当前生命百分比最低队友。 | C109: a[float]bint]c[float] | D109: 2020-03-26
A110: 104 | B110: 添加[a]%抵抗效果的减伤盾的持续[c]回合 | C110: a[float]c[int] | D110: 2020-04-03
A111: 105 | B111: 造成[a]%的[b]伤害如目标[c]则本次技能造成伤害增加[d]% | C111: a[float]b[伤害类型]c[持续伤害状态]d[float] | D111: 2020-03-30
A112: 106 | B112: [a]%概率[b]，持续[c]回合 改3 | C112: a[float]b[持续伤害状态]c[int] | D112: 2020-03-26
A113: 107 | B113: 造成[a]%的[b]伤害如目标[c]则有[d]%的概率[e]持续[f]回合 改21 | C113: a[float]b[伤害类型]c[持续伤害类型]d[float]e[控制状态]f[int] | D113: 2020-03-31
A114: 108 | B114: 造成[a]%的[b]伤害如果目标[c]且[d]低于[e]%则有[F]%概率将其秒杀 | C114: a[float]b[伤害类型]c[持续伤害类型]d[属性]e[float]f[float] | D114: 2020-04-02
A115: 109 | B115: 造成[a]%的[b]伤害每次击杀目标[c]改变[d]%自身的[e]属性 | C115: a[float]b[伤害类型]c[改变类型]d[float]e[属性] | D115: 2020-03-26
A116: 110 | B116: 给目标附加一个印记，印记效果是己方武将直接攻击敌方非该印记状态的目标时所造成的伤害的[a]会额外再平分给敌方所有处于该印记状态的目标,持续[b]回合 | C116: a[float]b[int] | D116: 2020-04-01
A117: 111 | B117: [a]%概率造成[b]，每回合造成[c]%自身[d]的伤害，持续[e]回合（可能和被动技能159效果联动） | C117: a[float]b[持续伤害状态].c[float],d[属性]e[int] | D117: 2020-03-31
A118: 112 | B118: 自身[a]增加[b]%持续[c]回合，效果可叠加，[d]改变 | C118: a[属性]b[float]c[int]d[改变类型] | D118: 2020-04-15
A119: 113 | B119: 造成[a]%的[b]伤害，对[c]有[d]%造成[e]，持续[f]回合 | C119: a[float],b[伤害类型],c[持续伤害状态],d[float],e[控制状态],f[int] | D119: 2020-04-09
A120: 114 | B120: 造成[a]%的[b]伤害如目标[c]则本次技能暴击率提高[d]% | C120: a[float]b[伤害类型]c[持续伤害状态]d[float] | D120: 2020-04-13
A121: 115 | B121: 回复自身最大生命值的[a]% | C121: a[float] | D121: 2020-04-17

Sheet 辅助
A1: [属性] | B1: 描述 | C1: [职业] | D1: 描述 | F1: [控制状态] | I1: [伤害类型] | M1: [持续回复状态] | P1: [持续伤害状态] | T1: [改变类型] | V1: a(当前属性) oa（战斗初始属性）b（增量） | AC1: [免疫buff] | AF1: [清除状态] | AI1: 元素 | AK1: 位置 | AM1: 战斗外数据
A2: 1 | B2: 攻击 | C2: 1 | D2: 战士 | F2: 0 | G2: 代表所有 | I2: 1 | J2: 物理伤害 | M2: 0 | N2: 代表所有 | Q2: 0 | R2: 代表所有 | U2: 1 | V2: 加算 | W2: a+b | X2: 增益 | AC2: 0 | AD2: 负面状态
A3: 2 | B3: 护甲 | C3: 2 | D3: 牧师 | F3: 1 | G3: 眩晕 | I3: 2 | J3: 魔法伤害 | M3: 1 | N3: 持续恢复生命 | Q3: 1 | R3: 灼烧 | U3: 2 | V3: 乘算 | W3: a+oa*b | X3: 增益 | Y3: 对基础属性其效果，不是当前属性 | AC3: 1 | AD3: 控制状态 | AF3: 1 | AG3: 持续恢复 | AI3: 1 | AJ3: 火 | AK3: 1 | AL3: 前排 | AM3: 1 | AN3: 夜明珠数量
A4: 3 | B4: 魔抗 | C4: 3 | D4: 法师 | F4: 2 | G4: 沉默 | Q4: 2 | R4: 中毒 | U4: 3 | V4: 减算 | W4: a-b | X4: 减益 | AC4: 2 | AD4: 持续伤害状态 | AF4: 2 | AG4: 护盾 | AI4: 2 | AJ4: 风 | AK4: 2 | AL4: 后排 | AM4: 2 | AN4: 当前猎妖之路层数
A5: 4 | B5: 速度 | C5: 4 | D5: 刺客 | F5: 3 | G5: 嘲讽 | Q5: 3 | R5: 流血 | U5: 4 | V5: 乘减算 | W5: a*(1-b) | X5: 减益 | Y5: 对当前属性其效果，不是基础属性 | AF5: 3 | AG5: 增益状态 | AI5: 3 | AJ5: 水 | AM5: 3 | AN5: 紫色圣物数量
A6: 5 | B6: 伤害加成 | C6: 5 | D6: 游侠 | F6: 4 | G6: 禁疗 | H6: （改状态下，技能目标选择无效，改为随机打，打击数量不变） | AF6: 4 | AG6: 减益状态 | AI6: 4 | AJ6: 地 | AM6: 4 | AN6: 橙色圣物数量
A7: 6 | B7: 伤害减免 | F7: 5 | G7: 致盲 | AF7: 5 | AG7: 持续伤害 | AI7: 5 | AJ7: 光 | AM7: 5 | AN7: 神秘药水使用次数
A8: 7 | B8: 命中 | F8: 6 | G8: 免疫控制状态 | AF8: 6 | AG8: 负面状态 | AI8: 6 | AJ8: 暗
A9: 8 | B9: 闪避 | F9: 7 | G9: 麻痹
A10: 9 | B10: 暴击率
A11: 10 | B11: 暴伤
A12: 11 | B12: 治疗系数
A13: 12 | B13: 最大生命
A14: 13 | B14: 当前生命
A15: 14 | B15: 受治疗系数
A16: 15 | B16: 抗暴率
A17: 16 | B17: 初始怒气
A24: 目标选择类型id | B24: 目标选择范围 | C24: 权重类型 | E24: 排序类型 | H24: 数量 | J24: 效果触发的间隔时间 = 效果持续时间/选取目标的个数 | P24: 状态类型定义
A25: 1我方 | B25: 0全体 | C25: 0随机 | E25: 0不排序 | H25: [1,理论最大数量] 0表示全体 | R25: hot（持续治疗状态）
A26: 2敌方 | B26: 1前排 | C26: 1生命 | E26: 1升序（从最低到最高） | H26: [1,理论最大数量] 0表示全体 | J26: 目前的问题是： | P26: 正面状态
A27: 3自身 | B27: 2后排 | C27: 2剩余血量百分比 | E27: 2降序（从最高到最低） | J27: 1仇恨切换的间隔时间根据效果持续时间定，是否影响收益 | R27: 增益状态（包括护盾）
A28: 4仇恨目标 | B28: 3对列 | C28: 3攻击 | H28: 权重类型为对位的情况下，数量3表示对位及相邻 | J28: 2嘲讽如何处理仇恨间隔问题
C29: 4防御 | R29: 控制状态
C30: 5护甲 | J30: skill = {cd, {效果1, 效果2, ...}} | P30: 负面状态 | R30: dot（持续伤害状态）
A31: 4仇恨目标=2敌方+1前排+8对位 | C31: 6魔抗 | J31: 效果={{目标id,目标id}, 效果总时间, 效果类型id, 效果参数1, 效果参数2, ...} | R31: 减益状态
C32: 7目标及相邻 | J32: passivity = {被动1, 被动2, ...}
C33: 8对位 | J33: 效果触发规则：
J34: 根据目标id确定作用目标，算出作用目标个数
C35: 权重选7时，目标不能选2 | J35: 根据个数，确定效果触发时间
J36: 举例:目标id->2003， (随机选取3名敌方) 效果持续时间->1.5秒
J37: 则3名目标效果延迟触发的时间分别为0.5秒，1秒，1.5秒
A39: 目标id计算公式=目标选择类型id*100000+ 选择范围*10000+ 权重类型*100+ 排序类型*10 + 数量
A40: 我方aoe技能统一 | B40: 100000
A41: 敌方aoe统一 | B41: 200000 | J41: 仇恨目标选取规则
A42: 敌方对位及相邻统一 | B42: 200803 | C42: 备注：若相邻单位死亡，不会另外选择目标 | J42: 1战斗开始时，我方默认仇恨目标为敌方第一个，敌方默认仇恨目标为我方第一个
A43: 我方对位及相邻统一 | B43: 100803 | C43: 备注：若相邻单位死亡，不会另外选择目标 | J43: 2选取仇恨目标时，若该目标已死亡，则默认从剩下的存活目标里选择第一个
J44: 3释放点击技，会自动把自身变成敌方的仇恨目标
J45: 4若滑技选取多个目标，根据效果触发规则，依次按照触发间隔改变仇恨目标
J46: 5为避免频繁切换，仇恨目标的切换有间隔时间，默认间隔时间为效果触发的间隔时间
J47: 6嘲讽时，敌方单体技能目标都换为嘲讽施法者
A48: 举例
A49: 敌方攻击力最高的2人 | B49: 200312
A50: 我方随机3人 | B50: 100003 | C50: 随机权重无需计算排序类型
A51: 自身 | B51: 300000 | C51: 自身类型无需计算数量，权重类型，排序类型
A52: 仇恨目标 | B52: 400000 | C52: 仇恨类型无需计算数量，权重类型，排序类型

Sheet Sheet1
A1: 10001 | B1: 石御霏 | F1: 10001 | G1: 1 | H1: 1 | I1: 1000111 | J1: =VLOOKUP(F1,$A:$B,2,0) -> 石御霏 | K1: 凌甲 | L1: 对敌方单体造成灵魂力%的水属性物理伤害， 对自身有%的概率(+效果命中)造成嘲讽，并提升护甲%，持续x秒。
A2: 10002 | B2: 楚恒 | F2: 10002 | G2: 1 | H2: 1 | I2: 1000211 | J2: =VLOOKUP(F2,$A:$B,2,0) -> 楚恒 | K2: 啸牙 | L2: 对敌方单体造成灵魂力%的风属性物理伤害， 对自身有%的概率(+效果命中)造成嘲讽，并提升灵魂力%，持续x秒。
A3: 10003 | B3: 夏侯鸿天 | F3: 10003 | G3: 1 | H3: 1 | I3: 1000311 | J3: =VLOOKUP(F3,$A:$B,2,0) -> 夏侯鸿天 | K3: 断鸿 | L3: 对敌方单体造成灵魂力%的地属性物理伤害， 将造成伤害的%转化为生命
A4: 10004 | B4: 应茹 | F4: 10004 | G4: 1 | H4: 1 | I4: 1000411 | J4: 应茹 | K4: 轻流 | L4: 对敌方单体造成灵魂力%的风属性魔法伤害， 为当前生命最低的x名队友在x秒内，每秒恢复灵魂力%的生命
A5: 10005 | B5: 端木葵 | F5: 10005 | G5: 1 | H5: 1 | I5: 1000511 | J5: 端木葵 | K5: 长槐琼灯 | L5: 对敌方单体造成灵魂力%的地属性魔法伤害， 恢复自身灵魂力%的生命， 持续x秒灵魂力增加25%
A6: 10006 | B6: 兰卿 | F6: 10006 | G6: 1 | H6: 1 | I6: 1000611 | J6: 兰卿 | K6: 阳炎破阵曲 | L6: 对敌方全体造成灵魂力%的火属性魔法伤害， 在x秒内，友方全体灵魂力增加%
A7: 10007 | B7: 靖之 | F7: 10007 | G7: 1 | H7: 1 | I7: 1000711 | J7: 靖之 | K7: 破甲裂 | L7: 对随机3名敌方造成灵魂力%的水属性物理伤害， 造成伤害后，在x秒内降低目标%的护甲
A8: 10008 | B8: 白梦凡 | F8: 10008 | G8: 1 | H8: 1 | I8: 1000811 | J8: 白梦凡 | K8: 幻境之瞳 | L8: 对敌方单体造成灵魂力%的光属性魔法伤害， 对生花类妖灵师造成额外%伤害。
A9: 10009 | B9: 祁菲 | F9: 10009 | G9: 1 | H9: 1 | I9: 1000911 | J9: 祁菲 | K9: 黑符 | L9: 对随机3名敌人造成灵魂力%的暗属性物理伤害， 造成伤害时，在x秒内对敌人造成燃烧效果， 燃烧效果持续期间，每秒造成灵魂力%的伤害。
A10: 10010 | B10: 颜祈佳 | F10: 10010 | G10: 1 | H10: 1 | I10: 1001011 | J10: 颜祈佳 | K10: 涡流 | L10: 对随机3名敌人造成灵魂力%的水属性魔法伤害， 对武卫类妖灵师造成额外%伤害。
A11: 10011 | B11: 叶延 | F11: 10011 | G11: 1 | H11: 1 | I11: 1001111 | J11: 叶延 | K11: 地灵咒 | L11: 对随机2名敌人造成灵魂力%的地属性魔法伤害， 造成伤害时，在x秒内对敌人造成中毒效果， 中毒效果持续期间，每秒造成灵魂力%的伤害。
A12: 10012 | B12: 慕容子期 | F12: 10012 | G12: 1 | H12: 1 | I12: 1001211 | J12: 慕容子期 | K12: 焚花 | L12: 对敌方单体造成灵魂力%的火属性物理伤害， 施展技能后，冷却时间增加x秒， 造成伤害时，为敌人附加1层中毒效果，最多叠加x层。
A13: 10013 | B13: 云灵 | F13: 10013 | G13: 1 | H13: 1 | I13: 1001311 | J13: 云灵 | K13: 黑泉利箭 | L13: 对敌方单体造成灵魂力%的地属性物理伤害， 在x秒内，暴击率增加%， 在x秒内，暴击伤害增加%。
A14: 10014 | B14: 耿陶 | F14: 10014 | G14: 1 | H14: 1 | I14: 1001411 | J14: 耿陶 | K14: 墨意 | L14: 对敌方2名敌人造成灵魂力%的暗属性物理伤害， 造成伤害时，有%的概率（+效果命中）降低其%护甲， 造成伤害时，有%的概率（+效果命中）沉默x秒。
A15: 10015 | B15: 云 | F15: 10015 | G15: 1 | H15: 1 | I15: 1001511 | J15: 云 | K15: 辉映 | L15: 对敌方单体造成灵魂力%的光属性魔法伤害， 将造成伤害的%转化为自身生命
A16: 10016 | B16: 岑以航 | F16: 10016 | G16: 1 | H16: 1 | I16: 1001611 | J16: 岑以航 | K16: 无明火 | L16: 对敌方单体造成灵魂力%的火属性魔法伤害， 对异常状态的敌人造成伤害时，无视敌人38%抗性
A17: 10017 | B17: 影蓟 | F17: 10017 | G17: 1 | H17: 1 | I17: 1001711 | J17: =VLOOKUP(F17,$A:$B,2,0) -> 影蓟 | K17: 晦影 | L17: 对随机2名敌人造成灵魂力%的暗属性魔法伤害， 造成伤害时，有%的概率（+效果命中）在x秒内护甲降低% 造成伤害时，有%的概率（+效果命中）沉默x秒
A18: 10018 | B18: 朱贺 | F18: 10018 | G18: 1 | H18: 1 | I18: 1001811 | J18: 朱贺 | K18: 天照 | L18: 对敌方单体造成灵魂力%的光属性魔法伤害， 造成伤害时，在x秒内对敌人造成流血效果， 流血效果持续期间，每秒造成灵魂力%的伤害。
A19: 10019 | B19: 孔谦 | F19: 10019 | G19: 1 | H19: 1 | I19: 1001911 | J19: 孔谦 | K19: 辰变 | L19: 对敌方单体造成灵魂力%的风属性物理伤害， 施展技能后，在x秒内增加自身%灵魂力，%的暴击伤害。
A20: 10020 | B20: 颜无雍 | F20: 10020 | G20: 1 | H20: 1 | I20: 1002011 | J20: 颜无雍 | K20: 天回 | L20: 对随机3名敌人造成灵魂力%的火属性物理伤害， 为随机恢复2名友方恢复灵魂力%的生命。
A21: 10021 | B21: 岑以璇 | F21: 10021 | G21: 1 | H21: 1 | I21: 1002111 | J21: 岑以璇 | K21: 水玉缚灵 | L21: 对敌方单体造成灵魂力%的水属性魔法伤害， 造成伤害时，有%的概率（+效果命中）眩晕x秒。
A22: 10022 | B22: 颜无诡 | F22: 10022 | G22: 1 | H22: 1 | I22: 1002211 | J22: 颜无诡 | K22: 煞气 | L22: 对敌方单体造成灵魂力%的风属性魔法伤害， 造成伤害时，有%的概率（+效果命中）眩晕x秒。
A23: 10023 | B23: 荧荧 | F23: 10023 | G23: 1 | H23: 1 | I23: 1002311 | J23: 荧荧 | K23: 雷罚 | L23: 对敌方单体造成灵魂力%的光属性魔法伤害， 在x秒内，抗性增加%
A24: 10024 | B24: 许槿然 | F24: 10024 | G24: 1 | H24: 1 | I24: 1002411 | J24: 许槿然 | K24: 风烈打 | L24: 对敌方单体造成灵魂力%的风属性物理伤害， 造成伤害时，有%的概率（+效果命中）眩晕x秒。
A25: 10025 | B25: 唐萱 | F25: 10025 | G25: 1 | H25: 1 | I25: 1002511 | J25: 唐萱 | K25: 宣火符 | L25: 对敌方单体造成灵魂力%的火属性魔法伤害， 造成伤害时，有%的概率（+效果命中）眩晕x秒。
A26: 10026 | B26: 孙晴 | F26: 10026 | G26: 1 | H26: 1 | I26: 1002611 | J26: 孙晴 | K26: 敲山震虎 | L26: 对随机2名敌方造成灵魂力%的光属性物理伤害， 对天罚类妖灵师造成额外%伤害。
A27: 10027 | B27: 宁月 | F27: 10027 | G27: 1 | H27: 1 | I27: 1002711 | J27: 宁月 | K27: 应援 | L27: 对敌方单体造成灵魂力%的光属性物理伤害， 为随机1名友方恢复灵魂力%的生命。
A28: 10028 | B28: 紫川 | F28: 10028 | G28: 1 | H28: 1 | I28: 1002811 | J28: 紫川 | K28: 落英之舞 | L28: 对随机2名敌方造成灵魂力%的光属性魔法伤害， 对武卫类妖灵师造成额外%伤害。
A29: 10029 | B29: 晏息 | F29: 10029 | G29: 1 | H29: 1 | I29: 1002911 | J29: =VLOOKUP(F29,$A:$B,2,0) -> 晏息 | K29: 昙华动地 | L29: 对随机2名敌方造成灵魂力%的地属性魔法伤害。
A30: 10030 | B30: 瑶瑶 | F30: 10030 | G30: 1 | H30: 1 | I30: 1003011 | J30: 瑶瑶 | K30: 碧砂 | L30: 对敌方单体造成灵魂力%的风属性魔法伤害， 造成伤害时，有%的概率（+效果命中）沉默x秒。
A31: 10031 | B31: 贾裴武 | F31: 10031 | G31: 1 | H31: 1 | I31: 1003111 | J31: 贾裴武 | K31: 破邪二连 | L31: 对随机2名敌方造成灵魂力%的地属性物理伤害， 对秘法类妖灵师造成额外%伤害。
A32: 10032 | B32: 雷燕 | F32: 10032 | G32: 1 | H32: 1 | I32: 1003211 | J32: 雷燕 | K32: 天雷地火 | L32: 对敌方单体造成灵魂力%的地属性物理伤害， 造成伤害时，在x秒内对敌人造成燃烧效果， 燃烧效果持续期间，每秒造成灵魂力%的伤害。
A33: 10033 | B33: 辛夷 | F33: 10033 | G33: 1 | H33: 1 | I33: 1003311 | J33: 辛夷 | K33: 隐遁 | L33: 对随机2名敌方造成灵魂力%的地属性物理伤害， 对武卫类妖灵师造成额外%伤害。
A34: 10034 | B34: 伏冥 | F34: 10034 | G34: 1 | H34: 1 | I34: 1003411 | J34: 伏冥 | K34: 辟魂 | L34: 对敌方单体造成灵魂力%的暗属性魔法伤害， 造成伤害时，有%的概率（+效果命中）眩晕x秒。
A35: 10035 | B35: 司空染 | F35: 10035 | G35: 1 | H35: 1 | I35: 1003511 | J35: 司空染 | K35: 血影迷踪 | L35: 对随机3名敌方造成灵魂力%的暗属性物理伤害， 有%的概率（+效果命中）对生花类妖灵师造成虚弱效果。
A36: 10036 | B36: 解幽 | F36: 10036 | G36: 1 | H36: 1 | I36: 1003611 | J36: 解幽 | K36: 深海冥灵 | L36: 对随机2名敌方造成灵魂力%的水属性魔法伤害， 对天罚类妖灵师造成额外%伤害。
A37: 10037 | B37: 薛苓 | F37: 10037 | G37: 1 | H37: 1 | I37: 1003711 | J37: 薛苓 | K37: 凝霜箭 | L37: 对敌方单体造成灵魂力%的水属性物理伤害， 在x秒内，自身抗性增加%
A38: 10038 | B38: 常申 | F38: 10038 | G38: 1 | H38: 1 | I38: 1003811 | J38: 常申 | K38: 火相炎流 | L38: 对敌方单体造成灵魂力%的火属性魔法伤害， 造成伤害时，武卫类妖灵师降低%抗性，降低%护甲。
A39: 10039 | B39: 呼延腾 | F39: 10039 | G39: 1 | H39: 1 | I39: 1003911 | J39: 呼延腾 | K39: 寒芒刺 | L39: 对敌方单体造成灵魂力%的水属性物理伤害， 造成伤害时，在x秒内降低敌人护甲%
A40: 10040 | B40: 冉宜 | F40: 10040 | G40: 1 | H40: 1 | I40: 1004011 | J40: 冉宜 | K40: 煌炎斩 | L40: 对随机2名敌人造成灵魂力%的火属性物理伤害， 对玄策类妖灵师造成额外%伤害。
A41: 10041 | B41: 孟灿 | F41: 10041 | G41: 1 | H41: 1 | I41: 1004111 | J41: 孟灿 | K41: 烈虎归山 | L41: 对敌方单体造成灵魂力%的火属性物理伤害， 造成伤害的%转化为生命
A42: 10042 | B42: 叶辽 | F42: 10042 | G42: 1 | H42: 1 | I42: 1004211 | J42: 叶辽 | K42: 寻鹰剑 | L42: 对随机2名敌人造成灵魂力%的风属性物理伤害。
A43: 10043 | B43: 乌廉 | F43: 10043 | G43: 1 | H43: 1 | I43: 1004311 | J43: 乌廉 | K43: 侵染之刃 | L43: 对敌方单体造成灵魂力%的水属性物理伤害， 造成伤害时，在x秒内对敌人造成中毒效果， 中毒效果持续期间，每秒造成灵魂力%的伤害。
A44: 10044 | B44: 姜燧 | F44: 10044 | G44: 1 | H44: 1 | I44: 1004411 | J44: 姜燧 | K44: 绝息 | L44: 对随机2名敌人造成灵魂力%的暗属性魔法伤害。 对生花类妖灵师造成额外%伤害。
A45: 10045 | B45: 苏可 | F45: 10045 | G45: 1 | H45: 1 | I45: 1004511 | J45: 苏可 | K45: 援应 | L45: 对敌方单体造成灵魂力%的风属性魔法伤害， 为生命比例最低的友方恢复灵魂力%的生命。
A46: 10046 | B46: 林越 | F46: 10046 | G46: 1 | H46: 1 | I46: 1004611 | J46: 林越 | K46: 光元刃 | L46: 对随机2名敌人造成灵魂力%的光属性魔法伤害。
A47: 10047 | B47: 赤肥肥 | F47: 10047 | G47: 1 | H47: 1 | I47: 1004711 | J47: 赤肥肥 | K47: 焦热 | L47: 对随机2名敌人造成灵魂力%的火属性物理伤害。
A48: 10048 | B48: 银肥肥 | F48: 10048 | G48: 1 | H48: 1 | I48: 1004811 | J48: 银肥肥 | K48: 吹息 | L48: 对敌方单体造成灵魂力%的风属性物理伤害。
A49: 10049 | B49: 苍肥肥 | F49: 10049 | G49: 1 | H49: 1 | I49: 1004911 | J49: 苍肥肥 | K49: 逐浪 | L49: 对敌方单体造成灵魂力%的水属性魔法伤害。
A50: 10050 | B50: 金肥肥 | F50: 10050 | G50: 1 | H50: 1 | I50: 1005011 | J50: 金肥肥 | K50: 岩落 | L50: 对随机2名敌人造成灵魂力%的地属性魔法伤害。
A51: 10051 | B51: 阳魔 | F51: 10051 | G51: 1 | H51: 1 | I51: 1005111 | J51: 阳魔 | K51: 震元 | L51: 对敌方单体造成灵魂力%的光属性物理伤害。
A52: 10052 | B52: 阴魔 | F52: 10052 | G52: 1 | H52: 1 | I52: 1005211 | J52: 阴魔 | K52: 混沌 | L52: 对敌方单体造成灵魂力%的暗属性魔法伤害。
F53: 10001 | G53: 2 | H53: 1 | I53: 1000121 | J53: =VLOOKUP(F53,$A:$B,2,0) -> 石御霏 | K53: 震岳 | L53: 对敌方单体造成灵魂力%的水属性物理伤害， 造成伤害时，有%的概率(+效果命中)眩晕x秒。
F54: 10002 | G54: 2 | H54: 1 | I54: 1000221 | J54: =VLOOKUP(F54,$A:$B,2,0) -> 楚恒 | K54: 白虎风涛 | L54: 对随机2名敌方造成灵魂力%的风属性物理伤害， 自身在x秒内获得最大生命%的伤害吸收盾 护盾消失时，对随机1名敌人造成护盾吸收伤害的80%。
F55: 10003 | G55: 2 | H55: 1 | I55: 1000321 | J55: =VLOOKUP(F55,$A:$B,2,0) -> 夏侯鸿天 | K55: 裂山贯云 | L55: 对敌方单体造成灵魂力%的地属性物理伤害， 造成伤害时，在x秒内抗性降低% 施展技能后，在x秒内有%的概率对自己施展嘲讽
F56: 10004 | G56: 2 | H56: 1 | I56: 1000421 | J56: 应茹 | K56: 天咏诀 | L56: 对敌方全体造成灵魂力%的风属性魔法伤害， 在x秒内，全体队友每秒恢复灵魂力%的生命 技能满级：每次恢复生命时，有%的概率额外恢复%生命
F57: 10005 | G57: 2 | H57: 1 | I57: 1000521 | J57: 端木葵 | K57: 百卉含英 | L57: 对随机3名敌人造成灵魂力%的地属性魔法伤害， 施展技能后，全体友方在x秒内，每秒持续恢复灵魂力%的生命
F58: 10006 | G58: 2 | H58: 1 | I58: 1000621 | J58: 兰卿 | K58: 焚心引 | L58: 对敌方全体造成灵魂力%的火属性魔法伤害， 受到伤害时，在x秒内灵魂力降低%
F59: 10007 | G59: 2 | H59: 1 | I59: 1000721 | J59: 靖之 | K59: 轮转之海 | L59: 对敌方单体造成灵魂力%的水属性物理伤害， 清除CD最长的1名友军立刻成可释放技能， 技能满级：造成伤害后，虚弱敌人x秒
F60: 10008 | G60: 2 | H60: 1 | I60: 1000821 | J60: 白梦凡 | K60: 无尽莲塘 | L60: 对敌方全体造成灵魂力%的光属性魔法伤害， 造成伤害时，有%的概率（+效果命中）晕眩敌方，持续x秒 技能满级：造成伤害后，降低目标暴击率，提升自己灵魂力
F61: 10009 | G61: 2 | H61: 1 | I61: 1000921 | J61: 祁菲 | K61: 炎冥锁狱 | L61: 对敌方全体造成灵魂力%的暗属性物理伤害， 对燃烧效果的敌人造成额外伤害
F62: 10010 | G62: 2 | H62: 1 | I62: 1001021 | J62: 颜祈佳 | K62: 龙兴之潮 | L62: 对敌方全体造成灵魂力%的水属性魔法伤害， 造成伤害后，有%的概率（+效果命中）增加随机2名敌人的冷却时间
F63: 10011 | G63: 2 | H63: 1 | I63: 1001121 | J63: 叶延 | K63: 缚傀诀 | L63: 对敌方全体造成灵魂力%的地属性魔法伤害， 对中毒目标有%的概率（+效果命中）眩晕x秒
F64: 10012 | G64: 2 | H64: 1 | I64: 1001221 | J64: 慕容子期 | K64: 断雨 | L64: 对血量最低的2名敌人造成灵魂力%的火属性物理伤害， 造成伤害后，有%的概率（+效果命中）使得对方x秒禁疗。
F65: 10013 | G65: 2 | H65: 1 | I65: 1001321 | J65: 云灵 | K65: 芙蓉箭雨 | L65: 对灵魂力最高的2名敌人造成灵魂力%的地属性物理伤害， 有%的概率造成一次额外伤害，最多追加x次
F66: 10014 | G66: 2 | H66: 1 | I66: 1001421 | J66: 耿陶 | K66: 画龙点睛 | L66: 对敌方随机4名敌人造成灵魂力%的暗属性物理伤害， 处于沉默状态的敌人额外造成%伤害。
F67: 10015 | G67: 2 | H67: 1 | I67: 1001521 | J67: 云 | K67: 幻影预兆 | L67: 对随机2名敌人造成灵魂力%的光属性魔法伤害， 造成伤害时，在x秒内偷取随机一名受到伤害的敌方%的灵魂力 技能升满：偷取灵魂力的效果持续期间，增加自身%的暴击伤害
F68: 10016 | G68: 2 | H68: 1 | I68: 1001621 | J68: 岑以航 | K68: 禁焰觉醒 | L68: 对随机3名敌方造成灵魂力%的火属性魔法伤害， 造成伤害时，若带有持续恢复效果，则额外造成%的伤害 自身在x秒内护甲降低%，灵魂力提升%
F69: 10017 | G69: 2 | H69: 1 | I69: 1001721 | J69: =VLOOKUP(F69,$A:$B,2,0) -> 影蓟 | K69: 常世之暗 | L69: 对随机4名敌人造成灵魂力%的暗属性魔法伤害， 对沉默敌人额外造成%伤害。
F70: 10018 | G70: 2 | H70: 1 | I70: 1001821 | J70: 朱贺 | K70: 剜心刺骨 | L70: 对生命比例最低的敌人造成灵魂力%的光属性魔法伤害， 造成伤害时，在x秒内偷取对方%的灵魂力， 造成伤害时，在x秒内对敌人造成流血效果， 流血效果持续期间，每秒造成灵魂力%的伤害。
F71: 10019 | G71: 2 | H71: 1 | I71: 1001921 | J71: 孔谦 | K71: 凭虚御风 | L71: 对敌方全体造成灵魂力%的风属性物理伤害， 施展技能后，减少我方全体基础冷却时间x秒。
F72: 10020 | G72: 2 | H72: 1 | I72: 1002021 | J72: 颜无雍 | K72: 白炎离火 | L72: 对敌方全体造成灵魂力%的火属性物理伤害， 全体友方x秒内受到伤害降低%
F73: 10021 | G73: 2 | H73: 1 | I73: 1002121 | J73: 岑以璇 | K73: 深渊流葬 | L73: 对敌方全体造成灵魂力%的水属性魔法伤害， 造成伤害时，有%的概率使得随机2名敌人x秒内致盲效果， 致盲效果持续期间，点击技与滑动技无法应用指定目标效果
F74: 10022 | G74: 2 | H74: 1 | I74: 1002221 | J74: 颜无诡 | K74: 侵风摧魂 | L74: 对生命比例最高的敌人造成灵魂力%的风属性魔法伤害 造成的击杀敌人时，敌方全体受到该次伤害%的伤害
F75: 10023 | G75: 2 | H75: 1 | I75: 1002321 | J75: 荧荧 | K75: 苍穹天雷 | L75: 对敌方全体造成灵魂力%的光属性魔法伤害， 造成伤害后，对目标附加荧光，最多叠加10层 对携带荧光的敌人造成伤害时，每层荧光使得本次伤害增加10%。
F76: 10024 | G76: 2 | H76: 1 | I76: 1002421 | J76: 许槿然
F77: 10025 | G77: 2 | H77: 1 | I77: 1002521 | J77: 唐萱
F78: 10026 | G78: 2 | H78: 1 | I78: 1002621 | J78: 孙晴 | K78: 崩雷式 | L78: 对随机3名敌方造成灵魂力%的光属性物理伤害， 针对眩晕目标，暴击时，造成额外%的伤害。
F79: 10027 | G79: 2 | H79: 1 | I79: 1002721 | J79: 宁月 | K79: 兔兔拳 | L79: 对随机2名敌方造成灵魂力%的光属性物理伤害， 在x秒内，自身暴击率提高%
F80: 10028 | G80: 2 | H80: 1 | I80: 1002821 | J80: 紫川 | K80: 月舞灵息 | L80: 对敌方单体造成灵魂力%的光属性魔法伤害， 造成伤害暴击时，降低1秒冷却时间。
F81: 10029 | G81: 2 | H81: 1 | I81: 1002921 | J81: =VLOOKUP(F81,$A:$B,2,0) -> 晏息
F82: 10030 | G82: 2 | H82: 1 | I82: 1003021 | J82: 瑶瑶
F83: 10031 | G83: 2 | H83: 1 | I83: 1003121 | J83: 贾裴武
F84: 10032 | G84: 2 | H84: 1 | I84: 1003221 | J84: 雷燕
F85: 10033 | G85: 2 | H85: 1 | I85: 1003321 | J85: 辛夷
F86: 10034 | G86: 2 | H86: 1 | I86: 1003421 | J86: 伏冥 | K86: 夺形之雾 | L86: 对敌方全体造成灵魂力%的暗属性魔法伤害。
F87: 10035 | G87: 2 | H87: 1 | I87: 1003521 | J87: 司空染 | K87: 沥血诛心 | L87: 对生命比例最低的敌方造成灵魂力%的暗属性物理伤害，
F88: 10036 | G88: 2 | H88: 1 | I88: 1003621 | J88: 解幽
F89: 10037 | G89: 2 | H89: 1 | I89: 1003721 | J89: 薛苓
F90: 10038 | G90: 2 | H90: 1 | I90: 1003821 | J90: 常申
F91: 10039 | G91: 2 | H91: 1 | I91: 1003921 | J91: 呼延腾
F92: 10040 | G92: 2 | H92: 1 | I92: 1004021 | J92: 冉宜
F93: 10041 | G93: 2 | H93: 1 | I93: 1004121 | J93: 孟灿
F94: 10042 | G94: 2 | H94: 1 | I94: 1004221 | J94: 叶辽
F95: 10043 | G95: 2 | H95: 1 | I95: 1004321 | J95: 乌廉
F96: 10044 | G96: 2 | H96: 1 | I96: 1004421 | J96: 姜燧 | K96: 化灵灭影 | L96: 对3名敌人造成灵魂力%的暗属性魔法伤害。 针对处于燃烧或流血状态的敌人，伤害增加%。
F97: 10045 | G97: 2 | H97: 1 | I97: 1004521 | J97: 苏可
F98: 10046 | G98: 2 | H98: 1 | I98: 1004621 | J98: 林越 | K98: 月曜闪裂 | L98: 对敌方单体造成灵魂力%的光属性魔法伤害， 造成伤害时，在x秒内对敌人造成流血效果， 流血效果持续期间，每秒造成灵魂力%的伤害。
F99: 10047 | G99: 2 | H99: 1 | I99: 1004721 | J99: 赤肥肥
F100: 10048 | G100: 2 | H100: 1 | I100: 1004821 | J100: 银肥肥
F101: 10049 | G101: 2 | H101: 1 | I101: 1004921 | J101: 苍肥肥
F102: 10050 | G102: 2 | H102: 1 | I102: 1005021 | J102: 金肥肥
F103: 10051 | G103: 2 | H103: 1 | I103: 1005121 | J103: 阳魔
F104: 10052 | G104: 2 | H104: 1 | I104: 1005221 | J104: 阴魔

Sheet Sheet2
B2: 1000114 | C2: =VLOOKUP($B2,SkillLogicConfig!$B:$F,2,FALSE) -> 400001#0.4|200000#0.4 | D2: =VLOOKUP($B2,SkillLogicConfig!$B:$F,3,FALSE) -> 1|3 | E2: =VLOOKUP($B2,SkillLogicConfig!$B:$F,4,FALSE) -> 4.3#1|0.8#3#10 | F2: =VLOOKUP($B2,SkillLogicConfig!$B:$F,5,FALSE) -> 0
B3: 1000124 | C3: =VLOOKUP($B3,SkillLogicConfig!$B:$F,2,FALSE) -> 0 | D3: =VLOOKUP($B3,SkillLogicConfig!$B:$F,3,FALSE) -> 0 | E3: =VLOOKUP($B3,SkillLogicConfig!$B:$F,4,FALSE) -> 0 | F3: =VLOOKUP($B3,SkillLogicConfig!$B:$F,5,FALSE) -> 0
B4: =B2+100 -> 1000214 | C4: =VLOOKUP($B4,SkillLogicConfig!$B:$F,2,FALSE) -> 220003#0.4|220003#0.4 | D4: =VLOOKUP($B4,SkillLogicConfig!$B:$F,3,FALSE) -> 81|3 | E4: =VLOOKUP($B4,SkillLogicConfig!$B:$F,4,FALSE) -> 4.3#1#1#2.7#5|0.6#3#10 | F4: =VLOOKUP($B4,SkillLogicConfig!$B:$F,5,FALSE) -> 0
B5: =B3+100 -> 1000224 | C5: =VLOOKUP($B5,SkillLogicConfig!$B:$F,2,FALSE) -> 400001#0.4|300001#0.4 | D5: =VLOOKUP($B5,SkillLogicConfig!$B:$F,3,FALSE) -> 1|82#4 | E5: =VLOOKUP($B5,SkillLogicConfig!$B:$F,4,FALSE) -> 5.8#1|0.5#6|6#0.4#6#1 | F5: =VLOOKUP($B5,SkillLogicConfig!$B:$F,5,FALSE) -> 45000
B6: 1000314 | C6: =VLOOKUP($B6,SkillLogicConfig!$B:$F,2,FALSE) -> 400001#0.4|200000#0.4 | D6: =VLOOKUP($B6,SkillLogicConfig!$B:$F,3,FALSE) -> 1|3 | E6: =VLOOKUP($B6,SkillLogicConfig!$B:$F,4,FALSE) -> 4.3#1|0.6#3#10 | F6: =VLOOKUP($B6,SkillLogicConfig!$B:$F,5,FALSE) -> 0
B7: 1000324 | C7: =VLOOKUP($B7,SkillLogicConfig!$B:$F,2,FALSE) -> 0 | D7: =VLOOKUP($B7,SkillLogicConfig!$B:$F,3,FALSE) -> 0 | E7: =VLOOKUP($B7,SkillLogicConfig!$B:$F,4,FALSE) -> 0 | F7: =VLOOKUP($B7,SkillLogicConfig!$B:$F,5,FALSE) -> 0
B8: 1000414 | C8: =VLOOKUP($B8,SkillLogicConfig!$B:$F,2,FALSE) -> 400001#0.4|100211#0.4 | D8: =VLOOKUP($B8,SkillLogicConfig!$B:$F,3,FALSE) -> 1|89#83 | E8: =VLOOKUP($B8,SkillLogicConfig!$B:$F,4,FALSE) -> 4.8#2|1#1#3.6#6#2|1#1#4 | F8: =VLOOKUP($B8,SkillLogicConfig!$B:$F,5,FALSE) -> 0
B9: 1000424 | C9: =VLOOKUP($B9,SkillLogicConfig!$B:$F,2,FALSE) -> 200000#0.4|100000#0.4 | D9: =VLOOKUP($B9,SkillLogicConfig!$B:$F,3,FALSE) -> 2#4|24 | E9: =VLOOKUP($B9,SkillLogicConfig!$B:$F,4,FALSE) -> 6#2|8#0.3#12#3|1#4.8 | F9: =VLOOKUP($B9,SkillLogicConfig!$B:$F,5,FALSE) -> 45000
B10: 1000514 | C10: =VLOOKUP($B10,SkillLogicConfig!$B:$F,2,FALSE) -> 220003#0.4 | D10: =VLOOKUP($B10,SkillLogicConfig!$B:$F,3,FALSE) -> 20 | E10: =VLOOKUP($B10,SkillLogicConfig!$B:$F,4,FALSE) -> 2.4#2#1#2 | F10: =VLOOKUP($B10,SkillLogicConfig!$B:$F,5,FALSE) -> 0
B11: 1000524 | C11: =VLOOKUP($B11,SkillLogicConfig!$B:$F,2,FALSE) -> 200000#0.4 | D11: =VLOOKUP($B11,SkillLogicConfig!$B:$F,3,FALSE) -> 20 | E11: =VLOOKUP($B11,SkillLogicConfig!$B:$F,4,FALSE) -> 3.6#2#1#2 | F11: =VLOOKUP($B11,SkillLogicConfig!$B:$F,5,FALSE) -> 45000
B12: 1000614 | C12: =VLOOKUP($B12,SkillLogicConfig!$B:$F,2,FALSE) -> 400001#0.4 | D12: =VLOOKUP($B12,SkillLogicConfig!$B:$F,3,FALSE) -> 91#1#25 | E12: =VLOOKUP($B12,SkillLogicConfig!$B:$F,4,FALSE) -> 1#1#0.2#2#10#5|2.4#2|1#0.1#10 | F12: =VLOOKUP($B12,SkillLogicConfig!$B:$F,5,FALSE) -> 0
B13: 1000624 | C13: =VLOOKUP($B13,SkillLogicConfig!$B:$F,2,FALSE) -> 200003#0.4 | D13: =VLOOKUP($B13,SkillLogicConfig!$B:$F,3,FALSE) -> 91#1#25 | E13: =VLOOKUP($B13,SkillLogicConfig!$B:$F,4,FALSE) -> 1#1#0.3#2#10#5|4#2|1#0.25#10 | F13: =VLOOKUP($B13,SkillLogicConfig!$B:$F,5,FALSE) -> 45000
B14: 1000714 | C14: =VLOOKUP($B14,SkillLogicConfig!$B:$F,2,FALSE) -> 400001#0.4|300001#0.4 | D14: =VLOOKUP($B14,SkillLogicConfig!$B:$F,3,FALSE) -> 1|9 | E14: =VLOOKUP($B14,SkillLogicConfig!$B:$F,4,FALSE) -> 4.3#2|1#3#10#0 | F14: =VLOOKUP($B14,SkillLogicConfig!$B:$F,5,FALSE) -> 0
B15: 1000724 | C15: =VLOOKUP($B15,SkillLogicConfig!$B:$F,2,FALSE) -> 0 | D15: =VLOOKUP($B15,SkillLogicConfig!$B:$F,3,FALSE) -> 0 | E15: =VLOOKUP($B15,SkillLogicConfig!$B:$F,4,FALSE) -> 0 | F15: =VLOOKUP($B15,SkillLogicConfig!$B:$F,5,FALSE) -> 0
B16: 1000814 | C16: =VLOOKUP($B16,SkillLogicConfig!$B:$F,2,FALSE) -> 400001#0.4 | D16: =VLOOKUP($B16,SkillLogicConfig!$B:$F,3,FALSE) -> 1 | E16: =VLOOKUP($B16,SkillLogicConfig!$B:$F,4,FALSE) -> 4.3#1 | F16: =VLOOKUP($B16,SkillLogicConfig!$B:$F,5,FALSE) -> 0
B17: 1000824 | C17: =VLOOKUP($B17,SkillLogicConfig!$B:$F,2,FALSE) -> 0 | D17: =VLOOKUP($B17,SkillLogicConfig!$B:$F,3,FALSE) -> 0 | E17: =VLOOKUP($B17,SkillLogicConfig!$B:$F,4,FALSE) -> 0 | F17: =VLOOKUP($B17,SkillLogicConfig!$B:$F,5,FALSE) -> 0
B18: 1000914 | C18: =VLOOKUP($B18,SkillLogicConfig!$B:$F,2,FALSE) -> 220003#0.7 | D18: =VLOOKUP($B18,SkillLogicConfig!$B:$F,3,FALSE) -> 65 | E18: =VLOOKUP($B18,SkillLogicConfig!$B:$F,4,FALSE) -> 2.9#2#0#0#10 | F18: =VLOOKUP($B18,SkillLogicConfig!$B:$F,5,FALSE) -> 0
B19: 1000924 | C19: =VLOOKUP($B19,SkillLogicConfig!$B:$F,2,FALSE) -> 220003#0.4 | D19: =VLOOKUP($B19,SkillLogicConfig!$B:$F,3,FALSE) -> 66 | E19: =VLOOKUP($B19,SkillLogicConfig!$B:$F,4,FALSE) -> 4.8#2#0#10#0.2 | F19: =VLOOKUP($B19,SkillLogicConfig!$B:$F,5,FALSE) -> 45000
B20: 1001014 | C20: =VLOOKUP($B20,SkillLogicConfig!$B:$F,2,FALSE) -> 400001#0.4 | D20: =VLOOKUP($B20,SkillLogicConfig!$B:$F,3,FALSE) -> 71 | E20: =VLOOKUP($B20,SkillLogicConfig!$B:$F,4,FALSE) -> 2#2#2.3#1#0.20#1#3#1 | F20: =VLOOKUP($B20,SkillLogicConfig!$B:$F,5,FALSE) -> 0
B21: 1001024 | C21: =VLOOKUP($B21,SkillLogicConfig!$B:$F,2,FALSE) -> 400001#0.8 | D21: =VLOOKUP($B21,SkillLogicConfig!$B:$F,3,FALSE) -> 98 | E21: =VLOOKUP($B21,SkillLogicConfig!$B:$F,4,FALSE) -> 4#4#2.3#1#0.25#1#3#1 | F21: =VLOOKUP($B21,SkillLogicConfig!$B:$F,5,FALSE) -> 45000
B22: 1001114 | C22: =VLOOKUP($B22,SkillLogicConfig!$B:$F,2,FALSE) -> 200211#0.4 | D22: =VLOOKUP($B22,SkillLogicConfig!$B:$F,3,FALSE) -> 90 | E22: =VLOOKUP($B22,SkillLogicConfig!$B:$F,4,FALSE) -> 5.9#2#1 | F22: =VLOOKUP($B22,SkillLogicConfig!$B:$F,5,FALSE) -> 0
B23: 1001124 | C23: =VLOOKUP($B23,SkillLogicConfig!$B:$F,2,FALSE) -> 0 | D23: =VLOOKUP($B23,SkillLogicConfig!$B:$F,3,FALSE) -> 0 | E23: =VLOOKUP($B23,SkillLogicConfig!$B:$F,4,FALSE) -> 0 | F23: =VLOOKUP($B23,SkillLogicConfig!$B:$F,5,FALSE) -> 0
B24: 1001214 | C24: =VLOOKUP($B24,SkillLogicConfig!$B:$F,2,FALSE) -> 220003#0.4 | D24: =VLOOKUP($B24,SkillLogicConfig!$B:$F,3,FALSE) -> 18 | E24: =VLOOKUP($B24,SkillLogicConfig!$B:$F,4,FALSE) -> 4.5#1#1.5 | F24: =VLOOKUP($B24,SkillLogicConfig!$B:$F,5,FALSE) -> 0
B25: 1001224 | C25: =VLOOKUP($B25,SkillLogicConfig!$B:$F,2,FALSE) -> 400001#0.4 | D25: =VLOOKUP($B25,SkillLogicConfig!$B:$F,3,FALSE) -> 50 | E25: =VLOOKUP($B25,SkillLogicConfig!$B:$F,4,FALSE) -> 7.2#1#0.1 | F25: =VLOOKUP($B25,SkillLogicConfig!$B:$F,5,FALSE) -> 45000
B26: 1001314 | C26: =VLOOKUP($B26,SkillLogicConfig!$B:$F,2,FALSE) -> 400001#0.4 | D26: =VLOOKUP($B26,SkillLogicConfig!$B:$F,3,FALSE) -> 94 | E26: =VLOOKUP($B26,SkillLogicConfig!$B:$F,4,FALSE) -> 4.3#1#5 | F26: =VLOOKUP($B26,SkillLogicConfig!$B:$F,5,FALSE) -> 0
B27: 1001324 | C27: =VLOOKUP($B27,SkillLogicConfig!$B:$F,2,FALSE) -> 400001#0.4 | D27: =VLOOKUP($B27,SkillLogicConfig!$B:$F,3,FALSE) -> 95 | E27: =VLOOKUP($B27,SkillLogicConfig!$B:$F,4,FALSE) -> 6#1#0.1 | F27: =VLOOKUP($B27,SkillLogicConfig!$B:$F,5,FALSE) -> 45000
B28: 1001414 | C28: =VLOOKUP($B28,SkillLogicConfig!$B:$F,2,FALSE) -> 400001#0.4|300001#0.4 | D28: =VLOOKUP($B28,SkillLogicConfig!$B:$F,3,FALSE) -> 63|4#4#42 | E28: =VLOOKUP($B28,SkillLogicConfig!$B:$F,4,FALSE) -> 4.5#2#1|1#0.1#0#2|9#0.05#0#1|0.7#0.25#10 | F28: =VLOOKUP($B28,SkillLogicConfig!$B:$F,5,FALSE) -> 0
B29: 1001424 | C29: =VLOOKUP($B29,SkillLogicConfig!$B:$F,2,FALSE) -> 200000#0.4 | D29: =VLOOKUP($B29,SkillLogicConfig!$B:$F,3,FALSE) -> 64 | E29: =VLOOKUP($B29,SkillLogicConfig!$B:$F,4,FALSE) -> 3.8#2#0.1 | F29: =VLOOKUP($B29,SkillLogicConfig!$B:$F,5,FALSE) -> 45000
B30: 1001514 | C30: =VLOOKUP($B30,SkillLogicConfig!$B:$F,2,FALSE) -> 400001#1.1 | D30: =VLOOKUP($B30,SkillLogicConfig!$B:$F,3,FALSE) -> 62 | E30: =VLOOKUP($B30,SkillLogicConfig!$B:$F,4,FALSE) -> 5#5#0.72#1 | F30: =VLOOKUP($B30,SkillLogicConfig!$B:$F,5,FALSE) -> 0
B31: 1001524 | C31: =VLOOKUP($B31,SkillLogicConfig!$B:$F,2,FALSE) -> 0 | D31: =VLOOKUP($B31,SkillLogicConfig!$B:$F,3,FALSE) -> 0 | E31: =VLOOKUP($B31,SkillLogicConfig!$B:$F,4,FALSE) -> 0 | F31: =VLOOKUP($B31,SkillLogicConfig!$B:$F,5,FALSE) -> 0
B32: 1001614 | C32: =VLOOKUP($B32,SkillLogicConfig!$B:$F,2,FALSE) -> 400001#0.4|100321#0.4 | D32: =VLOOKUP($B32,SkillLogicConfig!$B:$F,3,FALSE) -> 1#91|4 | E32: =VLOOKUP($B32,SkillLogicConfig!$B:$F,4,FALSE) -> 2.4#1|1#1#0.24#2#10#5|1#0.1#10#2 | F32: =VLOOKUP($B32,SkillLogicConfig!$B:$F,5,FALSE) -> 0
B33: 1001624 | C33: =VLOOKUP($B33,SkillLogicConfig!$B:$F,2,FALSE) -> 400001#0.4|100321#0.4 | D33: =VLOOKUP($B33,SkillLogicConfig!$B:$F,3,FALSE) -> 1#91|4#4 | E33: =VLOOKUP($B33,SkillLogicConfig!$B:$F,4,FALSE) -> 4.2#1|1#1#0.6#2#10#5|1#0.1#10#2|9#0.15#10#1 | F33: =VLOOKUP($B33,SkillLogicConfig!$B:$F,5,FALSE) -> 45000
B34: 1001714 | C34: =VLOOKUP($B34,SkillLogicConfig!$B:$F,2,FALSE) -> 400001#0.4|300001#0.4 | D34: =VLOOKUP($B34,SkillLogicConfig!$B:$F,3,FALSE) -> 1|84 | E34: =VLOOKUP($B34,SkillLogicConfig!$B:$F,4,FALSE) -> 2#2|1#1.8#5#0.1 | F34: =VLOOKUP($B34,SkillLogicConfig!$B:$F,5,FALSE) -> 0
B35: 1001724 | C35: =VLOOKUP($B35,SkillLogicConfig!$B:$F,2,FALSE) -> 400001#0.4|100803#0.4 | D35: =VLOOKUP($B35,SkillLogicConfig!$B:$F,3,FALSE) -> 1|84 | E35: =VLOOKUP($B35,SkillLogicConfig!$B:$F,4,FALSE) -> 2.9#2|1#1.8#5#0.1 | F35: =VLOOKUP($B35,SkillLogicConfig!$B:$F,5,FALSE) -> 45000
B36: 1001814 | C36: =VLOOKUP($B36,SkillLogicConfig!$B:$F,2,FALSE) -> 400001#0.4|300001#0.4|100211#0.4 | D36: =VLOOKUP($B36,SkillLogicConfig!$B:$F,3,FALSE) -> 1|24|24 | E36: =VLOOKUP($B36,SkillLogicConfig!$B:$F,4,FALSE) -> 2.9#2|1#1.8|1#1.8 | F36: =VLOOKUP($B36,SkillLogicConfig!$B:$F,5,FALSE) -> 0
B37: 1001824 | C37: =VLOOKUP($B37,SkillLogicConfig!$B:$F,2,FALSE) -> 400001#0.4|100211#0.4 | D37: =VLOOKUP($B37,SkillLogicConfig!$B:$F,3,FALSE) -> 1|24 | E37: =VLOOKUP($B37,SkillLogicConfig!$B:$F,4,FALSE) -> 4.6#2|1#6 | F37: =VLOOKUP($B37,SkillLogicConfig!$B:$F,5,FALSE) -> 45000
B38: 1001914 | C38: =VLOOKUP($B38,SkillLogicConfig!$B:$F,2,FALSE) -> 200000#0.4 | D38: =VLOOKUP($B38,SkillLogicConfig!$B:$F,3,FALSE) -> 2#4 | E38: =VLOOKUP($B38,SkillLogicConfig!$B:$F,4,FALSE) -> 2.2#1|1#0.2#5#4 | F38: =VLOOKUP($B38,SkillLogicConfig!$B:$F,5,FALSE) -> 0
B39: 1001924 | C39: =VLOOKUP($B39,SkillLogicConfig!$B:$F,2,FALSE) -> 0 | D39: =VLOOKUP($B39,SkillLogicConfig!$B:$F,3,FALSE) -> 0 | E39: =VLOOKUP($B39,SkillLogicConfig!$B:$F,4,FALSE) -> 0 | F39: =VLOOKUP($B39,SkillLogicConfig!$B:$F,5,FALSE) -> 0
B40: 1002014 | C40: =VLOOKUP($B40,SkillLogicConfig!$B:$F,2,FALSE) -> 400001#0.4|300001#0.4 | D40: =VLOOKUP($B40,SkillLogicConfig!$B:$F,3,FALSE) -> 1|4#4 | E40: =VLOOKUP($B40,SkillLogicConfig!$B:$F,4,FALSE) -> 4.3#1|2#0.6#6#2|3#0.6#6#2 | F40: =VLOOKUP($B40,SkillLogicConfig!$B:$F,5,FALSE) -> 0
B41: 1002024 | C41: =VLOOKUP($B41,SkillLogicConfig!$B:$F,2,FALSE) -> 0 | D41: =VLOOKUP($B41,SkillLogicConfig!$B:$F,3,FALSE) -> 0 | E41: =VLOOKUP($B41,SkillLogicConfig!$B:$F,4,FALSE) -> 0 | F41: =VLOOKUP($B41,SkillLogicConfig!$B:$F,5,FALSE) -> 0
B42: 1002114 | C42: =VLOOKUP($B42,SkillLogicConfig!$B:$F,2,FALSE) -> 400001#0.4 | D42: =VLOOKUP($B42,SkillLogicConfig!$B:$F,3,FALSE) -> 1#3 | E42: =VLOOKUP($B42,SkillLogicConfig!$B:$F,4,FALSE) -> 4.8#2|0.8#1#3 | F42: =VLOOKUP($B42,SkillLogicConfig!$B:$F,5,FALSE) -> 0
B43: 1002124 | C43: =VLOOKUP($B43,SkillLogicConfig!$B:$F,2,FALSE) -> 0 | D43: =VLOOKUP($B43,SkillLogicConfig!$B:$F,3,FALSE) -> 0 | E43: =VLOOKUP($B43,SkillLogicConfig!$B:$F,4,FALSE) -> 0 | F43: =VLOOKUP($B43,SkillLogicConfig!$B:$F,5,FALSE) -> 0
B44: 1002214 | C44: =VLOOKUP($B44,SkillLogicConfig!$B:$F,2,FALSE) -> 200000#0.4 | D44: =VLOOKUP($B44,SkillLogicConfig!$B:$F,3,FALSE) -> 2 | E44: =VLOOKUP($B44,SkillLogicConfig!$B:$F,4,FALSE) -> 2.2#2 | F44: =VLOOKUP($B44,SkillLogicConfig!$B:$F,5,FALSE) -> 0
B45: 1002224 | C45: =VLOOKUP($B45,SkillLogicConfig!$B:$F,2,FALSE) -> 0 | D45: =VLOOKUP($B45,SkillLogicConfig!$B:$F,3,FALSE) -> 0 | E45: =VLOOKUP($B45,SkillLogicConfig!$B:$F,4,FALSE) -> 0 | F45: =VLOOKUP($B45,SkillLogicConfig!$B:$F,5,FALSE) -> 0
B46: 1002314 | C46: =VLOOKUP($B46,SkillLogicConfig!$B:$F,2,FALSE) -> 400001#0.4 | D46: =VLOOKUP($B46,SkillLogicConfig!$B:$F,3,FALSE) -> 1 | E46: =VLOOKUP($B46,SkillLogicConfig!$B:$F,4,FALSE) -> 4.3#1 | F46: =VLOOKUP($B46,SkillLogicConfig!$B:$F,5,FALSE) -> 0
B47: 1002324 | C47: =VLOOKUP($B47,SkillLogicConfig!$B:$F,2,FALSE) -> 0 | D47: =VLOOKUP($B47,SkillLogicConfig!$B:$F,3,FALSE) -> 0 | E47: =VLOOKUP($B47,SkillLogicConfig!$B:$F,4,FALSE) -> 0 | F47: =VLOOKUP($B47,SkillLogicConfig!$B:$F,5,FALSE) -> 0

Sheet Sheet3
C2: 50 | D2: 01 | E2: 01 | F2: 500101
C3: 50 | D3: 01 | E3: 02 | F3: 500102
C4: 50 | D4: 01 | E4: 03 | F4: 500103
C5: 50 | D5: 01 | E5: 04 | F5: 500104
C6: 50 | D6: 01 | E6: 05 | F6: 500105
C7: 50 | D7: 01 | E7: 06 | F7: 500106
C8: 50 | D8: 01 | E8: 07 | F8: 500107
C9: 50 | D9: 01 | E9: 08 | F9: 500108
C10: 50 | D10: 01 | E10: 09 | F10: 500109
C11: 50 | D11: 01 | E11: 10 | F11: 500110
C12: 50 | D12: 02 | E12: 01 | F12: 500201
C13: 50 | D13: 02 | E13: 02 | F13: 500202
C14: 50 | D14: 02 | E14: 03 | F14: 500203
C15: 50 | D15: 02 | E15: 04 | F15: 500204
C16: 50 | D16: 02 | E16: 05 | F16: 500205
C17: 50 | D17: 02 | E17: 06 | F17: 500206
C18: 50 | D18: 02 | E18: 07 | F18: 500207
C19: 50 | D19: 02 | E19: 08 | F19: 500208
C20: 50 | D20: 02 | E20: 09 | F20: 500209
C21: 50 | D21: 02 | E21: 10 | F21: 500210
C22: 50 | D22: 03 | E22: 01 | F22: 500301
C23: 50 | D23: 03 | E23: 02 | F23: 500302
C24: 50 | D24: 03 | E24: 03 | F24: 500303
C25: 50 | D25: 03 | E25: 04 | F25: 500304
C26: 50 | D26: 03 | E26: 05 | F26: 500305
C27: 50 | D27: 03 | E27: 06 | F27: 500306
C28: 50 | D28: 03 | E28: 07 | F28: 500307
C29: 50 | D29: 03 | E29: 08 | F29: 500308
C30: 50 | D30: 03 | E30: 09 | F30: 500309
C31: 50 | D31: 03 | E31: 10 | F31: 500310
C32: 50 | D32: 04 | E32: 01 | F32: 500401
C33: 50 | D33: 04 | E33: 02 | F33: 500402
C34: 50 | D34: 04 | E34: 03 | F34: 500403
C35: 50 | D35: 04 | E35: 04 | F35: 500404
C36: 50 | D36: 04 | E36: 05 | F36: 500405
C37: 50 | D37: 04 | E37: 06 | F37: 500406
C38: 50 | D38: 04 | E38: 07 | F38: 500407
C39: 50 | D39: 04 | E39: 08 | F39: 500408
C40: 50 | D40: 04 | E40: 09 | F40: 500409
C41: 50 | D41: 04 | E41: 10 | F41: 500410
C42: 50 | D42: 05 | E42: 01 | F42: 500501
C43: 50 | D43: 05 | E43: 02 | F43: 500502
C44: 50 | D44: 05 | E44: 03 | F44: 500503
C45: 50 | D45: 05 | E45: 04 | F45: 500504
C46: 50 | D46: 05 | E46: 05 | F46: 500505
C47: 50 | D47: 05 | E47: 06 | F47: 500506
C48: 50 | D48: 05 | E48: 07 | F48: 500507
C49: 50 | D49: 05 | E49: 08 | F49: 500508
C50: 50 | D50: 05 | E50: 09 | F50: 500509
C51: 50 | D51: 05 | E51: 10 | F51: 500510
C52: 50 | D52: 06 | E52: 01 | F52: 500601
C53: 50 | D53: 06 | E53: 02 | F53: 500602
C54: 50 | D54: 06 | E54: 03 | F54: 500603
C55: 50 | D55: 06 | E55: 04 | F55: 500604
C56: 50 | D56: 06 | E56: 05 | F56: 500605
C57: 50 | D57: 06 | E57: 06 | F57: 500606
C58: 50 | D58: 06 | E58: 07 | F58: 500607
C59: 50 | D59: 06 | E59: 08 | F59: 500608
C60: 50 | D60: 06 | E60: 09 | F60: 500609
C61: 50 | D61: 06 | E61: 10 | F61: 500610
C62: 50 | D62: 07 | E62: 01 | F62: 500701
C63: 50 | D63: 07 | E63: 02 | F63: 500702
C64: 50 | D64: 07 | E64: 03 | F64: 500703
C65: 50 | D65: 07 | E65: 04 | F65: 500704
C66: 50 | D66: 07 | E66: 05 | F66: 500705
C67: 50 | D67: 07 | E67: 06 | F67: 500706
C68: 50 | D68: 07 | E68: 07 | F68: 500707
C69: 50 | D69: 07 | E69: 08 | F69: 500708
C70: 50 | D70: 07 | E70: 09 | F70: 500709
C71: 50 | D71: 07 | E71: 10 | F71: 500710
C72: 50 | D72: 08 | E72: 01 | F72: 500801
C73: 50 | D73: 08 | E73: 02 | F73: 500802
C74: 50 | D74: 08 | E74: 03 | F74: 500803
C75: 50 | D75: 08 | E75: 04 | F75: 500804
C76: 50 | D76: 08 | E76: 05 | F76: 500805
C77: 50 | D77: 08 | E77: 06 | F77: 500806
C78: 50 | D78: 08 | E78: 07 | F78: 500807
C79: 50 | D79: 08 | E79: 08 | F79: 500808
C80: 50 | D80: 08 | E80: 09 | F80: 500809
C81: 50 | D81: 08 | E81: 10 | F81: 500810
C82: 50 | D82: 09 | E82: 01 | F82: 500901
C83: 50 | D83: 09 | E83: 02 | F83: 500902
C84: 50 | D84: 09 | E84: 03 | F84: 500903
C85: 50 | D85: 09 | E85: 04 | F85: 500904
C86: 50 | D86: 09 | E86: 05 | F86: 500905
C87: 50 | D87: 09 | E87: 06 | F87: 500906
C88: 50 | D88: 09 | E88: 07 | F88: 500907
C89: 50 | D89: 09 | E89: 08 | F89: 500908
C90: 50 | D90: 09 | E90: 09 | F90: 500909
C91: 50 | D91: 09 | E91: 10 | F91: 500910
C92: 50 | D92: 10 | E92: 01 | F92: 501001
C93: 50 | D93: 10 | E93: 02 | F93: 501002
C94: 50 | D94: 10 | E94: 03 | F94: 501003
C95: 50 | D95: 10 | E95: 04 | F95: 501004
C96: 50 | D96: 10 | E96: 05 | F96: 501005
C97: 50 | D97: 10 | E97: 06 | F97: 501006
C98: 50 | D98: 10 | E98: 07 | F98: 501007
C99: 50 | D99: 10 | E99: 08 | F99: 501008
C100: 50 | D100: 10 | E100: 09 | F100: 501009
C101: 50 | D101: 10 | E101: 10 | F101: 501010

Sheet 结构解析规则
A1: 技能数据结构 | B1: {cd, {目标id1, 效果时间, 效果1, 效果2, ...},{目标id2, 效果时间, 效果3, 效果4, ...}, ...}
A2: 效果 = {效果类型id, 效果参数1, 效果参数2, ...}
A4: Target | B4: Effect | C4: EffectValue | D4: CD
A5: mut,float#float,2 | B5: mut,int#int,2 | C5: mut,float#float,2 | D5: float
A6: 40001#0.7|30011#0.7 | B6: 1|3#4#4 | C6: 1.08#1|1#3#10|2#0.3#3#1|3#0.3#3#1 | D6: 2
A8: json = { 2,{40001,0.7,{1,1.08,1}},{30011,0.7,{3,1,3,10},{4,2,0.3,3,1},{4,3,0.3,3,1}}}
A9: json = {
B10: 2,
B11: {
C12: 40001,
C13: 0.7,
C14: {
D15: 1,
D16: 1.08,
D17: 1
C18: }
B19: },
B20: {
C21: 30011,
C22: 0.7,
C23: {
D24: 3,
D25: 1,
D26: 3,
D27: 10
C28: },
C29: {
D30: 4,
D31: 2,
D32: 0.3,
D33: 3,
D34: 1
C35: },
C36: {
D37: 4,
D38: 3,
D39: 0.3,
D40: 3,
D41: 1
C42: }
B43: }
A44: }

Sheet 怪物技能辅助表
B1: Id | C1: Target | D1: Effect | E1: EffectValue | F1: CD | J1: NoUse
B2: int | C2: mut,float#float,2 | D2: mut,int#int,2 | E2: mut,float#float,2 | F2: float | J2: string
B3: 2 | C3: 2 | D3: 2 | E3: 2 | F3: 2 | J3: 0
B4: 技能id | C4: 目标选择 | D4: 技能效果组合 | E4: 技能效果参数 | F4: 上滑技施法时间 | J4: 备注
A5: 默认值 | B5: 0 | C5: null | D5: null | E5: null | F5: 0
A6: 正确性校对
A7: 校对值
A9: 怪物技能 | G9: 辅助列 | I9: c出手速度
N11: 伤害目标人数 | P11: 伤害系数1 | Q11: 伤害段数 | S11: 伤害系数2
A12: 20001 | B12: 20001 | C12: 20003#0.7 | D12: 1 | E12: 0.45#1 | F12: 0 | G12: =ROUNDUP((B12-20000)/3,0) -> 1 | H12: =INDEX(#REF!,MATCH(I12,#REF!,0),1) ->  | I12: 3 | J12: =REPLACE(E12,1,FIND("#",E12,1)-1,S12) -> 0.416#1 | K12: 1.248 | N12: =IF(--LEFT(C12,1)=2,MID(C12,5,1),"") -> 3 | O12: =IF(N12="",K12,IF(N12=0,ROUND(K12/3,3),ROUND(K12/N12,3))) -> 0.416 | P12: =IFERROR(O12,ROUND(K12/3,3)) -> 0.416 | Q12: =FIND("6",D12,1) ->  | R12: =IFERROR(IF(Q12=1,ROUNDUP((MID(E12,3,1)+MID(E12,1,1))/2,0),1),0) -> 0 | S12: =IF(R12=0,P12,ROUND(P12/R12,3)) -> 0.416
A13: 20002 | B13: 20002 | C13: 20003#0.7 | D13: 1 | E13: 0.45#1 | F13: 0 | G13: =ROUNDUP((B13-20000)/3,0) -> 1 | H13: =INDEX(#REF!,MATCH(I13,#REF!,0),1) ->  | I13: 5 | J13: =REPLACE(E13,1,FIND("#",E13,1)-1,S13) -> 0.693#1 | K13: 2.08 | N13: =IF(--LEFT(C13,1)=2,MID(C13,5,1),"") -> 3 | O13: =IF(N13="",K13,IF(N13=0,ROUND(K13/3,3),ROUND(K13/N13,3))) -> 0.693 | P13: =IFERROR(O13,ROUND(K13/3,3)) -> 0.693 | Q13: =FIND("6",D13,1) ->  | R13: =IFERROR(IF(Q13=1,ROUNDUP((MID(E13,3,1)+MID(E13,1,1))/2,0),1),0) -> 0 | S13: =IF(R13=0,P13,ROUND(P13/R13,3)) -> 0.693
A14: 20003 | B14: 20003 | C14: 20003#0.7 | D14: 1 | E14: 0.45#1 | F14: 0 | G14: 1 | H14: =INDEX(#REF!,MATCH(I14,#REF!,0),1) ->  | I14: 7.9 | J14: 1.095#1 | K14: 3.2864 | N14: 3 | O14: 1.095 | P14: 1.095 | R14: 0 | S14: 1.095
A15: 20004 | B15: 20004 | C15: 40001#0.7 | D15: 1 | E15: 1.25#1 | F15: 0 | G15: 2 | H15: =INDEX(#REF!,MATCH(I15,#REF!,0),1) ->  | I15: =I12 -> 3 | J15: 1.248#1 | K15: 1.248 | O15: 1.248 | P15: 1.248 | R15: 0 | S15: 1.248
A16: 20005 | B16: 20005 | C16: 40001#0.7 | D16: 1 | E16: 1.25#1 | F16: 0 | G16: 2 | H16: =INDEX(#REF!,MATCH(I16,#REF!,0),1) ->  | I16: 5 | J16: 2.08#1 | K16: 2.08 | O16: 2.08 | P16: 2.08 | R16: 0 | S16: 2.08
A17: 20006 | B17: 20006 | C17: 40001#0.7 | D17: 1 | E17: 1.25#1 | F17: 0 | G17: 2 | H17: =INDEX(#REF!,MATCH(I17,#REF!,0),1) ->  | I17: 7.9 | J17: 3.2864#1 | K17: 3.2864 | O17: 3.2864 | P17: 3.2864 | R17: 0 | S17: 3.2864
A18: 20007 | B18: 20007 | C18: 40001#0.7 | D18: 1#13 | E18: 0.8#1|1#0.1#2#5 | F18: 0 | G18: 3 | H18: =INDEX(#REF!,MATCH(I18,#REF!,0),1) ->  | I18: 3 | J18: 1.248#1|1#0.1#2#5 | K18: 1.248 | O18: 1.248 | P18: 1.248 | R18: 0 | S18: 1.248
A19: 20008 | B19: 20008 | C19: 40001#0.7 | D19: 1#13 | E19: 0.8#1|1#0.1#2#5 | F19: 0 | G19: 3 | H19: =INDEX(#REF!,MATCH(I19,#REF!,0),1) ->  | I19: 5 | J19: 2.08#1|1#0.1#2#5 | K19: 2.08 | O19: 2.08 | P19: 2.08 | R19: 0 | S19: 2.08
A20: 20009 | B20: 20009 | C20: 40001#0.7 | D20: 1#13 | E20: 0.8#1|1#0.1#2#5 | F20: 0 | G20: 3 | H20: =INDEX(#REF!,MATCH(I20,#REF!,0),1) ->  | I20: 7.9 | J20: 3.2864#1|1#0.1#2#5 | K20: 3.2864 | O20: 3.2864 | P20: 3.2864 | R20: 0 | S20: 3.2864
A21: 20010 | B21: 20010 | C21: 40001#0.7 | D21: 1 | E21: 1.25#1 | F21: 0 | G21: 4 | H21: =INDEX(#REF!,MATCH(I21,#REF!,0),1) ->  | I21: 3 | J21: 1.248#1 | K21: 1.248 | O21: 1.248 | P21: 1.248 | R21: 0 | S21: 1.248
A22: 20011 | B22: 20011 | C22: 40001#0.7 | D22: 1 | E22: 1.25#1 | F22: 0 | G22: 4 | H22: =INDEX(#REF!,MATCH(I22,#REF!,0),1) ->  | I22: 5 | J22: 2.08#1 | K22: 2.08 | O22: 2.08 | P22: 2.08 | R22: 0 | S22: 2.08
A23: 20012 | B23: 20012 | C23: 40001#0.7 | D23: 1 | E23: 1.25#1 | F23: 0 | G23: 4 | H23: =INDEX(#REF!,MATCH(I23,#REF!,0),1) ->  | I23: 7.9 | J23: 3.2864#1 | K23: 3.2864 | O23: 3.2864 | P23: 3.2864 | R23: 0 | S23: 3.2864
A24: 20013 | B24: 20013 | C24: 40001#0.7 | D24: 1#3 | E24: 1#1|0.3#1#3 | F24: 0 | G24: 5 | H24: 灵巧 | I24: 3 | J24: 1.248#1|0.3#1#3 | K24: 1.248 | O24: 1.248 | P24: 1.248 | R24: 0 | S24: 1.248
A25: 20014 | B25: 20014 | C25: 40001#0.7 | D25: 1#3 | E25: 1#1|0.3#1#3 | F25: 0 | G25: 5 | H25: 均衡 | I25: 5 | J25: 2.08#1|0.3#1#3 | K25: 2.08 | O25: 2.08 | P25: 2.08 | R25: 0 | S25: 2.08
A26: 20015 | B26: 20015 | C26: 40001#0.7 | D26: 1#3 | E26: 1#1|0.3#1#3 | F26: 0 | G26: 5 | H26: 强壮 | I26: 7.9 | J26: 3.2864#1|0.3#1#3 | K26: 3.2864 | O26: 3.2864 | P26: 3.2864 | R26: 0 | S26: 3.2864
A27: 20016 | B27: 20016 | C27: 40001#0.7 | D27: 1 | E27: 1.25#2 | F27: 0 | G27: 6 | H27: 灵巧 | I27: 3 | J27: 1.248#2 | K27: 1.248 | O27: 1.248 | P27: 1.248 | R27: 0 | S27: 1.248
A28: 20017 | B28: 20017 | C28: 40001#0.7 | D28: 1 | E28: 1.25#2 | F28: 0 | G28: 6 | H28: 均衡 | I28: 5 | J28: 2.08#2 | K28: 2.08 | O28: 2.08 | P28: 2.08 | R28: 0 | S28: 2.08
A29: 20018 | B29: 20018 | C29: 40001#0.7 | D29: 1 | E29: 1.25#2 | F29: 0 | G29: 6 | H29: 强壮 | I29: 7.9 | J29: 3.2864#2 | K29: 3.2864 | O29: 3.2864 | P29: 3.2864 | R29: 0 | S29: 3.2864
A30: 20019 | B30: 20019 | C30: 40001#0.7 | D30: 1#13 | E30: 0.8#1|2#0.1#2#5 | F30: 0 | G30: 7 | H30: 灵巧 | I30: 3 | J30: 1.248#1|2#0.1#2#5 | K30: 1.248 | O30: 1.248 | P30: 1.248 | R30: 0 | S30: 1.248
A31: 20020 | B31: 20020 | C31: 40001#0.7 | D31: 1#13 | E31: 0.8#1|2#0.1#2#5 | F31: 0 | G31: 7 | H31: 均衡 | I31: 5 | J31: 2.08#1|2#0.1#2#5 | K31: 2.08 | O31: 2.08 | P31: 2.08 | R31: 0 | S31: 2.08
A32: 20021 | B32: 20021 | C32: 40001#0.7 | D32: 1#13 | E32: 0.8#1|2#0.1#2#5 | F32: 0 | G32: 7 | H32: 强壮 | I32: 7.9 | J32: 3.2864#1|2#0.1#2#5 | K32: 3.2864 | O32: 3.2864 | P32: 3.2864 | R32: 0 | S32: 3.2864
A33: 20022 | B33: 20022 | C33: 20000#0.7 | D33: 2#4 | E33: 0.2#1|1#0.1#4#4 | F33: 0 | G33: 8 | H33: 灵巧 | I33: 3 | J33: 0.416#1|1#0.1#4#4 | K33: 1.248 | N33: 0 | P33: 0.416 | R33: 0 | S33: 0.416
A34: 20023 | B34: 20023 | C34: 20000#0.7 | D34: 2#4 | E34: 0.2#1|1#0.1#4#4 | F34: 0 | G34: 8 | H34: 均衡 | I34: 5 | J34: 0.693#1|1#0.1#4#4 | K34: 2.08 | N34: 0 | P34: 0.693 | R34: 0 | S34: 0.693
A35: 20024 | B35: 20024 | C35: 20000#0.7 | D35: 2#4 | E35: 0.2#1|1#0.1#4#4 | F35: 0 | G35: 8 | H35: 强壮 | I35: 7.9 | J35: 1.095#1|1#0.1#4#4 | K35: 3.2864 | N35: 0 | P35: 1.095 | R35: 0 | S35: 1.095
A36: 20025 | B36: 20025 | C36: 40001#0.7 | D36: 1#13 | E36: 0.8#1|3#0.1#1#5 | F36: 0 | G36: 9 | H36: 灵巧 | I36: 3 | J36: 1.248#1|3#0.1#1#5 | K36: 1.248 | O36: 1.248 | P36: 1.248 | R36: 0 | S36: 1.248
A37: 20026 | B37: 20026 | C37: 40001#0.7 | D37: 1#13 | E37: 0.8#1|3#0.1#1#5 | F37: 0 | G37: 9 | H37: 均衡 | I37: 5 | J37: 2.08#1|3#0.1#1#5 | K37: 2.08 | O37: 2.08 | P37: 2.08 | R37: 0 | S37: 2.08
A38: 20027 | B38: 20027 | C38: 40001#0.7 | D38: 1#13 | E38: 0.8#1|3#0.1#1#5 | F38: 0 | G38: 9 | H38: 强壮 | I38: 7.9 | J38: 3.2864#1|3#0.1#1#5 | K38: 3.2864 | O38: 3.2864 | P38: 3.2864 | R38: 0 | S38: 3.2864
A39: 20028 | B39: 20028 | C39: 40001#0.7|30011#0.7 | D39: 1|5 | E39: 1#1|1#0.15#4 | F39: 0 | G39: 10 | H39: 灵巧 | I39: 3 | J39: 1.248#1|1#0.15#4 | K39: 1.248 | O39: 1.248 | P39: 1.248 | R39: 0 | S39: 1.248
A40: 20029 | B40: 20029 | C40: 40001#0.7|30011#0.7 | D40: 1|5 | E40: 1#1|1#0.15#4 | F40: 0 | G40: 10 | H40: 均衡 | I40: 5 | J40: 2.08#1|1#0.15#4 | K40: 2.08 | O40: 2.08 | P40: 2.08 | R40: 0 | S40: 2.08
A41: 20030 | B41: 20030 | C41: 40001#0.7|30011#0.7 | D41: 1|5 | E41: 1#1|1#0.15#4 | F41: 0 | G41: 10 | H41: 强壮 | I41: 7.9 | J41: 3.2864#1|1#0.15#4 | K41: 3.2864 | O41: 3.2864 | P41: 3.2864 | R41: 0 | S41: 3.2864
A42: 20031 | B42: 20031 | C42: 20000#0.7 | D42: 2#4 | E42: 0.3#1|4#0.1#4#4 | F42: 0 | G42: 11 | H42: 灵巧 | I42: 3 | J42: 0.416#1|4#0.1#4#4 | K42: 1.248 | N42: 0 | P42: 0.416 | R42: 0 | S42: 0.416
A43: 20032 | B43: 20032 | C43: 20000#0.7 | D43: 2#4 | E43: 0.3#1|4#0.1#4#4 | F43: 0 | G43: 11 | H43: 均衡 | I43: 5 | J43: 0.693#1|4#0.1#4#4 | K43: 2.08 | N43: 0 | P43: 0.693 | R43: 0 | S43: 0.693
A44: 20033 | B44: 20033 | C44: 20000#0.7 | D44: 2#4 | E44: 0.3#1|4#0.1#4#4 | F44: 0 | G44: 11 | H44: 强壮 | I44: 7.9 | J44: 1.095#1|4#0.1#4#4 | K44: 3.2864 | N44: 0 | P44: 1.095 | R44: 0 | S44: 1.095
A45: 20034 | B45: 20034 | C45: 40001#0.7 | D45: 1#13 | E45: 0.8#1|3#0.1#1#5 | F45: 0 | G45: 12 | H45: 灵巧 | I45: 3 | J45: =REPLACE(E45,1,FIND("#",E45,1)-1,S45) -> 1.248#1|3#0.1#1#5 | K45: 1.248 | N45: =IF(--LEFT(C45,1)=2,MID(C45,5,1),"") ->  | O45: 1.248 | P45: 1.248 | R45: 0 | S45: 1.248
A46: 20035 | B46: 20035 | C46: 40001#0.7 | D46: 1#13 | E46: 0.8#1|3#0.1#1#5 | F46: 0 | G46: =ROUNDUP((B46-20000)/3,0) -> 12 | H46: 均衡 | I46: 5 | J46: 2.08#1|3#0.1#1#5 | K46: 2.08 | O46: 2.08 | P46: 2.08 | R46: 0 | S46: 2.08
A47: 20036 | B47: 20036 | C47: 40001#0.7 | D47: 1#13 | E47: 0.8#1|3#0.1#1#5 | F47: 0 | G47: 12 | H47: 强壮 | I47: 7.9 | J47: 3.2864#1|3#0.1#1#5 | K47: 3.2864 | O47: 3.2864 | P47: 3.2864 | R47: 0 | S47: 3.2864
A48: 20037 | B48: 20037 | C48: 40001#0.7 | D48: 1#3 | E48: 1#1|0.3#2#3 | F48: 0 | G48: 13 | H48: 灵巧 | I48: 3 | J48: 1.248#1|0.3#2#3 | K48: 1.248 | O48: 1.248 | P48: 1.248 | R48: 0 | S48: 1.248
A49: 20038 | B49: 20038 | C49: 40001#0.7 | D49: 1#3 | E49: 1#1|0.3#2#3 | F49: 0 | G49: 13 | H49: 均衡 | I49: 5 | J49: 2.08#1|0.3#2#3 | K49: 2.08 | O49: 2.08 | P49: 2.08 | R49: 0 | S49: 2.08
A50: 20039 | B50: 20039 | C50: 40001#0.7 | D50: 1#3 | E50: 1#1|0.3#2#3 | F50: 0 | G50: 13 | H50: 强壮 | I50: 7.9 | J50: 3.2864#1|0.3#2#3 | K50: 3.2864 | O50: 3.2864 | P50: 3.2864 | R50: 0 | S50: 3.2864
A51: 20040 | B51: 20040 | C51: 40001#0.7 | D51: 1#13 | E51: 0.8#2|2#0.1#2#5 | F51: 0 | G51: 14 | H51: 灵巧 | I51: 3 | J51: 1.248#2|2#0.1#2#5 | K51: 1.248 | O51: 1.248 | P51: 1.248 | R51: 0 | S51: 1.248
A52: 20041 | B52: 20041 | C52: 40001#0.7 | D52: 1#13 | E52: 0.8#2|2#0.1#2#5 | F52: 0 | G52: 14 | H52: 均衡 | I52: 5 | J52: 2.08#2|2#0.1#2#5 | K52: 2.08 | O52: 2.08 | P52: 2.08 | R52: 0 | S52: 2.08
A53: 20042 | B53: 20042 | C53: 40001#0.7 | D53: 1#13 | E53: 0.8#2|2#0.1#2#5 | F53: 0 | G53: 14 | H53: 强壮 | I53: 7.9 | J53: 3.2864#2|2#0.1#2#5 | K53: 3.2864 | O53: 3.2864 | P53: 3.2864 | R53: 0 | S53: 3.2864
A54: 20043 | B54: 20043 | C54: 20000#0.7 | D54: 2#4 | E54: 0.3#1|4#0.1#4#4 | F54: 0 | G54: 15 | H54: 灵巧 | I54: 3 | J54: 0.416#1|4#0.1#4#4 | K54: 1.248 | N54: 0 | P54: 0.416 | R54: 0 | S54: 0.416
A55: 20044 | B55: 20044 | C55: 20000#0.7 | D55: 2#4 | E55: 0.3#1|4#0.1#4#4 | F55: 0 | G55: 15 | H55: 均衡 | I55: 5 | J55: 0.693#1|4#0.1#4#4 | K55: 2.08 | N55: 0 | P55: 0.693 | R55: 0 | S55: 0.693
A56: 20045 | B56: 20045 | C56: 20000#0.7 | D56: 2#4 | E56: 0.3#1|4#0.1#4#4 | F56: 0 | G56: 15 | H56: 强壮 | I56: 7.9 | J56: 1.095#1|4#0.1#4#4 | K56: 3.2864 | N56: 0 | P56: 1.095 | R56: 0 | S56: 1.095
A57: 20046 | B57: 20046 | C57: 20000#0.7 | D57: 2#4 | E57: 0.3#1|2#0.2#4#4 | F57: 0 | G57: 16 | H57: 灵巧 | I57: 3 | J57: 0.416#1|2#0.2#4#4 | K57: 1.248 | N57: 0 | P57: 0.416 | R57: 0 | S57: 0.416
A58: 20047 | B58: 20047 | C58: 20000#0.7 | D58: 2#4 | E58: 0.3#1|2#0.2#4#4 | F58: 0 | G58: 16 | H58: 均衡 | I58: 5 | J58: 0.693#1|2#0.2#4#4 | K58: 2.08 | N58: 0 | P58: 0.693 | R58: 0 | S58: 0.693
A59: 20048 | B59: 20048 | C59: 20000#0.7 | D59: 2#4 | E59: 0.3#1|2#0.2#4#4 | F59: 0 | G59: 16 | H59: 强壮 | I59: 7.9 | J59: 1.095#1|2#0.2#4#4 | K59: 3.2864 | N59: 0 | P59: 1.095 | R59: 0 | S59: 1.095
A60: 20049 | B60: 20049 | C60: 40001#0.7 | D60: 10 | E60: 1.25#1#0.2 | F60: 0 | G60: 17 | H60: 灵巧 | I60: 3 | J60: 1.248#1#0.2 | K60: 1.248 | O60: 1.248 | P60: 1.248 | R60: 0 | S60: 1.248
A61: 20050 | B61: 20050 | C61: 40001#0.7 | D61: 10 | E61: 1.25#1#0.2 | F61: 0 | G61: 17 | H61: 均衡 | I61: 5 | J61: 2.08#1#0.2 | K61: 2.08 | O61: 2.08 | P61: 2.08 | R61: 0 | S61: 2.08
A62: 20051 | B62: 20051 | C62: 40001#0.7 | D62: 10 | E62: 1.25#1#0.2 | F62: 0 | G62: 17 | H62: 强壮 | I62: 7.9 | J62: 3.2864#1#0.2 | K62: 3.2864 | O62: 3.2864 | P62: 3.2864 | R62: 0 | S62: 3.2864
A63: 20052 | B63: 20052 | C63: 20000#0.7 | D63: 2 | E63: 0.3#2 | F63: 0 | G63: 18 | H63: 灵巧 | I63: 3 | J63: 0.416#2 | K63: 1.248 | N63: 0 | P63: 0.416 | R63: 0 | S63: 0.416
A64: 20053 | B64: 20053 | C64: 20000#0.7 | D64: 2 | E64: 0.3#2 | F64: 0 | G64: 18 | H64: 均衡 | I64: 5 | J64: 0.693#2 | K64: 2.08 | N64: 0 | P64: 0.693 | R64: 0 | S64: 0.693
A65: 20054 | B65: 20054 | C65: 20000#0.7 | D65: 2 | E65: 0.3#2 | F65: 0 | G65: 18 | H65: 强壮 | I65: 7.9 | J65: 1.095#2 | K65: 3.2864 | N65: 0 | P65: 1.095 | R65: 0 | S65: 1.095
A66: 20055 | B66: 20055 | C66: 40001#0.7|10000#0.7 | D66: 1|24 | E66: 0.8#2|1#0.3 | F66: 0 | G66: 19 | H66: 灵巧 | I66: 3 | J66: 1.248#2|1#0.3 | K66: 1.248 | O66: 1.248 | P66: 1.248 | R66: 0 | S66: 1.248
A67: 20056 | B67: 20056 | C67: 40001#0.7|10000#0.7 | D67: 1|24 | E67: 0.8#2|1#0.3 | F67: 0 | G67: 19 | H67: 均衡 | I67: 5 | J67: 2.08#2|1#0.3 | K67: 2.08 | O67: 2.08 | P67: 2.08 | R67: 0 | S67: 2.08
A68: 20057 | B68: 20057 | C68: 40001#0.7|10000#0.7 | D68: 1|24 | E68: 0.8#2|1#0.3 | F68: 0 | G68: 19 | H68: 强壮 | I68: 7.9 | J68: 3.2864#2|1#0.3 | K68: 3.2864 | O68: 3.2864 | P68: 3.2864 | R68: 0 | S68: 3.2864
A69: 20058 | B69: 20058 | C69: 40001#0.7 | D69: 1#3 | E69: 1#1|0.3#1#3 | F69: 0 | G69: 20 | H69: 灵巧 | I69: 3 | J69: 1.248#1|0.3#1#3 | K69: 1.248 | O69: 1.248 | P69: 1.248 | R69: 0 | S69: 1.248
A70: 20059 | B70: 20059 | C70: 40001#0.7 | D70: 1#3 | E70: 1#1|0.3#1#3 | F70: 0 | G70: 20 | H70: 均衡 | I70: 5 | J70: 2.08#1|0.3#1#3 | K70: 2.08 | O70: 2.08 | P70: 2.08 | R70: 0 | S70: 2.08
A71: 20060 | B71: 20060 | C71: 40001#0.7 | D71: 1#3 | E71: 1#1|0.3#1#3 | F71: 0 | G71: 20 | H71: 强壮 | I71: 7.9 | J71: 3.2864#1|0.3#1#3 | K71: 3.2864 | O71: 3.2864 | P71: 3.2864 | R71: 0 | S71: 3.2864
A72: 20061 | B72: 20061 | C72: 20000#0.7 | D72: 2 | E72: 0.45#1 | F72: 0 | G72: 21 | H72: 灵巧 | I72: 3 | J72: 0.416#1 | K72: 1.248 | N72: 0 | P72: 0.416 | R72: 0 | S72: 0.416
A73: 20062 | B73: 20062 | C73: 20000#0.7 | D73: 2 | E73: 0.45#1 | F73: 0 | G73: 21 | H73: 均衡 | I73: 5 | J73: 0.693#1 | K73: 2.08 | N73: 0 | P73: 0.693 | R73: 0 | S73: 0.693
A74: 20063 | B74: 20063 | C74: 20000#0.7 | D74: 2 | E74: 0.45#1 | F74: 0 | G74: 21 | H74: 强壮 | I74: 7.9 | J74: 1.095#1 | K74: 3.2864 | N74: 0 | P74: 1.095 | R74: 0 | S74: 1.095
A75: 20064 | B75: 20064 | C75: 40001#0.7 | D75: 1#3 | E75: 1.25#1|0.3#2#3 | F75: 0 | G75: 22 | H75: 灵巧 | I75: 3 | J75: 1.248#1|0.3#2#3 | K75: 1.248 | O75: 1.248 | P75: 1.248 | R75: 0 | S75: 1.248
A76: 20065 | B76: 20065 | C76: 40001#0.7 | D76: 1#3 | E76: 1.25#1|0.3#2#3 | F76: 0 | G76: 22 | H76: 均衡 | I76: 5 | J76: 2.08#1|0.3#2#3 | K76: 2.08 | O76: 2.08 | P76: 2.08 | R76: 0 | S76: 2.08
A77: 20066 | B77: 20066 | C77: 40001#0.7 | D77: 1#3 | E77: 1.25#1|0.3#2#3 | F77: 0 | G77: 22 | H77: 强壮 | I77: 7.9 | J77: =REPLACE(E77,1,FIND("#",E77,1)-1,S77) -> 3.2864#1|0.3#2#3 | K77: 3.2864 | O77: =IF(N77="",K77,IF(N77=0,ROUND(K77/3,3),ROUND(K77/N77,3))) -> 3.2864 | P77: =IFERROR(O77,ROUND(K77/3,3)) -> 3.2864 | Q77: =FIND("6",D77,1) ->  | R77: =IFERROR(IF(Q77=1,ROUNDUP((MID(E77,3,1)+MID(E77,1,1))/2,0),1),0) -> 0 | S77: =IF(R77=0,P77,ROUND(P77/R77,3)) -> 3.2864
A78: 20067 | B78: 20067 | C78: 40001#0.7 | D78: 1#4 | E78: 1.25#1|2#0.2#4#4 | F78: 0 | G78: =ROUNDUP((B78-20000)/3,0) -> 23 | H78: 灵巧 | I78: 3 | J78: 1.248#1|2#0.2#4#4 | K78: 1.248 | O78: 1.248 | P78: 1.248 | R78: 0 | S78: 1.248
A79: 20068 | B79: 20068 | C79: 40001#0.7 | D79: 1#4 | E79: 1.25#1|2#0.2#4#4 | F79: 0 | G79: 23 | H79: 均衡 | I79: =I76 -> 5 | J79: 2.08#1|2#0.2#4#4 | K79: 2.08 | O79: 2.08 | P79: 2.08 | R79: 0 | S79: 2.08
A80: 20069 | B80: 20069 | C80: 40001#0.7 | D80: 1#4 | E80: 1.25#1|2#0.2#4#4 | F80: 0 | G80: 23 | H80: 强壮 | I80: 7.9 | J80: 3.2864#1|2#0.2#4#4 | K80: 3.2864 | O80: 3.2864 | P80: 3.2864 | R80: 0 | S80: 3.2864
A81: 20070 | B81: 20070 | C81: 40001#0.7 | D81: 13#1 | E81: 2#0.1#2#5|0.8#1 | F81: 0 | G81: 24 | H81: 灵巧 | I81: 3 | J81: 1.248#0.1#2#5|0.8#1 | K81: 1.248 | O81: 1.248 | P81: 1.248 | R81: 0 | S81: 1.248
A82: 20071 | B82: 20071 | C82: 40001#0.7 | D82: 13#1 | E82: 2#0.1#2#5|0.8#1 | F82: 0 | G82: 24 | H82: 均衡 | I82: 5 | J82: 2.08#0.1#2#5|0.8#1 | K82: 2.08 | O82: 2.08 | P82: 2.08 | R82: 0 | S82: 2.08
A83: 20072 | B83: 20072 | C83: 40001#0.7 | D83: 13#1 | E83: 2#0.1#2#5|0.8#1 | F83: 0 | G83: 24 | H83: 强壮 | I83: 7.9 | J83: 3.2864#0.1#2#5|0.8#1 | K83: 3.2864 | O83: 3.2864 | P83: 3.2864 | R83: 0 | S83: 3.2864
A84: 20073 | B84: 20073 | C84: 40001#0.7|10000#0.7 | D84: 1|4 | E84: 1#2|1#0.2#4#2 | F84: 0 | G84: 25 | H84: 灵巧 | I84: 3 | J84: 1.248#2|1#0.2#4#2 | K84: 1.248 | O84: 1.248 | P84: 1.248 | R84: 0 | S84: 1.248
A85: 20074 | B85: 20074 | C85: 40001#0.7|10000#0.7 | D85: 1|4 | E85: 1#2|1#0.2#4#2 | F85: 0 | G85: 25 | H85: 均衡 | I85: 5 | J85: 2.08#2|1#0.2#4#2 | K85: 2.08 | O85: 2.08 | P85: 2.08 | R85: 0 | S85: 2.08
A86: 20075 | B86: 20075 | C86: 40001#0.7|10000#0.7 | D86: 1|4 | E86: 1#2|1#0.2#4#2 | F86: 0 | G86: 25 | H86: 强壮 | I86: 7.9 | J86: 3.2864#2|1#0.2#4#2 | K86: 3.2864 | O86: 3.2864 | P86: 3.2864 | R86: 0 | S86: 3.2864
A87: 20076 | B87: 20076 | C87: 20003#0.7 | D87: 1 | E87: 0.45#1 | F87: 0 | G87: 26 | H87: 灵巧 | I87: 3 | J87: 0.416#1 | K87: 1.248 | N87: 3 | O87: 0.416 | P87: 0.416 | R87: 0 | S87: 0.416
A88: 20077 | B88: 20077 | C88: 20003#0.7 | D88: 1 | E88: 0.45#1 | F88: 0 | G88: 26 | H88: 均衡 | I88: 5 | J88: 0.693#1 | K88: 2.08 | N88: 3 | O88: 0.693 | P88: 0.693 | R88: 0 | S88: 0.693
A89: 20078 | B89: 20078 | C89: 20003#0.7 | D89: 1 | E89: 0.45#1 | F89: 0 | G89: 26 | H89: 强壮 | I89: 7.9 | J89: 1.095#1 | K89: 3.2864 | N89: 3 | O89: 1.095 | P89: 1.095 | R89: 0 | S89: 1.095
A90: 20079 | B90: 20079 | C90: 40001#0.7|40000#0.7 | D90: 1|3 | E90: 1.25#1|1#3#25 | F90: 0 | G90: 27 | H90: 灵巧 | I90: 3 | J90: 1.248#1|1#3#25 | K90: 1.248 | O90: 1.248 | P90: 1.248 | R90: 0 | S90: 1.248
A91: 20080 | B91: 20080 | C91: 40001#0.7|40000#0.7 | D91: 1|3 | E91: 1.25#1|1#3#25 | F91: 0 | G91: 27 | H91: 均衡 | I91: 5 | J91: 2.08#1|1#3#25 | K91: 2.08 | O91: 2.08 | P91: 2.08 | R91: 0 | S91: 2.08
A92: 20081 | B92: 20081 | C92: 40001#0.7|40000#0.7 | D92: 1|3 | E92: 1.25#1|1#3#25 | F92: 0 | G92: 27 | H92: 强壮 | I92: 7.9 | J92: 3.2864#1|1#3#25 | K92: 3.2864 | O92: 3.2864 | P92: 3.2864 | R92: 0 | S92: 3.2864
A93: 20082 | B93: 20082 | C93: 40001#0.7|30011#0.7 | D93: 1|4 | E93: 1#1|2#0.1#5#2 | F93: 0 | G93: 28 | H93: 灵巧 | I93: 3 | J93: 1.248#1|2#0.1#5#2 | K93: 1.248 | O93: 1.248 | P93: 1.248 | R93: 0 | S93: 1.248
A94: 20083 | B94: 20083 | C94: 40001#0.7|30011#0.7 | D94: 1|4 | E94: 1#1|2#0.1#5#2 | F94: 0 | G94: 28 | H94: 均衡 | I94: 5 | J94: 2.08#1|2#0.1#5#2 | K94: 2.08 | O94: 2.08 | P94: 2.08 | R94: 0 | S94: 2.08
A95: 20084 | B95: 20084 | C95: 40001#0.7|30011#0.7 | D95: 1|4 | E95: 1#1|2#0.1#5#2 | F95: 0 | G95: 28 | H95: 强壮 | I95: 7.9 | J95: 3.2864#1|2#0.1#5#2 | K95: 3.2864 | O95: 3.2864 | P95: 3.2864 | R95: 0 | S95: 3.2864
A96: 20085 | B96: 20085 | C96: 40001#0.7 | D96: 1#3 | E96: 1#2|1#2#4 | F96: 0 | G96: 29 | H96: 灵巧 | I96: 3 | J96: 1.248#2|1#2#4 | K96: 1.248 | O96: 1.248 | P96: 1.248 | R96: 0 | S96: 1.248
A97: 20086 | B97: 20086 | C97: 40001#0.7 | D97: 1#3 | E97: 1#2|1#2#4 | F97: 0 | G97: 29 | H97: 均衡 | I97: 5 | J97: 2.08#2|1#2#4 | K97: 2.08 | O97: 2.08 | P97: 2.08 | R97: 0 | S97: 2.08
A98: 20087 | B98: 20087 | C98: 40001#0.7 | D98: 1#3 | E98: 1#2|1#2#4 | F98: 0 | G98: 29 | H98: 强壮 | I98: 7.9 | J98: 3.2864#2|1#2#4 | K98: 3.2864 | O98: 3.2864 | P98: 3.2864 | R98: 0 | S98: 3.2864
A99: 20088 | B99: 20088 | C99: 40001#0.7 | D99: 1#4 | E99: 1#1|2#0.2#4#4 | F99: 0 | G99: 30 | H99: 灵巧 | I99: 3 | J99: 1.248#1|2#0.2#4#4 | K99: 1.248 | O99: 1.248 | P99: 1.248 | R99: 0 | S99: 1.248
A100: 20089 | B100: 20089 | C100: 40001#0.7 | D100: 1#4 | E100: 1#1|2#0.2#4#4 | F100: 0 | G100: 30 | H100: 均衡 | I100: 5 | J100: 2.08#1|2#0.2#4#4 | K100: 2.08 | O100: 2.08 | P100: 2.08 | R100: 0 | S100: 2.08
A101: 20090 | B101: 20090 | C101: 40001#0.7 | D101: 1#4 | E101: 1#1|2#0.2#4#4 | F101: 0 | G101: 30 | H101: 强壮 | I101: 7.9 | J101: 3.2864#1|2#0.2#4#4 | K101: 3.2864 | O101: 3.2864 | P101: 3.2864 | R101: 0 | S101: 3.2864
A102: 20091 | B102: 20091 | C102: 40001#0.7 | D102: 1#13 | E102: 1#1|2#0.1#2#5 | F102: 0 | G102: 31 | H102: 灵巧 | I102: 3 | J102: 1.248#1|2#0.1#2#5 | K102: 1.248 | O102: 1.248 | P102: 1.248 | R102: 0 | S102: 1.248
A103: 20092 | B103: 20092 | C103: 40001#0.7 | D103: 1#13 | E103: 1#1|2#0.1#2#5 | F103: 0 | G103: 31 | H103: 均衡 | I103: 5 | J103: 2.08#1|2#0.1#2#5 | K103: 2.08 | O103: 2.08 | P103: 2.08 | R103: 0 | S103: 2.08
A104: 20093 | B104: 20093 | C104: 40001#0.7 | D104: 1#13 | E104: 1#1|2#0.1#2#5 | F104: 0 | G104: 31 | H104: 强壮 | I104: 7.9 | J104: 3.2864#1|2#0.1#2#5 | K104: 3.2864 | O104: 3.2864 | P104: 3.2864 | R104: 0 | S104: 3.2864
A105: 20094 | B105: 20094 | C105: 40001#0.7|10000#0.7 | D105: 1|4 | E105: 1#1|1#0.2#7#2 | F105: 0 | G105: 32 | H105: 灵巧 | I105: 3 | J105: 1.248#1|1#0.2#7#2 | K105: 1.248 | O105: 1.248 | P105: 1.248 | R105: 0 | S105: 1.248
A106: 20095 | B106: 20095 | C106: 40001#0.7|10000#0.7 | D106: 1|4 | E106: 1#1|1#0.2#7#2 | F106: 0 | G106: 32 | H106: 均衡 | I106: 5 | J106: 2.08#1|1#0.2#7#2 | K106: 2.08 | O106: 2.08 | P106: 2.08 | R106: 0 | S106: 2.08
A107: 20096 | B107: 20096 | C107: 40001#0.7|10000#0.7 | D107: 1|4 | E107: 1#1|1#0.2#7#2 | F107: 0 | G107: 32 | H107: 强壮 | I107: 7.9 | J107: 3.2864#1|1#0.2#7#2 | K107: 3.2864 | O107: 3.2864 | P107: 3.2864 | R107: 0 | S107: 3.2864
A108: 20097 | B108: 20097 | C108: 40001#0.7 | D108: 1#3 | E108: 1#1|0.3#1#3 | F108: 0 | G108: 33 | H108: 灵巧 | I108: 3 | J108: 1.248#1|0.3#1#3 | K108: 1.248 | O108: 1.248 | P108: 1.248 | R108: 0 | S108: 1.248
A109: 20098 | B109: 20098 | C109: 40001#0.7 | D109: 1#3 | E109: 1#1|0.3#1#3 | F109: 0 | G109: 33 | H109: 均衡 | I109: 5 | J109: =REPLACE(E109,1,FIND("#",E109,1)-1,S109) -> 2.08#1|0.3#1#3 | K109: 2.08 | N109: =IF(--LEFT(C109,1)=2,MID(C109,5,1),"") ->  | O109: 2.08 | P109: 2.08 | R109: 0 | S109: 2.08
A110: 20099 | B110: 20099 | C110: 40001#0.7 | D110: 1#3 | E110: 1#1|0.3#1#3 | F110: 0 | G110: =ROUNDUP((B110-20000)/3,0) -> 33 | H110: 强壮 | I110: 7.9 | J110: 3.2864#1|0.3#1#3 | K110: 3.2864 | O110: 3.2864 | P110: 3.2864 | R110: 0 | S110: 3.2864
A111: 20100 | B111: 20100 | C111: 40001#0.7 | D111: 1#13 | E111: 1#1|2#0.1#2#5 | F111: 0 | G111: 34 | H111: 灵巧 | I111: 3 | J111: 1.248#1|2#0.1#2#5 | K111: 1.248 | O111: 1.248 | P111: 1.248 | R111: 0 | S111: 1.248
A112: 20101 | B112: 20101 | C112: 40001#0.7 | D112: 1#13 | E112: 1#1|2#0.1#2#5 | F112: 0 | G112: 34 | H112: 均衡 | I112: 5 | J112: 2.08#1|2#0.1#2#5 | K112: 2.08 | O112: 2.08 | P112: 2.08 | R112: 0 | S112: 2.08
A113: 20102 | B113: 20102 | C113: 40001#0.7 | D113: 1#13 | E113: 1#1|2#0.1#2#5 | F113: 0 | G113: 34 | H113: 强壮 | I113: 7.9 | J113: 3.2864#1|2#0.1#2#5 | K113: 3.2864 | O113: 3.2864 | P113: 3.2864 | R113: 0 | S113: 3.2864
A114: 20103 | B114: 20103 | C114: 20000#0.7 | D114: 2 | E114: 0.3#2 | F114: 0 | G114: 35 | H114: 灵巧 | I114: 3 | J114: 0.416#2 | K114: 1.248 | N114: 0 | P114: 0.416 | R114: 0 | S114: 0.416
A115: 20104 | B115: 20104 | C115: 20000#0.7 | D115: 2 | E115: 0.3#2 | F115: 0 | G115: 35 | H115: 均衡 | I115: 5 | J115: 0.693#2 | K115: 2.08 | N115: 0 | P115: 0.693 | R115: 0 | S115: 0.693
A116: 20105 | B116: 20105 | C116: 20000#0.7 | D116: 2 | E116: 0.3#2 | F116: 0 | G116: 35 | H116: 强壮 | I116: 7.9 | J116: 1.095#2 | K116: 3.2864 | N116: 0 | P116: 1.095 | R116: 0 | S116: 1.095
A117: 20106 | B117: 20106 | C117: 40001#0.7 | D117: 1#4 | E117: 1#1|1#0.2#4#4 | F117: 0 | G117: 36 | H117: 灵巧 | I117: 3 | J117: 1.248#1|1#0.2#4#4 | K117: 1.248 | O117: 1.248 | P117: 1.248 | R117: 0 | S117: 1.248
A118: 20107 | B118: 20107 | C118: 40001#0.7 | D118: 1#4 | E118: 1#1|1#0.2#4#4 | F118: 0 | G118: 36 | H118: 均衡 | I118: 5 | J118: 2.08#1|1#0.2#4#4 | K118: 2.08 | O118: 2.08 | P118: 2.08 | R118: 0 | S118: 2.08
A119: 20108 | B119: 20108 | C119: 40001#0.7 | D119: 1#4 | E119: 1#1|1#0.2#4#4 | F119: 0 | G119: 36 | H119: 强壮 | I119: 7.9 | J119: 3.2864#1|1#0.2#4#4 | K119: 3.2864 | O119: 3.2864 | P119: 3.2864 | R119: 0 | S119: 3.2864
A120: 20109 | B120: 20109 | C120: 40001#0.7 | D120: 1#24 | E120: 1#1|1#0.3 | F120: 0 | G120: 37 | H120: 灵巧 | I120: 3 | J120: 1.248#1|1#0.3 | K120: 1.248 | O120: 1.248 | P120: 1.248 | R120: 0 | S120: 1.248
A121: 20110 | B121: 20110 | C121: 40001#0.7 | D121: 1#24 | E121: 1#1|1#0.3 | F121: 0 | G121: 37 | H121: 均衡 | I121: 5 | J121: 2.08#1|1#0.3 | K121: 2.08 | O121: 2.08 | P121: 2.08 | R121: 0 | S121: 2.08
A122: 20111 | B122: 20111 | C122: 40001#0.7 | D122: 1#24 | E122: 1#1|1#0.3 | F122: 0 | G122: 37 | H122: 强壮 | I122: 7.9 | J122: 3.2864#1|1#0.3 | K122: 3.2864 | O122: 3.2864 | P122: 3.2864 | R122: 0 | S122: 3.2864
A123: 20112 | B123: 20112 | C123: 40001#0.7 | D123: 1#13 | E123: 1#1|3#0.1#1#8 | F123: 0 | G123: 38 | H123: 灵巧 | I123: 3 | J123: 1.248#1|3#0.1#1#8 | K123: 1.248 | O123: 1.248 | P123: 1.248 | R123: 0 | S123: 1.248
A124: 20113 | B124: 20113 | C124: 40001#0.7 | D124: 1#13 | E124: 1#1|3#0.1#1#8 | F124: 0 | G124: 38 | H124: 均衡 | I124: 5 | J124: 2.08#1|3#0.1#1#8 | K124: 2.08 | O124: 2.08 | P124: 2.08 | R124: 0 | S124: 2.08
A125: 20114 | B125: 20114 | C125: 40001#0.7 | D125: 1#13 | E125: 1#1|3#0.1#1#8 | F125: 0 | G125: 38 | H125: 强壮 | I125: 7.9 | J125: 3.2864#1|3#0.1#1#8 | K125: 3.2864 | O125: 3.2864 | P125: 3.2864 | R125: 0 | S125: 3.2864
A126: 20115 | B126: 20115 | C126: 20000#0.7 | D126: 2 | E126: 0.3#1 | F126: 0 | G126: 39 | H126: 灵巧 | I126: 3 | J126: 0.416#1 | K126: 1.248 | N126: 0 | P126: 0.416 | R126: 0 | S126: 0.416
A127: 20116 | B127: 20116 | C127: 20000#0.7 | D127: 2 | E127: 0.3#1 | F127: 0 | G127: 39 | H127: 均衡 | I127: 5 | J127: 0.693#1 | K127: 2.08 | N127: 0 | P127: 0.693 | R127: 0 | S127: 0.693
A128: 20117 | B128: 20117 | C128: 20000#0.7 | D128: 2 | E128: 0.3#1 | F128: 0 | G128: 39 | H128: 强壮 | I128: 7.9 | J128: 1.095#1 | K128: 3.2864 | N128: 0 | P128: 1.095 | R128: 0 | S128: 1.095
A129: 20118 | B129: 20118 | C129: 40001#0.7 | D129: 1#4 | E129: 1#1|4#0.2#4.5#4 | F129: 0 | G129: 40 | H129: 灵巧 | I129: 3 | J129: 1.248#1|4#0.2#4.5#4 | K129: 1.248 | O129: 1.248 | P129: 1.248 | R129: 0 | S129: 1.248
A130: 20119 | B130: 20119 | C130: 40001#0.7 | D130: 1#4 | E130: 1#1|4#0.2#4.5#4 | F130: 0 | G130: 40 | H130: 均衡 | I130: 5 | J130: 2.08#1|4#0.2#4.5#4 | K130: 2.08 | O130: 2.08 | P130: 2.08 | R130: 0 | S130: 2.08
A131: 20120 | B131: 20120 | C131: 40001#0.7 | D131: 1#4 | E131: 1#1|4#0.2#4.5#4 | F131: 0 | G131: 40 | H131: 强壮 | I131: 7.9 | J131: 3.2864#1|4#0.2#4.5#4 | K131: 3.2864 | O131: 3.2864 | P131: 3.2864 | R131: 0 | S131: 3.2864
A132: 20121 | B132: 20121 | C132: 20000#0.7 | D132: 2 | E132: 0.3#1 | F132: 0 | G132: 41 | H132: 灵巧 | I132: 3 | J132: 0.416#1 | K132: 1.248 | N132: 0 | P132: 0.416 | R132: 0 | S132: 0.416
A133: 20122 | B133: 20122 | C133: 20000#0.7 | D133: 2 | E133: 0.3#1 | F133: 0 | G133: 41 | H133: 均衡 | I133: 5 | J133: 0.693#1 | K133: 2.08 | N133: 0 | P133: 0.693 | R133: 0 | S133: 0.693
A134: 20123 | B134: 20123 | C134: 20000#0.7 | D134: 2 | E134: 0.3#1 | F134: 0 | G134: 41 | H134: 强壮 | I134: 7.9 | J134: 1.095#1 | K134: 3.2864 | N134: 0 | P134: 1.095 | R134: 0 | S134: 1.095
A135: 20124 | B135: 20124 | C135: 40001#0.7 | D135: 1#13 | E135: 1#1|2#0.1#2#5 | F135: 0 | G135: 42 | H135: 灵巧 | I135: 3 | J135: 1.248#1|2#0.1#2#5 | K135: 1.248 | O135: 1.248 | P135: 1.248 | R135: 0 | S135: 1.248
A136: 20125 | B136: 20125 | C136: 40001#0.7 | D136: 1#13 | E136: 1#1|2#0.1#2#5 | F136: 0 | G136: 42 | H136: 均衡 | I136: 5 | J136: 2.08#1|2#0.1#2#5 | K136: 2.08 | O136: 2.08 | P136: 2.08 | R136: 0 | S136: 2.08
A137: 20126 | B137: 20126 | C137: 40001#0.7 | D137: 1#13 | E137: 1#1|2#0.1#2#5 | F137: 0 | G137: 42 | H137: 强壮 | I137: 7.9 | J137: 3.2864#1|2#0.1#2#5 | K137: 3.2864 | O137: 3.2864 | P137: 3.2864 | R137: 0 | S137: 3.2864
A138: 20127 | B138: 20127 | C138: 40001#0.7 | D138: 1#3 | E138: 1#1|0.3#1#3 | F138: 0 | G138: 43 | H138: 灵巧 | I138: 3 | J138: 1.248#1|0.3#1#3 | K138: 1.248 | O138: 1.248 | P138: 1.248 | R138: 0 | S138: 1.248
A139: 20128 | B139: 20128 | C139: 40001#0.7 | D139: 1#3 | E139: 1#1|0.3#1#3 | F139: 0 | G139: 43 | H139: 均衡 | I139: 5 | J139: 2.08#1|0.3#1#3 | K139: 2.08 | O139: 2.08 | P139: 2.08 | R139: 0 | S139: 2.08
A140: 20129 | B140: 20129 | C140: 40001#0.7 | D140: 1#3 | E140: 1#1|0.3#1#3 | F140: 0 | G140: 43 | H140: 强壮 | I140: 7.9 | J140: 3.2864#1|0.3#1#3 | K140: 3.2864 | O140: 3.2864 | P140: 3.2864 | R140: 0 | S140: 3.2864
A141: 20130 | B141: 20130 | C141: 20012#0.7|10014#0.7 | D141: 1|4 | E141: 0.8#1|9#0.3#6.5#2 | F141: 0 | G141: 44 | H141: 灵巧 | I141: 3 | J141: 0.624#1|9#0.3#6.5#2 | K141: 1.248 | N141: 2 | O141: =IF(N141="",K141,IF(N141=0,ROUND(K141/3,3),ROUND(K141/N141,3))) -> 0.624 | P141: =IFERROR(O141,ROUND(K141/3,3)) -> 0.624 | Q141: =FIND("6",D141,1) ->  | R141: =IFERROR(IF(Q141=1,ROUNDUP((MID(E141,3,1)+MID(E141,1,1))/2,0),1),0) -> 0 | S141: =IF(R141=0,P141,ROUND(P141/R141,3)) -> 0.624
A142: 20131 | B142: 20131 | C142: 20012#0.7|10014#0.7 | D142: 1|4 | E142: 0.8#1|9#0.3#6.5#2 | F142: 0 | G142: 44 | H142: 均衡 | I142: 5 | J142: 1.04#1|9#0.3#6.5#2 | K142: 2.08 | N142: 2 | O142: 1.04 | P142: 1.04 | R142: 0 | S142: 1.04
A143: 20132 | B143: 20132 | C143: 20012#0.7|10014#0.7 | D143: 1|4 | E143: 0.8#1|9#0.3#6.5#2 | F143: 0 | G143: 44 | H143: 强壮 | I143: =I140 -> 7.9 | J143: 1.643#1|9#0.3#6.5#2 | K143: 3.2864 | N143: 2 | O143: 1.643 | P143: 1.643 | R143: 0 | S143: 1.643
A144: 100001 | B144: 20133 | C144: 40001#0.7 | D144: 6 | E144: 3#3#a#1 | F144: 0 | G144: =ROUNDUP((B144-20000)/3,0) -> 45 | H144: 灵巧 | I144: 3 | J144: =SUBSTITUTE(E144,"a",S144) -> 3#3#0.416#1 | K144: 1.248 | L144: 骷髅 | M144: 1 | O144: 1.248 | P144: 1.248 | Q144: 1 | R144: 3 | S144: 0.416
A145: 100002 | B145: =B144+3 -> 20136 | C145: 40001#0.7 | D145: 1#13 | E145: a#1|1#0.1#2#5 | F145: 0 | G145: 46 | H145: 灵巧 | I145: 3 | J145: =SUBSTITUTE(E145,"a",S145) -> 1.248#1|1#0.1#2#5 | K145: 1.248 | L145: 烛刃1 | M145: 3 | O145: 1.248 | P145: 1.248 | R145: 0 | S145: 1.248
A146: 100003 | B146: =B145+3 -> 20139 | C146: 30000#0.7|10000#0.7 | D146: 5|4 | E146: 1#0.15#4|1#0.3#6#2 | F146: 2 | G146: 47 | H146: 灵巧 | I146: 3 | J146: 1#0.15#4|1#0.3#6#2 | K146: 1.248 | L146: 烛刃2 | M146: 3 | O146: 1.248 | P146: 1.248 | R146: 0 | S146: 1.248
A147: 100004 | B147: 20142 | C147: 40001#0.7 | D147: 1#3 | E147: a#1|0.5#1#3 | F147: 0 | G147: 48 | H147: 灵巧 | I147: 3 | J147: 1.248#1|0.5#1#3 | K147: 1.248 | L147: 典狱官1 | M147: 5 | O147: 1.248 | P147: 1.248 | R147: 0 | S147: 1.248
A148: 100005 | B148: 20145 | C148: 20000#0.7 | D148: 2#4 | E148: a#2|2#0.2#6#4 | F148: 2 | G148: 49 | H148: 灵巧 | I148: 3 | J148: 0.416#2|2#0.2#6#4 | K148: 1.248 | L148: 典狱官2 | M148: 5 | N148: 0 | P148: 0.416 | R148: 0 | S148: 0.416
A149: 100006 | B149: 20148 | C149: 40001#0.7 | D149: 1#13 | E149: a#1|2#0.15#2#4 | F149: 0 | G149: 50 | H149: 灵巧 | I149: 3 | J149: 1.248#1|2#0.15#2#4 | K149: 1.248 | L149: 符文骷髅 | M149: 6 | O149: 1.248 | P149: 1.248 | R149: 0 | S149: 1.248
A150: 100007 | B150: 20151 | C150: 40001#0.7 | D150: 1#3 | E150: a#1|0.3#1#2 | F150: 0 | G150: 51 | H150: 灵巧 | I150: 3 | J150: 1.248#1|0.3#1#2 | K150: 1.248 | L150: 角羊 | M150: 2 | O150: 1.248 | P150: 1.248 | R150: 0 | S150: 1.248
A151: 100008 | B151: 20154 | C151: 40001#0.7 | D151: 1#4#13 | E151: a#1|3#0.3#6#4|3#0.12#1#4 | F151: 0 | G151: 52 | H151: 灵巧 | I151: 3 | J151: 1.248#1|3#0.3#6#4|3#0.12#1#4 | K151: 1.248 | L151: 角羊王1 | M151: 4 | O151: 1.248 | P151: 1.248 | R151: 0 | S151: 1.248
A152: 100009 | B152: 20157 | C152: 20000#0.7 | D152: 2#3 | E152: a#2|0.5#1#2.5 | F152: 2 | G152: 53 | H152: 灵巧 | I152: 3 | J152: 0.416#2|0.5#1#2.5 | K152: 1.248 | L152: 角羊王2 | M152: 4 | N152: 0 | P152: 0.416 | R152: 0 | S152: 0.416
A153: 100010 | B153: 20160 | C153: 40001#0.7 | D153: 1#4#13 | E153: a#1|2#0.2#6#4|2#0.1#2#5 | F153: 0 | G153: 54 | H153: 灵巧 | I153: 3 | J153: 1.248#1|2#0.2#6#4|2#0.1#2#5 | K153: 1.248 | L153: 地鼠 | M153: 9 | O153: 1.248 | P153: 1.248 | R153: 0 | S153: 1.248
A154: 100011 | B154: 20163 | C154: 40001#0.7|20000#0.7|30001#0.7 | D154: 1|3|4 | E154: a#1|1#3#6|6#0.08#6#1 | F154: 0 | G154: 55 | H154: 灵巧 | I154: 3 | J154: 1.248#1|1#3#6|6#0.08#6#1 | K154: 1.248 | L154: 兔 | M154: 10 | O154: 1.248 | P154: 1.248 | R154: 0 | S154: 1.248
A155: 100012 | B155: 20166 | C155: 20211#0.7 | D155: 1 | E155: a#1 | F155: 0 | G155: 56 | H155: 灵巧 | I155: 3 | J155: 1.248#1 | K155: 1.248 | L155: 巨猿1 | M155: 11 | N155: 1 | O155: 1.248 | P155: 1.248 | R155: 0 | S155: 1.248
A156: 100013 | B156: 20169 | C156: 20000#0.7 | D156: 2#4 | E156: a#2|4#0.3#5#4 | F156: 2 | G156: 57 | H156: 灵巧 | I156: 3 | J156: 0.416#2|4#0.3#5#4 | K156: 1.248 | L156: 巨猿2 | M156: 11 | N156: 0 | P156: 0.416 | R156: 0 | S156: 0.416
A157: 100014 | B157: 20172 | C157: 40001#0.7|30000#0.7 | D157: 1#4|4 | E157: a#1|2#0.2#6#4|4#0.3#4.5#2 | F157: 0 | G157: 58 | H157: 灵巧 | I157: 3 | J157: 1.248#1|2#0.2#6#4|4#0.3#4.5#2 | K157: 1.248 | L157: 刺客1 | M157: 23 | O157: 1.248 | P157: 1.248 | R157: 0 | S157: 1.248
A158: 100015 | B158: 20175 | C158: 40001#0.7 | D158: 1#13 | E158: a#1|3#0.2#1#3 | F158: 2 | G158: 59 | H158: 灵巧 | I158: 3 | J158: 1.248#1|3#0.2#1#3 | K158: 1.248 | L158: 刺客2 | M158: 3 | O158: 1.248 | P158: 1.248 | R158: 0 | S158: 1.248
A159: 100016 | B159: 20178 | C159: 30000#0.7 | D159: 5#4 | E159: 1#0.15#4|2#0.4#4#2 | F159: 0 | G159: 60 | H159: 灵巧 | I159: 3 | J159: 1#0.15#4|2#0.4#4#2 | K159: 1.248 | L159: 狐熊1 | M159: 21 | O159: 1.248 | P159: 1.248 | R159: 0 | S159: 1.248
A160: 100017 | B160: 20181 | C160: 40001#0.7 | D160: 1#3 | E160: a#1|1#1#3 | F160: 2 | G160: 61 | H160: 灵巧 | I160: 3 | J160: 1.248#1|1#1#3 | K160: 1.248 | L160: 狐熊2 | M160: 21 | O160: 1.248 | P160: 1.248 | R160: 0 | S160: 1.248
A161: 100018 | B161: 20184 | C161: 40001#0.7 | D161: 6#4 | E161: 2#4#a#2|2#0.2#8#4 | F161: 0 | G161: 62 | H161: 灵巧 | I161: 3 | J161: 2#4#0.416#2|2#0.2#8#4 | K161: 1.248 | L161: 烛刑鬼1 | M161: 24 | O161: 1.248 | P161: 1.248 | Q161: 1 | R161: 3 | S161: 0.416
A162: 100019 | B162: 20187 | C162: 20000#0.7 | D162: 2 | E162: a#2 | F162: 2 | G162: 63 | H162: 灵巧 | I162: 3 | J162: 0.416#2 | K162: 1.248 | L162: 烛刑鬼2 | M162: 24 | N162: 0 | P162: 0.416 | R162: 0 | S162: 0.416
A163: 100020 | B163: 20190 | C163: 20000#0.7 | D163: 2#13 | E163: a#2|1#0.15#2#4 | F163: 0 | G163: 64 | H163: 灵巧 | I163: 3 | J163: 0.416#2|1#0.15#2#4 | K163: 1.248 | L163: 棺材1 | M163: 22 | N163: 0 | P163: 0.416 | R163: 0 | S163: 0.416
A164: 100021 | B164: 20193 | C164: 20000#0.7 | D164: 2#4 | E164: a#2|3#0.2#6#4 | F164: 2 | G164: 65 | H164: 灵巧 | I164: 3 | J164: 0.416#2|3#0.2#6#4 | K164: 1.248 | L164: 棺材2 | M164: 22 | N164: 0 | P164: 0.416 | R164: 0 | S164: 0.416
A165: 100022 | B165: 20196 | C165: 10000#0.7 | D165: 24#4 | E165: 1#0.3|1#0.2#6#2 | F165: 0 | G165: 66 | H165: 灵巧 | I165: 3 | J165: 1#0.3|1#0.2#6#2 | K165: 1.248 | L165: 法师1 | M165: 16 | O165: 1.248 | P165: 1.248 | R165: 0 | S165: 1.248
A166: 100023 | B166: 20199 | C166: 40001#0.7 | D166: 1#4 | E166: a#2|1#0.3#6#4 | F166: 2 | G166: 67 | H166: 灵巧 | I166: 3 | J166: 1.248#2|1#0.3#6#4 | K166: 1.248 | L166: 法师2 | M166: 16 | O166: 1.248 | P166: 1.248 | R166: 0 | S166: 1.248
A167: 100024 | B167: 20202 | C167: 20000#0.7 | D167: 2#13 | E167: a#2|1#0.12#2#4 | F167: 0 | G167: 68 | H167: 灵巧 | I167: 3 | J167: 0.416#2|1#0.12#2#4 | K167: 1.248 | L167: 翼魔1 | M167: 15 | N167: 0 | P167: 0.416 | R167: 0 | S167: 0.416
A168: 100025 | B168: 20205 | C168: 20000#0.7 | D168: 2#3 | E168: a#2|0.35#2#2 | F168: 2 | G168: 69 | H168: 灵巧 | I168: 3 | J168: 0.416#2|0.35#2#2 | K168: 1.248 | L168: 翼魔2 | M168: 15 | N168: 0 | P168: 0.416 | R168: 0 | S168: 0.416
A169: 100026 | B169: 20208 | C169: 40001#0.7|30000#0.7 | D169: 1#13|4 | E169: a#1|3#0.1#1#5|4#0.1#3#2 | F169: 0 | G169: 70 | H169: 灵巧 | I169: 3 | J169: 1.248#1|3#0.1#1#5|4#0.1#3#2 | K169: 1.248 | L169: 爪刃魔1 | M169: 17 | O169: 1.248 | P169: 1.248 | R169: 0 | S169: 1.248
A170: 100027 | B170: 20211 | C170: 20111#0.7 | D170: 1 | E170: a#1 | F170: 2 | G170: 71 | H170: 灵巧 | I170: 3 | J170: 1.248#1 | K170: 1.248 | L170: 爪刃魔2 | M170: 17 | N170: 1 | O170: 1.248 | P170: 1.248 | R170: 0 | S170: 1.248
A171: 100028 | B171: 20214 | C171: 40001#0.7 | D171: 20 | E171: a#1#2#0.2 | F171: 0 | G171: 72 | H171: 灵巧 | I171: 3 | J171: 1.248#1#2#0.2 | K171: 1.248 | L171: 卫兵1 | M171: 13 | O171: 1.248 | P171: 1.248 | R171: 0 | S171: 1.248
A172: 100029 | B172: 20217 | C172: 40001#0.7|30000#0.7 | D172: 6|4 | E172: 3#3#a#1|1#0.15#6#2 | F172: 2 | G172: 73 | H172: 灵巧 | I172: 3 | J172: 3#3#0.416#1|1#0.15#6#2 | K172: 1.248 | L172: 卫兵2 | M172: 13 | O172: 1.248 | P172: 1.248 | Q172: 1 | R172: 3 | S172: 0.416
A173: 100030 | B173: 20220 | C173: 20000#0.7 | D173: 2#3 | E173: a#1|1#3#10 | F173: 0 | G173: 74 | H173: 灵巧 | I173: 3 | J173: 0.416#1|1#3#10 | K173: 1.248 | L173: 护卫1 | M173: 14 | N173: =IF(--LEFT(C173,1)=2,MID(C173,5,1),"") -> 0 | P173: 0.416 | R173: 0 | S173: 0.416
A174: 100031 | B174: 20223 | C174: 40001#0.7 | D174: 1#3 | E174: a#1|0.65#2#3 | F174: 2 | G174: 75 | H174: 灵巧 | I174: 3 | J174: 1.248#1|0.65#2#3 | K174: 1.248 | L174: 护卫2 | M174: 14 | O174: 1.248 | P174: 1.248 | R174: 0 | S174: 1.248
A175: 100032 | B175: 20226 | C175: 20000#0.7 | D175: 2#13#4 | E175: a#2|2#0.15#2#5|4#0.25#6#4 | F175: 0 | G175: 76 | H175: 灵巧 | I175: 3 | J175: 0.416#2|2#0.15#2#5|4#0.25#6#4 | K175: 1.248 | L175: 巨大僵尸1 | M175: 8 | N175: 0 | P175: 0.416 | R175: 0 | S175: 0.416
A176: 100033 | B176: 20229 | C176: 40001#0.7 | D176: 22 | E176: a#1#2#0.25 | F176: 2 | G176: =ROUNDUP((B176-20000)/3,0) -> 77 | H176: 灵巧 | I176: 3 | J176: 1.248#1#2#0.25 | K176: 1.248 | L176: 巨大僵尸2 | M176: 8 | O176: 1.248 | P176: 1.248 | R176: 0 | S176: 1.248
A177: 100034 | B177: 20232 | C177: 10000#0.7|20000#0.7 | D177: 5|4 | E177: 1#0.15#2|1#0.15#5.5#4 | F177: 0 | G177: 78 | H177: 灵巧 | I177: 3 | J177: =SUBSTITUTE(E177,"a",S177) -> 1#0.15#2|1#0.15#5.5#4 | K177: 1.248 | L177: 花妖1 | M177: 7 | O177: 1.248 | P177: 1.248 | R177: 0 | S177: 1.248
A178: 100035 | B178: =B177+3 -> 20235 | C178: 20000#0.7 | D178: 2#3 | E178: a#2|0.45#2#2.5 | F178: 2 | G178: 79 | H178: 灵巧 | I178: 3 | J178: 0.416#2|0.45#2#2.5 | K178: 1.248 | L178: 花妖2 | M178: 7 | N178: 0 | P178: 0.416 | R178: 0 | S178: 0.416
A179: 100036 | B179: 20238 | C179: 20000#0.7 | D179: 2#13#4 | E179: a#2|1#0.1#2#5|3#0.3#6#4 | F179: 0 | G179: 80 | H179: 灵巧 | I179: 3 | J179: 0.416#2|1#0.1#2#5|3#0.3#6#4 | K179: 1.248 | L179: 强化棺材1 | N179: 0 | P179: 0.416 | R179: 0 | S179: 0.416
A180: 100037 | B180: 20241 | C180: 30000#0.7 | D180: 5#4#4#4 | E180: 1#0.06#7|1#0.2#6#2|4#0.25#6.5#2|2#0.25#6.5#2 | F180: 2 | G180: 81 | H180: 灵巧 | I180: 3 | J180: 1#0.06#7|1#0.2#6#2|4#0.25#6.5#2|2#0.25#6.5#2 | K180: 1.248 | L180: 强化棺材2 | O180: 1.248 | P180: 1.248 | R180: 0 | S180: 1.248
A181: 100038 | B181: 20244 | C181: 40001#0.7 | D181: 1#3 | E181: a#1|1#4#3.5 | F181: 0 | G181: 82 | H181: 灵巧 | I181: 3 | J181: 1.248#1|1#4#3.5 | K181: 1.248 | L181: 利刃虎1 | M181: 35 | O181: 1.248 | P181: 1.248 | R181: 0 | S181: 1.248
A182: 100039 | B182: 20247 | C182: 20000#0.7 | D182: 2#13 | E182: a#1|3#0.1#1#5 | F182: 2 | G182: 83 | H182: 灵巧 | I182: 3 | J182: 0.416#1|3#0.1#1#5 | K182: 1.248 | L182: 利刃虎2 | M182: 35 | N182: 0 | P182: 0.416 | R182: 0 | S182: 0.416
A183: 100040 | B183: 20250 | C183: 40001#0.7|30000#0.7 | D183: 6|4 | E183: 2#4#a#2|1#0.3#6#2 | F183: 0 | G183: 84 | H183: 灵巧 | I183: 3 | J183: 2#4#0.416#2|1#0.3#6#2 | K183: 1.248 | L183: 樱首1 | M183: 36 | O183: 1.248 | P183: 1.248 | Q183: 1 | R183: 3 | S183: 0.416
A184: 100041 | B184: 20253 | C184: 20000#0.7|30000#0.7 | D184: 2#4|24 | E184: a#2|1#0.15#6#4|1#0.3 | F184: 2 | G184: 85 | H184: 灵巧 | I184: 3 | J184: 0.416#2|1#0.15#6#4|1#0.3 | K184: 1.248 | L184: 樱首2 | M184: 36 | N184: 0 | P184: 0.416 | R184: 0 | S184: 0.416
A185: 100042 | B185: 20256 | C185: 40001#0.7|10321#0.7 | D185: 1|8 | E185: a#1|1.5#1#3 | F185: 0 | G185: 86 | H185: 灵巧 | I185: 3 | J185: 1.248#1|1.5#1#3 | K185: 1.248 | L185: 黑狱炮兵1 | M185: 42 | O185: 1.248 | P185: 1.248 | R185: 0 | S185: 1.248
A186: 100043 | B186: 20259 | C186: 20000#0.7 | D186: 2#13 | E186: a#1|1#0.1#2#4 | F186: 2 | G186: 87 | H186: 灵巧 | I186: 3 | J186: 0.416#1|1#0.1#2#4 | K186: 1.248 | L186: 黑狱炮兵2 | M186: 42 | N186: 0 | P186: 0.416 | R186: 0 | S186: 0.416
A187: 100044 | B187: 20262 | C187: 20000#0.7 | D187: 2#3 | E187: a#2|0.4#1#2.5 | F187: 0 | G187: 88 | H187: 灵巧 | I187: 3 | J187: 0.416#2|0.4#1#2.5 | K187: 1.248 | L187: 蒜头妹1 | M187: 38 | N187: 0 | P187: 0.416 | R187: 0 | S187: 0.416
A188: 100045 | B188: 20265 | C188: 40001#0.7 | D188: 6#4 | E188: 1#3#a#1|3#0.2#6#4 | F188: 2 | G188: 89 | H188: 灵巧 | I188: 3 | J188: 1#3#0.624#1|3#0.2#6#4 | K188: 1.248 | L188: 蒜头妹2 | M188: 38 | O188: 1.248 | P188: 1.248 | Q188: 1 | R188: 2 | S188: 0.624
A189: 100046 | B189: 20268 | C189: 20000#0.7 | D189: 2#3 | E189: a#2|0.2#1#4 | F189: 0 | G189: 90 | H189: 灵巧 | I189: 3 | J189: 0.416#2|0.2#1#4 | K189: 1.248 | L189: 黑狱精灵1 | M189: 41 | N189: 0 | P189: 0.416 | R189: 0 | S189: 0.416
A190: 100047 | B190: 20271 | C190: 40001#0.7 | D190: 20 | E190: a#2#0#0.2 | F190: 2 | G190: 91 | H190: 灵巧 | I190: 3 | J190: 1.248#2#0#0.2 | K190: 1.248 | L190: 黑狱精灵2 | M190: 41 | O190: 1.248 | P190: 1.248 | R190: 0 | S190: 1.248
A191: 100048 | B191: 20274 | C191: 20111#0.7|30000#0.7 | D191: 1|4#4 | E191: a#2|4#0.3#6.5#2|9#15#6.5#1 | F191: 0 | G191: 92 | H191: 灵巧 | I191: 3 | J191: 1.248#2|4#0.3#6.5#2|9#15#6.5#1 | K191: 1.248 | L191: 天麟1 | M191: 10048 | N191: 1 | O191: 1.248 | P191: 1.248 | R191: 0 | S191: 1.248
A192: 100049 | B192: 20277 | C192: 20000#0.7|30000#0.7 | D192: 2|31#9#4 | E192: a#2|1#1#6.5|1#0.2#6.5#0|1#0.25#6.5#2 | F192: 2 | G192: 93 | H192: 灵巧 | I192: 3 | J192: 0.416#2|1#1#6.5|1#0.2#6.5#0|1#0.25#6.5#2 | K192: 1.248 | L192: 天麟2 | M192: 10048 | N192: 0 | P192: 0.416 | R192: 0 | S192: 0.416
A193: 100050 | B193: 20280 | C193: 40001#0.7 | D193: 6 | E193: 2#3#a#2 | F193: 0 | G193: 94 | H193: 灵巧 | I193: 3 | J193: 2#3#0.416#2 | K193: 1.248 | L193: 小蛋蛋1 | M193: 44 | O193: 1.248 | P193: 1.248 | Q193: 1 | R193: 3 | S193: 0.416
A194: 100051 | B194: 20283 | C194: 40001#0.7|10001#0.7 | D194: 1|24 | E194: a#2|1#0.45 | F194: 0 | G194: 95 | H194: 灵巧 | I194: 3 | J194: 1.248#2|1#0.45 | K194: 1.248 | L194: 小叶延始祖1 | M194: 43 | O194: 1.248 | P194: 1.248 | R194: 0 | S194: 1.248
B195: =B144+1 -> 20134 | C195: 40001#0.7 | D195: 6 | E195: 3#3#a#1 | F195: 0 | G195: 45 | H195: 均衡 | I195: 5 | J195: 3#3#0.693#1 | K195: 2.08 | L195: 骷髅 | O195: 2.08 | P195: 2.08 | Q195: 1 | R195: 3 | S195: 0.693
B196: =B145+1 -> 20137 | C196: 40001#0.7 | D196: 1#13 | E196: a#1|1#0.1#2#5 | F196: 0 | G196: 46 | H196: 均衡 | I196: 5 | J196: 2.08#1|1#0.1#2#5 | K196: 2.08 | L196: 烛刃1 | O196: 2.08 | P196: 2.08 | R196: 0 | S196: 2.08
B197: =B146+1 -> 20140 | C197: 30000#0.7|10000#0.7 | D197: 5|4 | E197: 1#0.15#4|1#0.3#6#2 | F197: 2 | G197: 47 | H197: 均衡 | I197: 5 | J197: 1#0.15#4|1#0.3#6#2 | K197: 2.08 | L197: 烛刃2 | O197: 2.08 | P197: 2.08 | R197: 0 | S197: 2.08
B198: 20143 | C198: 40001#0.7 | D198: 1#3 | E198: a#1|0.5#1#3 | F198: 0 | G198: 48 | H198: 均衡 | I198: 5 | J198: 2.08#1|0.5#1#3 | K198: 2.08 | L198: 典狱官1 | O198: 2.08 | P198: 2.08 | R198: 0 | S198: 2.08
B199: 20146 | C199: 20000#0.7 | D199: 2#4 | E199: a#2|2#0.2#6#4 | F199: 2 | G199: 49 | H199: 均衡 | I199: 5 | J199: 0.693#2|2#0.2#6#4 | K199: 2.08 | L199: 典狱官2 | N199: 0 | P199: 0.693 | R199: 0 | S199: 0.693
B200: 20149 | C200: 40001#0.7 | D200: 1#13 | E200: a#1|2#0.15#2#4 | F200: 0 | G200: 50 | H200: 均衡 | I200: 5 | J200: 2.08#1|2#0.15#2#4 | K200: 2.08 | L200: 符文骷髅 | O200: 2.08 | P200: 2.08 | R200: 0 | S200: 2.08
B201: 20152 | C201: 40001#0.7 | D201: 1#3 | E201: a#1|0.7#1#2 | F201: 0 | G201: 51 | H201: 均衡 | I201: 5 | J201: 2.08#1|0.7#1#2 | K201: 2.08 | L201: 角羊 | O201: 2.08 | P201: 2.08 | R201: 0 | S201: 2.08
B202: 20155 | C202: 40001#0.7 | D202: 1#4#13 | E202: a#1|3#0.3#6#4|3#0.12#1#4 | F202: 0 | G202: 52 | H202: 均衡 | I202: 5 | J202: 2.08#1|3#0.3#6#4|3#0.12#1#4 | K202: 2.08 | L202: 角羊王1 | O202: 2.08 | P202: 2.08 | R202: 0 | S202: 2.08
... 94 more rows

Sheet Sheet4
C1: 姓名 | D1: 职业名字 | E1: 属性 | F1: 伤害类型 | G1: 品质 | H1: 点击技 | I1: 上滑技 | J1: CD
A2: 100012 | B2: 10001 | C2: 石御霏 | D2: 武卫 | E2: 水 | F2: 物理 | G2: ★★★★★ | H2: 对敌方单体造成（108%）物理伤害 （100%）嘲讽，持续（10）秒，提升双防（30%），持续（6）秒。 | I2: 对敌方随机2人造成（205%）物理伤害 （60%）概率眩晕其中1人，持续（5）秒。 | J2: 5 | M2: 10001 | N2: 夏侯鸿天
A3: 100022 | B3: 10002 | C3: 楚恒 | D3: 武卫 | E3: 风 | F3: 物理 | G3: ★★★★★ | H3: 对敌方单体造成（135%）物理伤害 （80%）嘲讽，持续（10）秒，提升自身攻击（20%），持续（6）秒。 | I3: 对敌方随机2人造成（166%）物理伤害 给自身添加最大生命（60%）的伤害吸收盾，持续（6）秒，盾消失的时候对随机1人反射吸收盾吸收的45%物理伤害。 | J3: 5 | M3: 10002 | N3: 石御霏
A4: 100032 | B4: 10003 | C4: 夏侯鸿天 | D4: 武卫 | E4: 地 | F4: 物理 | G4: ★★★★★ | H4: 对敌方单体造成（85%）物理伤害 自身恢复造成伤害的（65%）的生命。 | I4: 对敌方单体造成（90%）物理伤害，并削弱其魔抗（45%），持续（5）秒 （100%）嘲讽，持续（10）秒。 | J4: 5 | M4: 10003 | N4: 叶辽
A5: 100042 | B5: 10004 | C5: 应茹 | D5: 生花 | E5: 风 | F5: 魔法 | G5: ★★★★★ | H5: 对敌方单体造成（120%）魔法伤害 为当前生命最低的（1）名队友持续恢复生命（攻击*80%），持续（4）秒 | I5: 对敌方全体造成（105%）魔法伤害 为全体队友持续恢复（攻击*88%）生命，持续（3）秒 | J5: 2 | M5: 10004 | N5: 孔谦
A6: 100052 | B6: 10005 | C6: 端木葵 | D6: 生花 | E6: 地 | F6: 魔法 | G6: ★★★★★ | H6: 对敌方单体造成（85%）魔法伤害，恢复自身（攻击*98%）生命，并提升自己（30%）攻击，持续（4）秒 | I6: 对敌方随机4人造成（120%）魔法伤害，为全体队友恢复（攻击*98%）生命 | J6: 2 | M6: 10005 | N6: 兰卿
A7: 100062 | B7: 10006 | C7: 兰卿 | D7: 生花 | E7: 火 | F7: 魔法 | G7: ★★★★★ | H7: 对敌方全体造成（96%）魔法伤害 增加我方全体攻击攻击（30%），持续（5）秒 | I7: 对敌方全体造成（130%）魔法伤害 降低其攻击（15%），持续（6）秒 | J7: 2 | M7: 10006 | N7: 朱贺
A8: 100072 | B8: 10007 | C8: 靖之 | D8: 生花 | E8: 水 | F8: 物理 | G8: ★★★★★ | H8: 对敌方1名敌人造成3段（108%）物理伤害 并降低其防御（30%），持续（10）秒 | I8: 对敌方单体造成（150%）物理伤害 清除CD最长的1名友军的CD，（立刻变成可释放技能状态） | J8: 2 | M8: 10007 | N8: 应茹
A9: 100082 | B9: 10008 | C9: 白梦凡 | D9: 秘法 | E9: 光 | F9: 魔法 | G9: ★★★★★ | H9: 对敌方单体造成4段伤害（60%）魔法伤害， 对生花造成额外（50%）伤害。 | I9: 对敌方全体造成（85%）魔法伤害 （30%）晕眩敌方，持续（4）秒 | J9: 4 | M9: 10008 | N9: 颜无雍
A10: 100092 | B10: 10009 | C10: 祁菲 | D10: 秘法 | E10: 暗 | F10: 物理 | G10: ★★★★★ | H10: 对敌方随机1人造成3段（86%）物理伤害 并造成燃烧效果，每秒造成（35%）攻击的物理伤害，持续（5）秒。 | I10: 对敌方全体造成（105%）物理伤害 对燃烧效果的敌人造成额外伤害25% 同时自身获得一层减伤50%护盾，护盾期间60%免疫控制，持续6秒。 | J10: 4 | M10: 10009 | N10: 祁菲
A11: 100102 | B11: 10010 | C11: 颜祈佳 | D11: 秘法 | E11: 水 | F11: 魔法 | G11: ★★★★★ | H11: 对敌方1人造成2段（88%）魔法伤害， 对武卫造成额外（50%）伤害。 | I11: 对敌方全体造成（96%）魔法伤害 并（70%）增加随机1人重击CD+2秒 | J11: 4 | M11: 10010 | N11: 颜祈佳
A12: 100112 | B12: 10011 | C12: 叶延 | D12: 秘法 | E12: 地 | F12: 魔法 | G12: ★★★★★ | H12: 对敌方1人造成2段（70%）魔法伤害 并造成中毒效果，每秒造成（25%）攻击的伤害，持续（3）秒 | I12: 对敌方全体造成（90%）魔法伤害 对中毒目标造成（66%）晕眩效果，持续（3）秒 | J12: 4 | M12: 10011 | N12: 尹正霄
A13: 100122 | B13: 10012 | C13: 慕容子期 | D13: 天罚 | E13: 火 | F13: 物理 | G13: ★★★★★ | H13: 增加重击CD 1秒，对单体造成（116%）物理伤害 同时给对方加一层中毒效果，每秒造成（20%）伤害，持续（5）秒。 | I13: 对当前血量最低的2个人，造成（86%）物理伤害 同时使对方（5）秒无法恢复血量。 | J13: 3 | M13: 10012 | N13: 慕容子期
A14: 100132 | B14: 10013 | C14: 云灵 | D14: 天罚 | E14: 地 | F14: 物理 | G14: ★★★★★ | H14: 对敌方单体造成（100%）物理伤害 同时给自身添加（10%）的暴击率，（10%）的暴击伤害，持续（5）秒。 | I14: 对敌方攻击力最高的2名角色造成（135%）的物理伤害 有（60%）的概率追加一次伤害，最多可追加（4）次。 | J14: 3 | M14: 10013 | N14: 白梦凡
A15: 100142 | B15: 10014 | C15: 耿陶 | D15: 天罚 | E15: 暗 | F15: 物理 | G15: ★★★★★ | H15: 对敌方敌人造成（120%）物理伤害， 对秘法目标必定暴击 | I15: 对敌方随机1人造成3-5次（205%）物理伤害 提升自身50%暴击伤害。 | J15: 3 | M15: 10014 | N15: 颜无诡
A16: 100152 | B16: 10015 | C16: 云 | D16: 天罚 | E16: 光 | F16: 魔法 | G16: ★★★★★ | H16: 对敌方1名敌人造成（135%）魔法伤害， 将造成伤害的（45%）转化为自己生命 | I16: 对敌方随机2人造成（160）魔法伤害 并偷取对方（6%）攻击，持续（15）秒 同时给敌方添加暴击印记，带有印记的目标，额外受到30%的暴击伤害（最高累计300%） | J16: 3 | M16: 10015 | N16: 凝儿
A17: 100162 | B17: 10016 | C17: 岑以航 | D17: 玄策 | E17: 火 | F17: 魔法 | G17: ★★★★★ | H17: 对敌方单体造成（95%）魔法伤害 对控制状态的敌人额外造成无视敌人（38%）防御的攻击 | I17: 对随机3人造成（150%）魔法伤害，对带有持续恢复状态的敌人额外造成（30%）的魔法伤害 自身降低（20%）的魔抗，提高（30%）的攻击，持续（6）秒 | J17: 3 | M17: 10016 | N17: 枫元正
A18: 100172 | B18: 10017 | C18: 影蓟 | D18: 玄策 | E18: 暗 | F18: 魔法 | G18: ★★★★★ | H18: 对敌方1名敌人造成2段（123%）魔法伤害 降低其（40%）护甲，同时（60%）概率沉默（5）秒。 | I18: 对敌方随机4人造成（167%）魔法伤害 对沉默敌人额外造成（50%）伤害。 | J18: 3 | M18: 10017 | N18: 解幽
A19: 100182 | B19: 10018 | C19: 朱贺 | D19: 玄策 | E19: 光 | F19: 魔法 | G19: ★★★★★ | H19: 对敌方1名敌人造成（187%）魔法伤害。 | I19: 对敌方生命最低的1人造成（300%）魔法伤害 偷取（18%）攻击，同时造成流血效果，每秒造成（45%）的伤害，持续（4）。 | J19: 3 | M19: 10018 | N19: 紫苏
A20: 100192 | B20: 10019 | C20: 孔谦 | D20: 玄策 | E20: 风 | F20: 物理 | G20: ★★★★★ | H20: 对敌方单体造成（105%）物理伤害 增加自身（10%）攻击，（20%）暴击伤害，持续（3）秒。 | I20: 对敌方全体造成（120%）的物理伤害 减少全体重击CD（1）秒，持续（3）秒。 | J20: 3 | M20: 10019 | N20: 云
A21: 100202 | B21: 10020 | C21: 颜无雍 | D21: 武卫 | E21: 火 | F21: 物理 | G21: ★★★★★ | H21: 对敌方随机1人造成3段（50%）物理伤害， 并随机回复2名友军自身攻击（120%）的生命。 | I21: 对敌方全体造成（89%）物理伤害 为全体添加减伤（30%）的减伤盾，持续（4）秒 | J21: 5 | M21: 10020 | N21: 司空染
A22: 100212 | B22: 10021 | C22: 岑以璇 | D22: 秘法 | E22: 水 | F22: 魔法 | G22: ★★★★★ | H22: 对敌方单体造成（105%）魔法伤害 同时减少（15%）的速度，持续（5）秒 | I22: 对敌方全体造成（112%）的魔法伤害 并有（50%）的概括对其中随机2人造成致盲效果，持续（7）秒。 | J22: 4 | M22: 10021 | N22: 清然
A23: 100222 | B23: 10022 | C23: 颜无诡 | D23: 天罚 | E23: 风 | F23: 魔法 | G23: ★★★★★ | H23: 对敌方单体造成130%魔法伤害， 提升自身（20%）的暴击和暴击伤害，持续（4）秒。 | I23: 对生命百分比最高的敌人造成（206%）的魔法伤害，如果击杀， 对敌方剩余敌人均造成此次伤害（30%）的伤害。 | J23: 3 | M23: 10022 | N23: 云灵
A24: 100232 | B24: 10023 | C24: 荧荧 | D24: 玄策 | E24: 光 | F24: 魔法 | G24: ★★★★★ | H24: 对敌方单体造成（86%）魔法伤害，对自身施加控制状态免疫，持续（4）秒。 | I24: 对敌方全体造成（90%）的魔法伤害， 附加仇恨印记，印记加深莹莹技能对该目标的伤害（30）%（最高累计600%）。 | J24: 3 | M24: 10023 | N24: 荧荧
A25: 100242 | B25: 10024 | C25: 许槿然 | D25: 武卫 | E25: 风 | F25: 物理 | G25: ★★★★ | H25: 对敌方随机2人造成<color=#b4595eFF>86%</color>风属性物理伤害。 | I25: 对敌方单体造成（110%）伤害 有（60%）的概率眩晕，持续（5）秒。 | J25: 5 | M25: 10024 | N25: 许槿然
A26: 100252 | B26: 10025 | C26: 唐萱 | D26: 秘法 | E26: 火 | F26: 魔法 | G26: ★★★★ | H26: 对敌方单体造成<color=#b4595eFF>110%</color>风属性物理伤害，有60%的概率眩晕目标，持续5秒。 | I26: 对敌方单体造成（123%）伤害 （75%）的概率眩晕对方，持续（3）秒。 | J26: 4 | M26: 10025 | N26: 炎琪儿
A27: 100262 | B27: 10026 | C27: 孙晴 | D27: 武卫 | E27: 光 | F27: 物理 | G27: ★★★★ | H27: 对敌人造成2段（86%）伤害 对天罚类额外造成（15%）的伤害。 | I27: 对敌方全体造成（88%）伤害。 | J27: 5 | M27: 10026 | N27: 楚恒
A28: 100272 | B28: 10027 | C28: 宁月 | D28: 生花 | E28: 光 | F28: 物理 | G28: ★★★★ | H28: 对敌方单体造成（96%）伤害 为我方随机1名角色恢复攻击（60%）的血量。 | I28: 对敌方随机两人造成（98%）伤害， 提升自身暴击率提高（20%），持续（4）秒 | J28: 2 | M28: 10027 | N28: 柳月
A29: 100282 | B29: 10028 | C29: 紫川 | D29: 玄策 | E29: 光 | F29: 魔法 | G29: ★★★★ | H29: 随机2名敌人造成（100%）伤害。 | I29: 对敌方单体造成（105%）伤害， 若暴击，则减少下次发动技能CD1秒。 | J29: 3 | M29: 10028 | N29: 岑以航
A30: 100292 | B30: 10029 | C30: 晏息 | D30: 玄策 | E30: 地 | F30: 魔法 | G30: ★★★★ | H30: 对敌方随机2人造成<color=#b4595eFF>92%</color>地属性魔法伤害。 | I30: 对敌方1名角色造成2段<color=#b4595eFF>92%</color>地属性魔法伤害，提升自身攻击20%，持续4秒。 | J30: 3 | M30: 10029 | N30: 姜燧
A31: 100302 | B31: 10030 | C31: 瑶瑶 | D31: 生花 | E31: 风 | F31: 魔法 | G31: ★★★★ | H31: 对敌方单体造成2段<color=#b4595eFF>82%</color>风属性魔法伤害。 | I31: 对敌方单体造成（89%）伤害 降低目标护甲（30%），持续（4）秒 | J31: 2 | M31: 10030 | N31: 晏息
A32: 100312 | B32: 10031 | C32: 贾裴武 | D32: 武卫 | E32: 地 | F32: 物理 | G32: ★★★★ | H32: 对敌人单体造成<color=#b4595eFF>92%</color>地属性物理伤害。 | I32: 对敌人单体造成2段（76%）伤害 对秘法类额外造成（20%）的伤害。 | J32: 5 | M32: 10031 | N32: 冉宜
A33: 100322 | B33: 10032 | C33: 雷燕 | D33: 天罚 | E33: 地 | F33: 物理 | G33: ★★★★ | H33: 对敌方单体造成2段<color=#b4595eFF>86%</color>地属性物理伤害。 | I33: 对敌方单体造成（86%）伤害 造成燃烧，每秒附加（20%）攻击的额外伤害，持续（4）秒。 | J33: 3 | M33: 10032 | N33: 孙晴
A34: 100332 | B34: 10033 | C34: 辛夷 | D34: 玄策 | E34: 地 | F34: 物理 | G34: ★★★★ | H34: 随机敌人造成2段<color=#b4595eFF>104%</color>地属性物理伤害。 | I34: 对敌人单体造成<color=#b4595eFF>94%</color>地属性物理伤害，对生花类额外造成20%的伤害。 | J34: 3 | M34: 10033 | N34: 艾欣
A35: 100342 | B35: 10034 | C35: 伏冥 | D35: 玄策 | E35: 暗 | F35: 魔法 | G35: ★★★★ | H35: 对敌方单体造成（105%）伤害 （30%）概率眩晕，持续（4）秒。 | I35: 对敌方全体造成（97%）伤害。 | J35: 3 | M35: 10034 | N35: 影蓟
A36: 100352 | B36: 10035 | C36: 司空染 | D36: 秘法 | E36: 暗 | F36: 物理 | G36: ★★★★ | H36: 对敌人造成3段（78%）伤害 对武卫额外造成（20%）的伤害。 | I36: 对敌方生命最低单体造成（120%）伤害。 | J36: 4 | M36: 10035 | N36: 辛夷
A37: 100362 | B37: 10036 | C37: 解幽 | D37: 秘法 | E37: 水 | F37: 魔法 | G37: ★★★★ | H37: 对敌方单体造成color=#b4595eFF>83%</color>水属性魔法伤害。 | I37: 对敌方单体造成2段（88%）伤害 对天罚类额外造成（20%）的伤害。 | J37: 4 | M37: 10036 | N37: 岑以璇
A38: 100372 | B38: 10037 | C38: 薛苓 | D38: 天罚 | E38: 水 | F38: 物理 | G38: ★★★★ | H38: 对敌方单体造成2段<color=#b4595eFF>83%</color>水属性物理伤害。 | I38: 对敌方单体造成（86%）伤害 增加自身双防御（30%），持续（3）秒。 | J38: 3 | M38: 10037 | N38: 薛苓
A39: 100382 | B39: 10038 | C39: 常申 | D39: 玄策 | E39: 火 | F39: 魔法 | G39: ★★★★ | H39: 对敌方随机2人造成<color=#b4595eFF>80%</color>火属性魔法伤害。 | I39: 对敌方单体造成（99%）伤害 降低武卫类目标（30%）的双防，持续（3）秒。 | J39: 3 | M39: 10038 | N39: 伏冥
A40: 100392 | B40: 10039 | C40: 呼延腾 | D40: 天罚 | E40: 水 | F40: 物理 | G40: ★★★★ | H40: 对敌方单体造成2段<color=#b4595eFF>80%</color>的水属性物理伤害。 | I40: 对敌方单体造成（98%）的伤害 降低其魔抗（40%），持续（3）秒。 | J40: 3 | M40: 10039 | N40: 呼延腾
A41: 100402 | B41: 10040 | C41: 冉宜 | D41: 武卫 | E41: 火 | F41: 物理 | G41: ★★★★ | H41: 敌人单体造成<color=#b4595eFF>96%</color>火属性物理伤害。 | I41: 敌人单体造成2段（86%）伤害 对玄策类额外造成（20%）的伤害。 | J41: 5 | M41: 10040 | N41: 贾裴武
A42: 100412 | B42: 10041 | C42: 孟灿 | D42: 武卫 | E42: 火 | F42: 物理 | G42: ★★★★ | H42: 对敌方随机2人造成<color=#b4595eFF>94%</color>火属性物理伤害。 | I42: 对敌方单体造成（120%）伤害 恢复此次伤害（80%）的生命。 | J42: 5 | M42: 10041 | N42: 孟灿
A43: 100422 | B43: 10042 | C43: 叶辽 | D43: 武卫 | E43: 风 | F43: 物理 | G43: ★★★★ | H43: 对敌方随机1名角色造成2段<color=#b4595eFF>94%</color>风属性物理伤害。 | I43: 对敌方随机1名角色造成2段（94%）伤害。 | J43: 5 | M43: 10042 | N43: 白木
A44: 100432 | B44: 10043 | C44: 乌廉 | D44: 玄策 | E44: 水 | F44: 物理 | G44: ★★★★ | H44: 对敌方随机2人造成<color=#b4595eFF>96%</color>水属性物理伤害。 | I44: 对敌方单体造成（104%）伤害 造成中毒，每秒附加（25%）攻击的额外伤害，持续（3）秒。 | J44: 3 | M44: 10043 | N44: 紫川
A45: 100442 | B45: 10044 | C45: 姜燧 | D45: 天罚 | E45: 暗 | F45: 魔法 | G45: ★★★★ | H45: 随机2名敌人造成（86%）伤害 对法师类额外造成（20%）的伤害。 | I45: 对敌方3人造成<color=#b4595eFF>98%</color>暗属性魔法伤害，如果敌人处于燃烧或流血，增加10%的伤害。 | J45: 3 | M45: 10044 | N45: 靖之
A46: 100452 | B46: 10045 | C46: 苏可 | D46: 生花 | E46: 风 | F46: 魔法 | G46: ★★★★ | H46: 对敌方单体造成2段<color=#b4595eFF>109%</color>风属性魔法伤害。 | I46: 对敌方单体造成（86%）伤害 为我方生命最低的单体恢复攻击（120%）的血量。 | J46: 2 | M46: 10045 | N46: 殷婉儿
A47: 100462 | B47: 10046 | C47: 林越 | D47: 天罚 | E47: 光 | F47: 魔法 | G47: ★★★★ | H47: 对敌方随机2人造成（100%）伤害。 | I47: 对敌方单体造成（120%）伤害， 造成流血，每秒（30%）攻击的额外伤害，持续（4）秒。 | J47: 3 | M47: 10046 | N47: 林越
A48: 100472 | B48: 10047 | C48: 赤肥肥 | D48: 秘法 | E48: 火 | F48: 物理 | G48: ★★★ | H48: 随机2名敌人造成（76%）伤害。 | J48: 5 | M48: 10047 | N48: 赤肥肥
A49: 100482 | B49: 10048 | C49: 银肥肥 | D49: 天罚 | E49: 风 | F49: 物理 | G49: ★★★ | H49: 对敌方单体造成（87%）伤害。 | J49: 4 | M49: 10048 | N49: 银肥肥
A50: 100492 | B50: 10049 | C50: 苍肥肥 | D50: 玄策 | E50: 水 | F50: 物理 | G50: ★★★ | H50: 对敌方单体造成（90%）伤害。 | J50: 3 | M50: 10049 | N50: 苍肥肥
A51: 100502 | B51: 10050 | C51: 金肥肥 | D51: 秘法 | E51: 地 | F51: 魔法 | G51: ★★★ | H51: 随机2名敌人造成（74%）伤害。 | J51: 3 | M51: 10050 | N51: 金肥肥
A52: 100512 | B52: 10051 | C52: 阳魔 | D52: 天罚 | E52: 光 | F52: 魔法 | G52: ★★★ | H52: 对敌方单体造成（87%）伤害。 | J52: 2 | M52: 10051 | N52: 阳魔
A53: 100522 | B53: 10052 | C53: 阴魔 | D53: 玄策 | E53: 暗 | F53: 魔法 | G53: ★★★ | H53: 对敌方单体造成（97%）伤害。 | J53: 5 | M53: 10052 | N53: 阴魔

Sheet 爬塔怪物技能设计
B1: 目标 | C1: 效果 | D1: 具体效果 | E1: 特点
B2: 20001#0.7|10111#0.7 | C2: 1#24 | D2: 单体伤害+单体治疗 | E2: 单体、治疗 | H2: 20000#0.7|10000#0.7 | I2: 2|24 | J2: 群体伤害+群体治疗
B3: 20001#0.7|10111#0.7 | C3: 1#5 | D3: 单体伤害+单体hot | E3: 单体、治疗 | H3: 20001#0.7|10111#0.7 | I3: 1|24 | J3: 单体伤害+单体治疗
B4: 20000#0.7|10000#0.7 | C4: 2#24 | D4: 群体伤害+群体治疗 | E4: 群体、治疗 | H4: 20000#0.7|10000#0.7 | I4: 2|5#4 | J4: 群体伤害+群体hot
B5: 20000#0.7|10000#0.7 | C5: 2#5 | D5: 群体伤害+群体hot | E5: 群体、治疗 | H5: 20000#0.7|10000#0.7 | I5: 2#4|5 | J5: 群体伤害+群体hot
B6: 20001#0.7 | C6: 1#3 | D6: 单体伤害+单体控 | E6: 单体、控制 | H6: 20000#0.7 | I6: 2#3 | J6: 群体伤害+群体控
B7: 20000#0.7 | C7: 2#3 | D7: 群体伤害+群体控 | E7: 群体、控制 | H7: 20001#0.7 | I7: 20 | J7: 单体+对控制额外伤害
B8: 20000#0.7|20003#0.7 | C8: 2|3 | D8: 群体伤害+几人控 | E8: 群体、控制 | H8: 20000#0.7 | I8: 35 | J8: 群体+被控额外受伤
B9: 20001#0.7 | C9: 20 | D9: 单体+对控制额外伤害 | E9: 单体、控制 | H9: 20001#0.7 | I9: 1#3 | J9: 单体伤害+单体控
B10: 20000#0.7 | C10: 20 | D10: 群体+对控制额外伤害 | E10: 群体、控制 | H10: 20001#0.7 | I10: 20 | J10: 单体+对控制额外伤害
B11: 20001#0.7 | C11: 30 | D11: 单体+对控制额外真伤 | E11: 单体、控制
B12: 20000#0.7 | C12: 30 | D12: 群体+对控制额外真伤 | E12: 群体、控制
B13: 20001#0.7 | C13: 35 | D13: 单体+被控额外受伤 | E13: 单体、控制
B14: 20000#0.7 | C14: 35 | D14: 群体+被控额外受伤 | E14: 群体、控制
B15: 20001#0.7 | C15: 1#13 | D15: 单体+dot | E15: 单体、dot | H15: 20001#0.7 | I15: 1#13 | J15: 单体+dot
B16: 20000#0.7 | C16: 2#13 | D16: 群体+dot | E16: 群体、dot | H16: 20000#0.7 | I16: 22 | J16: 群体+dot额外伤害
B17: 20000#0.7 | C17: 21 | D17: 群体+dot控制 | E17: 群体、dot | H17: 20000#0.7 | I17: 35 | J17: 群体+dot额外受伤
B18: 20000#0.7 | C18: 22 | D18: 群体+dot额外伤害 | E18: 群体、dot | H18: 20000#0.7 | I18: 21 | J18: 群体+dot控制
B19: 20001#0.7 | C19: 35 | D19: 单体+dot额外受伤 | E19: 单体、dot
B20: 20000#0.7 | C20: 35 | D20: 群体+dot额外受伤 | E20: 群体、dot
B21: 20001#0.7|10001#0.7 | C21: 1#4 | D21: 单体+加时间buff | E21: 单体、加buff | H21: 20001#0.7|10000#0.7 | I21: 1#4 | J21: 单体+群加攻
B22: 20000#0.7|10000#0.7 | C22: 2#4 | D22: 群体+加时间buff | E22: 群体、加buff | H22: 20000#0.7|10000#0.7 | I22: 2#4 | J22: 群攻+群加防
B23: 20001#0.7|10001#0.7 | C23: 1#36 | D23: 单体+加层数buff | E23: 单体、加buff | H23: 20001#0.7|10000#0.7 | I23: 1#4 | J23: 单体+群加速
B24: 20000#0.7|10000#0.7 | C24: 2#36 | D24: 群体+加层数buff | E24: 群体、加buff | H24: 20000#0.7|10000#0.7 | I24: 2#4 | J24: 群体+群加暴
B25: 20001#0.7 | C25: 1#4 | D25: 单体+加时间debuff | E25: 单体、加debuff | H25: 20001#0.7|10321#0.7 | I25: 1#4 | J25: 单体+单加攻
B26: 20000#0.7 | C26: 2#4 | D26: 群体+加时间debuff | E26: 群体、加debuff | H26: 20001#0.7|20000#0.7 | I26: 1#4 | J26: 单体+群减攻
B27: 20001#0.7 | C27: 1#16 | D27: 单体+偷属性 | E27: 单体、加debuff | H27: 20000#0.7 | I27: 2#4 | J27: 群攻+群减防
B28: 20000#0.7 | C28: 2#16 | D28: 群体+偷属性 | E28: 群体、加debuff | H28: 20001#0.7|20000#0.7 | I28: 1#4 | J28: 单体+群减速
B29: 20001#0.7 | C29: 1#36 | D29: 单体+加层数debuff | E29: 单体、加debuff | H29: 20000#0.7 | I29: 2#4 | J29: 群体+群减暴
B30: 20000#0.7 | C30: 2#36 | D30: 群体+加层数debuff | E30: 群体、加debuff
B31: 20001#0.7|10001#0.7 | C31: 1#8 | D31: 单体+减单次cd | E31: 单体、减cd
B32: 20000#0.7|10000#0.7 | C32: 2#8 | D32: 群体+减单次cd | E32: 群体、减cd
B33: 20001#0.7|10001#0.7 | C33: 1#32 | D33: 单体+减时间cd | E33: 单体、减cd
B34: 20000#0.7|10000#0.7 | C34: 2#32 | D34: 群体+减时间cd | E34: 群体、减cd
B35: 20001#0.7 | C35: 1#8 | D35: 单体+加单次cd | E35: 单体、加cd
B36: 20000#0.7 | C36: 2#8 | D36: 群体+加单次cd | E36: 群体、加cd
B37: 20001#0.7 | C37: 1#32 | D37: 单体+加时间cd | E37: 单体、加cd
B38: 20000#0.7 | C38: 2#32 | D38: 群体+加时间cd | E38: 群体、加cd
B39: 20001#0.7 | C39: 6 | D39: 单体 | E39: 单体
B40: 20001#0.7 | C40: 19 | D40: 单体 | E40: 单体
B41: 20000#0.7 | C41: 7 | D41: 群体 | E41: 群体
B42: 20000#0.7|30001#0.7 | C42: 3|4 | D42: 嘲讽+减伤 | E42: 嘲讽 | H42: 20000#0.7|30001#0.7 | I42: 3|4 | J42: 嘲讽+减伤
B43: 20001#0.7 | C43: 11 | D43: 单体+对职业额外伤害 | E43: 单体、职业 | H43: 20001#0.7|20000#0.7|30000#0.7 | I43: 1|3|4#4 | J43: 嘲讽+加双抗
B44: 20000#0.7 | C44: 11 | D44: 群体+对职业额外伤害 | E44: 群体、职业
B45: 20001#0.7 | C45: 17 | D45: 单体+对职业必暴击 | E45: 单体、职业
B46: 20001#0.7 | C46: 29 | D46: 单体+对职业额外伤害 | E46: 单体、职业
B47: 20001#0.7 | C47: 34 | D47: 单体+对职业debuff | E47: 单体、职业
B48: 20000#0.7 | C48: 34 | D48: 群体+对职业debuff | E48: 群体、职业
B49: 20001#0.7 | C49: 3 | D49: 单体禁疗 | E49: 禁疗 | H49: 20002#0.7 | I49: 1#3 | J49: 两人+禁疗
B50: 20000#0.7 | C50: 3 | D50: 群体禁疗 | E50: 禁疗
